Body,Body Name,Transaction Number,Invoice Ref.,Supplier Name,Expense  Code,Expense Type,Date,Amount
http://statistics.data.gov.uk/id/local-authority-district/23UB,Cheltenham Borough Council,442601,18288829-15,ADT FIRE & SECURITY PLC,C-L11500-3167,Rec Facilities-Maintenance Agreements,18-Feb-11,326.32
http://statistics.data.gov.uk/id/local-authority-district/23UB,Cheltenham Borough Council,442754,18145327-15,ADT FIRE & SECURITY PLC,C-L11500-3167,Rec Facilities-Maintenance Agreements,18-Feb-11,20.00
http://statistics.data.gov.uk/id/local-authority-district/23UB,Cheltenham Borough Council,442555,17985743-15,ADT FIRE & SECURITY PLC,C-L41100-1114,AG & M-Security systems,18-Feb-11,489.90
http://statistics.data.gov.uk/id/local-authority-district/23UB,Cheltenham Borough Council,441910,139509,A&E FIRE EQUIPMENT LTD,C-H46200-1104,Fire. Syst.Serv-Council House repairs,11-Feb-11,18.30
http://statistics.data.gov.uk/id/local-authority-district/23UB,Cheltenham Borough Council,441925,139369,A&E FIRE EQUIPMENT LTD,C-H46200-1104,Fire. Syst.Serv-Council House repairs,11-Feb-11,181.71
http://statistics.data.gov.uk/id/local-authority-district/23UB,Cheltenham Borough Council,441924,139361,A&E FIRE EQUIPMENT LTD,C-H46200-1104,Fire. Syst.Serv-Council House repairs,11-Feb-11,14.62
http://statistics.data.gov.uk/id/local-authority-district/23UB,Cheltenham Borough Council,441923,139395,A&E FIRE EQUIPMENT LTD,C-H46200-1104,Fire. Syst.Serv-Council House repairs,11-Feb-11,6.58
http://statistics.data.gov.uk/id/local-authority-district/23UB,Cheltenham Borough Council,441922,139396,A&E FIRE EQUIPMENT LTD,C-H46200-1104,Fire. Syst.Serv-Council House repairs,11-Feb-11,6.58
http://statistics.data.gov.uk/id/local-authority-district/23UB,Cheltenham Borough Council,441921,139359,A&E FIRE EQUIPMENT LTD,C-H46200-1104,Fire. Syst.Serv-Council House repairs,11-Feb-11,153.53
http://statistics.data.gov.uk/id/local-authority-district/23UB,Cheltenham Borough Council,441920,139360,A&E FIRE EQUIPMENT LTD,C-H46200-1104,Fire. Syst.Serv-Council House repairs,11-Feb-11,55.26
http://statistics.data.gov.uk/id/local-authority-district/23UB,Cheltenham Borough Council,441919,139397,A&E FIRE EQUIPMENT LTD,C-H46200-1104,Fire. Syst.Serv-Council House repairs,11-Feb-11,6.58
http://statistics.data.gov.uk/id/local-authority-district/23UB,Cheltenham Borough Council,441918,137964,A&E FIRE EQUIPMENT LTD,C-H46200-1104,Fire. Syst.Serv-Council House repairs,11-Feb-11,14.40
http://statistics.data.gov.uk/id/local-authority-district/23UB,Cheltenham Borough Council,441917,139394,A&E FIRE EQUIPMENT LTD,C-H46200-1104,Fire. Syst.Serv-Council House repairs,11-Feb-11,6.58
http://statistics.data.gov.uk/id/local-authority-district/23UB,Cheltenham Borough Council,441916,139203,A&E FIRE EQUIPMENT LTD,C-H46200-1104,Fire. Syst.Serv-Council House repairs,11-Feb-11,73.75
http://statistics.data.gov.uk/id/local-authority-district/23UB,Cheltenham Borough Council,441915,139119,A&E FIRE EQUIPMENT LTD,C-H46200-1104,Fire. Syst.Serv-Council House repairs,11-Feb-11,49.96
http://statistics.data.gov.uk/id/local-authority-district/23UB,Cheltenham Borough Council,441914,139593,A&E FIRE EQUIPMENT LTD,C-H46200-1104,Fire. Syst.Serv-Council House repairs,11-Feb-11,314.53
http://statistics.data.gov.uk/id/local-authority-district/23UB,Cheltenham Borough Council,441913,139489,A&E FIRE EQUIPMENT LTD,C-H46200-1104,Fire. Syst.Serv-Council House repairs,11-Feb-11,182.40
http://statistics.data.gov.uk/id/local-authority-district/23UB,Cheltenham Borough Council,441912,139457,A&E FIRE EQUIPMENT LTD,C-H46200-1104,Fire. Syst.Serv-Council House repairs,11-Feb-11,14.40
http://statistics.data.gov.uk/id/local-authority-district/23UB,Cheltenham Borough Council,441911,139508,A&E FIRE EQUIPMENT LTD,C-H46200-1104,Fire. Syst.Serv-Council House repairs,11-Feb-11,72.37
http://statistics.data.gov.uk/id/local-authority-district/23UB,Cheltenham Borough Council,441909,139507,A&E FIRE EQUIPMENT LTD,C-H46200-1104,Fire. Syst.Serv-Council House repairs,11-Feb-11,63.86
http://statistics.data.gov.uk/id/local-authority-district/23UB,Cheltenham Borough Council,441907,139590,A&E FIRE EQUIPMENT LTD,C-H46200-1104,Fire. Syst.Serv-Council House repairs,11-Feb-11,40.14
http://statistics.data.gov.uk/id/local-authority-district/23UB,Cheltenham Borough Council,441927,139362,A&E FIRE EQUIPMENT LTD,C-H46200-1104,Fire. Syst.Serv-Council House repairs,11-Feb-11,12.45
http://statistics.data.gov.uk/id/local-authority-district/23UB,Cheltenham Borough Council,441926,139357,A&E FIRE EQUIPMENT LTD,C-H46200-1104,Fire. Syst.Serv-Council House repairs,11-Feb-11,80.41
http://statistics.data.gov.uk/id/local-authority-district/23UB,Cheltenham Borough Council,441903,139536,A&E FIRE EQUIPMENT LTD,C-H46200-1104,Fire. Syst.Serv-Council House repairs,11-Feb-11,49.96
http://statistics.data.gov.uk/id/local-authority-district/23UB,Cheltenham Borough Council,441904,138570,A&E FIRE EQUIPMENT LTD,C-H46200-1104,Fire. Syst.Serv-Council House repairs,11-Feb-11,49.96
http://statistics.data.gov.uk/id/local-authority-district/23UB,Cheltenham Borough Council,441906,139585,A&E FIRE EQUIPMENT LTD,C-H46200-1104,Fire. Syst.Serv-Council House repairs,11-Feb-11,15.70
http://statistics.data.gov.uk/id/local-authority-district/23UB,Cheltenham Borough Council,441905,139592,A&E FIRE EQUIPMENT LTD,C-H46200-1104,Fire. Syst.Serv-Council House repairs,11-Feb-11,33.30
http://statistics.data.gov.uk/id/local-authority-district/23UB,Cheltenham Borough Council,442633,139376,A&E FIRE EQUIPMENT LTD,C-C22120-1808,Sports & Open S-RM-Routine works,18-Feb-11,6.58
http://statistics.data.gov.uk/id/local-authority-district/23UB,Cheltenham Borough Council,442637,139389,A&E FIRE EQUIPMENT LTD,C-C22120-1808,Sports & Open S-RM-Routine works,18-Feb-11,2.82
http://statistics.data.gov.uk/id/local-authority-district/23UB,Cheltenham Borough Council,442639,139377,A&E FIRE EQUIPMENT LTD,C-C22120-1808,Sports & Open S-RM-Routine works,18-Feb-11,10.34
http://statistics.data.gov.uk/id/local-authority-district/23UB,Cheltenham Borough Council,442662,139390,A&E FIRE EQUIPMENT LTD,C-C22120-1808,Sports & Open S-RM-Routine works,18-Feb-11,10.34
http://statistics.data.gov.uk/id/local-authority-district/23UB,Cheltenham Borough Council,442641,139375,A&E FIRE EQUIPMENT LTD,C-C22120-1808,Sports & Open S-RM-Routine works,18-Feb-11,2.82
http://statistics.data.gov.uk/id/local-authority-district/23UB,Cheltenham Borough Council,442640,139384,A&E FIRE EQUIPMENT LTD,C-C22120-1808,Sports & Open S-RM-Routine works,18-Feb-11,1.88
http://statistics.data.gov.uk/id/local-authority-district/23UB,Cheltenham Borough Council,442638,139381,A&E FIRE EQUIPMENT LTD,C-C22120-1808,Sports & Open S-RM-Routine works,18-Feb-11,42.86
http://statistics.data.gov.uk/id/local-authority-district/23UB,Cheltenham Borough Council,442636,139391,A&E FIRE EQUIPMENT LTD,C-C22120-1808,Sports & Open S-RM-Routine works,18-Feb-11,10.32
http://statistics.data.gov.uk/id/local-authority-district/23UB,Cheltenham Borough Council,442635,139388,A&E FIRE EQUIPMENT LTD,C-C22120-1808,Sports & Open S-RM-Routine works,18-Feb-11,2.82
http://statistics.data.gov.uk/id/local-authority-district/23UB,Cheltenham Borough Council,442634,139387,A&E FIRE EQUIPMENT LTD,C-C22120-1808,Sports & Open S-RM-Routine works,18-Feb-11,9.40
http://statistics.data.gov.uk/id/local-authority-district/23UB,Cheltenham Borough Council,442622,139380,A&E FIRE EQUIPMENT LTD,C-C23140-1808,Public Convnces-RM-Routine works,18-Feb-11,50.38
http://statistics.data.gov.uk/id/local-authority-district/23UB,Cheltenham Borough Council,442643,139379,A&E FIRE EQUIPMENT LTD,C-C23140-1808,Public Convnces-RM-Routine works,18-Feb-11,17.40
http://statistics.data.gov.uk/id/local-authority-district/23UB,Cheltenham Borough Council,442642,139378,A&E FIRE EQUIPMENT LTD,C-C23140-1808,Public Convnces-RM-Routine works,18-Feb-11,2.82
http://statistics.data.gov.uk/id/local-authority-district/23UB,Cheltenham Borough Council,442626,139569,A&E FIRE EQUIPMENT LTD,C-C23140-1808,Public Convnces-RM-Routine works,18-Feb-11,2.82
http://statistics.data.gov.uk/id/local-authority-district/23UB,Cheltenham Borough Council,442624,139385,A&E FIRE EQUIPMENT LTD,C-C23140-1808,Public Convnces-RM-Routine works,18-Feb-11,2.82
http://statistics.data.gov.uk/id/local-authority-district/23UB,Cheltenham Borough Council,442625,139386,A&E FIRE EQUIPMENT LTD,C-C23140-1808,Public Convnces-RM-Routine works,18-Feb-11,3.76
http://statistics.data.gov.uk/id/local-authority-district/23UB,Cheltenham Borough Council,442644,139538,A&E FIRE EQUIPMENT LTD,C-D13100-1808,Muni Off Blgs-RM-Routine works,18-Feb-11,153.22
http://statistics.data.gov.uk/id/local-authority-district/23UB,Cheltenham Borough Council,442645,139539,A&E FIRE EQUIPMENT LTD,C-D13100-1808,Muni Off Blgs-RM-Routine works,18-Feb-11,22.00
http://statistics.data.gov.uk/id/local-authority-district/23UB,Cheltenham Borough Council,442498,138405,A&E FIRE EQUIPMENT LTD,C-D13550-1115,Area Off -E.Hse-Fire prevention,18-Feb-11,47.00
http://statistics.data.gov.uk/id/local-authority-district/23UB,Cheltenham Borough Council,442629,139515,A&E FIRE EQUIPMENT LTD,C-D14100-1808,Depot Building-RM-Routine works,18-Feb-11,60.16
http://statistics.data.gov.uk/id/local-authority-district/23UB,Cheltenham Borough Council,442630,139516,A&E FIRE EQUIPMENT LTD,C-D14100-1808,Depot Building-RM-Routine works,18-Feb-11,50.00
http://statistics.data.gov.uk/id/local-authority-district/23UB,Cheltenham Borough Council,442632,139383,A&E FIRE EQUIPMENT LTD,C-D30200-1124,Misc Props & Ld-Berkeley Mews  Repairs,18-Feb-11,5.64
http://statistics.data.gov.uk/id/local-authority-district/23UB,Cheltenham Borough Council,442623,139392,A&E FIRE EQUIPMENT LTD,C-D33950-1808,Resource Centre-RM-Routine works,18-Feb-11,5.64
http://statistics.data.gov.uk/id/local-authority-district/23UB,Cheltenham Borough Council,442621,139596,A&E FIRE EQUIPMENT LTD,C-E21100-1808,Car Prks-Off St-RM-Routine works,18-Feb-11,45.12
http://statistics.data.gov.uk/id/local-authority-district/23UB,Cheltenham Borough Council,442627,139517,A&E FIRE EQUIPMENT LTD,C-E21100-1808,Car Prks-Off St-RM-Routine works,18-Feb-11,81.78
http://statistics.data.gov.uk/id/local-authority-district/23UB,Cheltenham Borough Council,442628,139518,A&E FIRE EQUIPMENT LTD,C-E21100-1808,Car Prks-Off St-RM-Routine works,18-Feb-11,45.00
http://statistics.data.gov.uk/id/local-authority-district/23UB,Cheltenham Borough Council,442631,139513,A&E FIRE EQUIPMENT LTD,C-E21400-3103,Shopmobility-Equipment repairs & maint,18-Feb-11,12.00
http://statistics.data.gov.uk/id/local-authority-district/23UB,Cheltenham Borough Council,442326,139318,A&E FIRE EQUIPMENT LTD,C-H4214G-1104,Gen Wks 2214-Council House repairs,18-Feb-11,74.94
http://statistics.data.gov.uk/id/local-authority-district/23UB,Cheltenham Borough Council,442156,139237,A&E FIRE EQUIPMENT LTD,C-H46200-1104,Fire. Syst.Serv-Council House repairs,18-Feb-11,49.96
http://statistics.data.gov.uk/id/local-authority-district/23UB,Cheltenham Borough Council,442650,139644,A&E FIRE EQUIPMENT LTD,C-L11500-1808,Rec Facilities-RM-Routine works,18-Feb-11,37.76
http://statistics.data.gov.uk/id/local-authority-district/23UB,Cheltenham Borough Council,442652,139642,A&E FIRE EQUIPMENT LTD,C-L11500-1808,Rec Facilities-RM-Routine works,18-Feb-11,40.36
http://statistics.data.gov.uk/id/local-authority-district/23UB,Cheltenham Borough Council,442651,139643,A&E FIRE EQUIPMENT LTD,C-L11500-1808,Rec Facilities-RM-Routine works,18-Feb-11,372.88
http://statistics.data.gov.uk/id/local-authority-district/23UB,Cheltenham Borough Council,442646,139657,A&E FIRE EQUIPMENT LTD,C-L21100-1808,Town Hall-RM-Routine works,18-Feb-11,238.94
http://statistics.data.gov.uk/id/local-authority-district/23UB,Cheltenham Borough Council,442647,139826,A&E FIRE EQUIPMENT LTD,C-L21100-1808,Town Hall-RM-Routine works,18-Feb-11,185.00
http://statistics.data.gov.uk/id/local-authority-district/23UB,Cheltenham Borough Council,442653,139638,A&E FIRE EQUIPMENT LTD,C-L21200-1808,Pump Room-RM-Routine works,18-Feb-11,161.48
http://statistics.data.gov.uk/id/local-authority-district/23UB,Cheltenham Borough Council,442648,139753,A&E FIRE EQUIPMENT LTD,C-L41100-1808,AG & M-RM-Routine works,18-Feb-11,14.10
http://statistics.data.gov.uk/id/local-authority-district/23UB,Cheltenham Borough Council,442649,139752,A&E FIRE EQUIPMENT LTD,C-L41100-1808,AG & M-RM-Routine works,18-Feb-11,58.28
http://statistics.data.gov.uk/id/local-authority-district/23UB,Cheltenham Borough Council,436699,1647,AGRIPA SOLUTIONS LIMITED,C-C23180-3501,Rcycl Cltn Schm-Hire of outside services,18-Feb-11,-234.00
http://statistics.data.gov.uk/id/local-authority-district/23UB,Cheltenham Borough Council,442735,1726,AGRIPA SOLUTIONS LIMITED,C-C23180-3920,Rcycl Cltn Schm-Advertising,18-Feb-11,395.00
http://statistics.data.gov.uk/id/local-authority-district/23UB,Cheltenham Borough Council,442735,1726,AGRIPA SOLUTIONS LIMITED,C-C23180-3920,Rcycl Cltn Schm-Advertising,18-Feb-11,"2,125.00"
http://statistics.data.gov.uk/id/local-authority-district/23UB,Cheltenham Borough Council,442588,12034123,ALDER KING PROPERTY CONSULTANTS,C-D21250-3973,Civil Emergency-EA FDGIA allocation,18-Feb-11,"4,500.00"
http://statistics.data.gov.uk/id/local-authority-district/23UB,Cheltenham Borough Council,442132,49951,ALPHA COLOUR PRINTERS LTD,C-0T22K1-3528,Lon Mrkt Play 2-Programme costs,11-Feb-11,119.00
http://statistics.data.gov.uk/id/local-authority-district/23UB,Cheltenham Borough Council,441846,50038,ALPHA COLOUR PRINTERS LTD,C-D12430-3401,Housing & CT Be-Printing - general,11-Feb-11,92.00
http://statistics.data.gov.uk/id/local-authority-district/23UB,Cheltenham Borough Council,442035,49857,ALPHA COLOUR PRINTERS LTD,C-D12490-3401,Sundry Debtors-Printing - general,11-Feb-11,233.00
http://statistics.data.gov.uk/id/local-authority-district/23UB,Cheltenham Borough Council,442035,49857,ALPHA COLOUR PRINTERS LTD,C-D12490-3401,Sundry Debtors-Printing - general,11-Feb-11,293.00
http://statistics.data.gov.uk/id/local-authority-district/23UB,Cheltenham Borough Council,441745,50025,ALPHA COLOUR PRINTERS LTD,C-D21100-3412,Dem Process-Printing - Cabinet Papers,11-Feb-11,43.00
http://statistics.data.gov.uk/id/local-authority-district/23UB,Cheltenham Borough Council,441845,50057,ALPHA COLOUR PRINTERS LTD,C-D21100-3412,Dem Process-Printing - Cabinet Papers,11-Feb-11,102.00
http://statistics.data.gov.uk/id/local-authority-district/23UB,Cheltenham Borough Council,441744,260111,ALPHA COLOUR PRINTERS LTD,C-D21190-3403,O&S Committees-Printing-Committee Papers,11-Feb-11,38.00
http://statistics.data.gov.uk/id/local-authority-district/23UB,Cheltenham Borough Council,441744,260111,ALPHA COLOUR PRINTERS LTD,C-D21190-3403,O&S Committees-Printing-Committee Papers,11-Feb-11,68.00
http://statistics.data.gov.uk/id/local-authority-district/23UB,Cheltenham Borough Council,441744,260111,ALPHA COLOUR PRINTERS LTD,C-D21190-3403,O&S Committees-Printing-Committee Papers,11-Feb-11,75.00
http://statistics.data.gov.uk/id/local-authority-district/23UB,Cheltenham Borough Council,442048,49919,ALPHA COLOUR PRINTERS LTD,C-E21300-3401,Residents Prkng-Printing - general,11-Feb-11,50.00
http://statistics.data.gov.uk/id/local-authority-district/23UB,Cheltenham Borough Council,442011,49878,ALPHA COLOUR PRINTERS LTD,C-L17300-3406,Sports Dev-Printing-Promotion/Mktin,11-Feb-11,419.00
http://statistics.data.gov.uk/id/local-authority-district/23UB,Cheltenham Borough Council,442070,50040,ALPHA COLOUR PRINTERS LTD,C-L41100-3131,AG & M-Exhibition & Display,11-Feb-11,28.00
http://statistics.data.gov.uk/id/local-authority-district/23UB,Cheltenham Borough Council,442070,50040,ALPHA COLOUR PRINTERS LTD,C-L41100-3131,AG & M-Exhibition & Display,11-Feb-11,50.00
http://statistics.data.gov.uk/id/local-authority-district/23UB,Cheltenham Borough Council,442068,50010,ALPHA COLOUR PRINTERS LTD,C-L41100-3401,AG & M-Printing - general,11-Feb-11,"1,671.00"
http://statistics.data.gov.uk/id/local-authority-district/23UB,Cheltenham Borough Council,442064,49907,ALPHA COLOUR PRINTERS LTD,C-L41100-3540,AG & M-Educ-lectures/workshops,11-Feb-11,223.00
http://statistics.data.gov.uk/id/local-authority-district/23UB,Cheltenham Borough Council,442540,50086,ALPHA COLOUR PRINTERS LTD,C-D12430-3401,Housing & CT Be-Printing - general,18-Feb-11,645.00
http://statistics.data.gov.uk/id/local-authority-district/23UB,Cheltenham Borough Council,442540,50086,ALPHA COLOUR PRINTERS LTD,C-D12440-3401,Coun Tax overhe-Printing - general,18-Feb-11,"2,299.50"
http://statistics.data.gov.uk/id/local-authority-district/23UB,Cheltenham Borough Council,442540,50086,ALPHA COLOUR PRINTERS LTD,C-D12480-3401,Business Revenu-Printing - general,18-Feb-11,198.50
http://statistics.data.gov.uk/id/local-authority-district/23UB,Cheltenham Borough Council,442540,50086,ALPHA COLOUR PRINTERS LTD,C-D12490-3401,Sundry Debtors-Printing - general,18-Feb-11,180.00
http://statistics.data.gov.uk/id/local-authority-district/23UB,Cheltenham Borough Council,442595,50074,ALPHA COLOUR PRINTERS LTD,C-L16100-3406,Holiday Rec-Printing-Promotion/Mkting,18-Feb-11,413.00
http://statistics.data.gov.uk/id/local-authority-district/23UB,Cheltenham Borough Council,442560,50082,ALPHA COLOUR PRINTERS LTD,C-L21100-3920,Town Hall-Advertising,18-Feb-11,"1,260.00"
http://statistics.data.gov.uk/id/local-authority-district/23UB,Cheltenham Borough Council,442560,50082,ALPHA COLOUR PRINTERS LTD,C-L21100-3920,Town Hall-Advertising,18-Feb-11,"7,800.00"
http://statistics.data.gov.uk/id/local-authority-district/23UB,Cheltenham Borough Council,441621,HOMLESSNESS P,ANDREWS,C-H22400-3828,Homelessness-Prevention Fund,04-Feb-11,600.00
http://statistics.data.gov.uk/id/local-authority-district/23UB,Cheltenham Borough Council,442716,0727,ANDERSON CIVIL ENGINEERING UK LIMITED,C-D21250-3974,Civil Emergency-Multi-agency funding,18-Feb-11,"6,000.00"
http://statistics.data.gov.uk/id/local-authority-district/23UB,Cheltenham Borough Council,442716,0727,ANDERSON CIVIL ENGINEERING UK LIMITED,C-N11250-9227,Excluded,18-Feb-11,-140.00
http://statistics.data.gov.uk/id/local-authority-district/23UB,Cheltenham Borough Council,442105,redacted,ANDREWS LETTING AND MANAGEMENT,C-H22400-3244,Homelessness-Supporting People,11-Feb-11,554.00
http://statistics.data.gov.uk/id/local-authority-district/23UB,Cheltenham Borough Council,442019,482907,ARJO LTD,C-L11500-3167,Rec Facilities-Maintenance Agreements,11-Feb-11,8.22
http://statistics.data.gov.uk/id/local-authority-district/23UB,Cheltenham Borough Council,442019,482907,ARJO LTD,C-L11500-3167,Rec Facilities-Maintenance Agreements,11-Feb-11,18.60
http://statistics.data.gov.uk/id/local-authority-district/23UB,Cheltenham Borough Council,442019,482907,ARJO LTD,C-L11500-3167,Rec Facilities-Maintenance Agreements,11-Feb-11,2.64
http://statistics.data.gov.uk/id/local-authority-district/23UB,Cheltenham Borough Council,442019,482907,ARJO LTD,C-L11500-3167,Rec Facilities-Maintenance Agreements,11-Feb-11,4.27
http://statistics.data.gov.uk/id/local-authority-district/23UB,Cheltenham Borough Council,442019,482907,ARJO LTD,C-L11500-3167,Rec Facilities-Maintenance Agreements,11-Feb-11,8.30
http://statistics.data.gov.uk/id/local-authority-district/23UB,Cheltenham Borough Council,442019,482907,ARJO LTD,C-L11500-3167,Rec Facilities-Maintenance Agreements,11-Feb-11,515.90
http://statistics.data.gov.uk/id/local-authority-district/23UB,Cheltenham Borough Council,442018,482908,ARJO LTD,C-L11500-3167,Rec Facilities-Maintenance Agreements,11-Feb-11,70.90
http://statistics.data.gov.uk/id/local-authority-district/23UB,Cheltenham Borough Council,442985,24916,ARKELL AND HURCOMBE BRONZE WORK LTD,C-E63100-3111,Cemetery & Crem-Goods purch for resale,25-Feb-11,396.00
http://statistics.data.gov.uk/id/local-authority-district/23UB,Cheltenham Borough Council,443009,24917,ARKELL AND HURCOMBE BRONZE WORK LTD,C-E63100-3111,Cemetery & Crem-Goods purch for resale,25-Feb-11,126.00
http://statistics.data.gov.uk/id/local-authority-district/23UB,Cheltenham Borough Council,442987,24918,ARKELL AND HURCOMBE BRONZE WORK LTD,C-E63100-3111,Cemetery & Crem-Goods purch for resale,25-Feb-11,396.00
http://statistics.data.gov.uk/id/local-authority-district/23UB,Cheltenham Borough Council,443001,10393,ARTFUL LIMITED,C-B51120-3920,Develt Con-Advertising,23-Feb-11,419.12
http://statistics.data.gov.uk/id/local-authority-district/23UB,Cheltenham Borough Council,443010,10394,ARTFUL LIMITED,C-B51120-3920,Develt Con-Advertising,23-Feb-11,"1,902.16"
http://statistics.data.gov.uk/id/local-authority-district/23UB,Cheltenham Borough Council,442969,10247,ARTFUL LIMITED,C-E21100-3920,Car Prks-Off St-Advertising,23-Feb-11,225.68
http://statistics.data.gov.uk/id/local-authority-district/23UB,Cheltenham Borough Council,442664,0072027,ATS EUROMASTER LTD,C-C24100-3501,Fleet Maint-Hire of outside services,18-Feb-11,"4,082.89"
http://statistics.data.gov.uk/id/local-authority-district/23UB,Cheltenham Borough Council,442131,29208,AUDIOLINK RADIO COMMUNICATIONS,C-L21100-3101,Town Hall-Equipment purchases,11-Feb-11,500.00
http://statistics.data.gov.uk/id/local-authority-district/23UB,Cheltenham Borough Council,442131,29208,AUDIOLINK RADIO COMMUNICATIONS,C-L21100-3101,Town Hall-Equipment purchases,11-Feb-11,21.00
http://statistics.data.gov.uk/id/local-authority-district/23UB,Cheltenham Borough Council,442097,SIN002275,AVALON PROMOTIONS LIMITED,C-0T19H1-3568,Chris Addison-Artist Fees,11-Feb-11,"2,219.72"
http://statistics.data.gov.uk/id/local-authority-district/23UB,Cheltenham Borough Council,442713,5533,B AND G COMEDY LIMITED,C-0T03L1-3568,Felix Dexter-Artist Fees,18-Feb-11,"1,000.00"
http://statistics.data.gov.uk/id/local-authority-district/23UB,Cheltenham Borough Council,442743,REDACTED,REDACTED,C-P12250-9104,Tenants Rent-Refunds,18-Feb-11,"1,250.00"
http://statistics.data.gov.uk/id/local-authority-district/23UB,Cheltenham Borough Council,443203,REDACTED,REDACTED,C-H22400-3244,Homelessness-Supporting People,25-Feb-11,500.00
http://statistics.data.gov.uk/id/local-authority-district/23UB,Cheltenham Borough Council,442925,651,JASON R C BAYLISS,C-C22120-1804,Sports & Open S-RM-External structures,23-Feb-11,374.00
http://statistics.data.gov.uk/id/local-authority-district/23UB,Cheltenham Borough Council,442925,651,JASON R C BAYLISS,C-C22120-1804,Sports & Open S-RM-External structures,23-Feb-11,180.00
http://statistics.data.gov.uk/id/local-authority-district/23UB,Cheltenham Borough Council,442918,652,JASON R C BAYLISS,C-LC6006-C401,Play Area Maint-Civil Engineering Cntrct,23-Feb-11,750.00
http://statistics.data.gov.uk/id/local-authority-district/23UB,Cheltenham Borough Council,442928,656,JASON R C BAYLISS,C-LC6006-C401,Play Area Maint-Civil Engineering Cntrct,23-Feb-11,280.00
http://statistics.data.gov.uk/id/local-authority-district/23UB,Cheltenham Borough Council,442928,656,JASON R C BAYLISS,C-LC6006-C401,Play Area Maint-Civil Engineering Cntrct,23-Feb-11,182.00
http://statistics.data.gov.uk/id/local-authority-district/23UB,Cheltenham Borough Council,442923,653,JASON R C BAYLISS,C-LC6006-C401,Play Area Maint-Civil Engineering Cntrct,23-Feb-11,800.00
http://statistics.data.gov.uk/id/local-authority-district/23UB,Cheltenham Borough Council,442923,653,JASON R C BAYLISS,C-LC6006-C401,Play Area Maint-Civil Engineering Cntrct,23-Feb-11,450.00
http://statistics.data.gov.uk/id/local-authority-district/23UB,Cheltenham Borough Council,442928,656,JASON R C BAYLISS,C-LC6006-C401,Play Area Maint-Civil Engineering Cntrct,23-Feb-11,161.00
http://statistics.data.gov.uk/id/local-authority-district/23UB,Cheltenham Borough Council,442929,655,JASON R C BAYLISS,C-LC6006-C401,Play Area Maint-Civil Engineering Cntrct,23-Feb-11,500.00
http://statistics.data.gov.uk/id/local-authority-district/23UB,Cheltenham Borough Council,442930,654,JASON R C BAYLISS,C-LC6006-C601,Play Area Maint-Equipment,23-Feb-11,220.00
http://statistics.data.gov.uk/id/local-authority-district/23UB,Cheltenham Borough Council,442930,654,JASON R C BAYLISS,C-LC6006-C601,Play Area Maint-Equipment,23-Feb-11,"1,875.00"
http://statistics.data.gov.uk/id/local-authority-district/23UB,Cheltenham Borough Council,442930,654,JASON R C BAYLISS,C-LC6006-C601,Play Area Maint-Equipment,23-Feb-11,"1,100.00"
http://statistics.data.gov.uk/id/local-authority-district/23UB,Cheltenham Borough Council,442930,654,JASON R C BAYLISS,C-LC6006-C601,Play Area Maint-Equipment,23-Feb-11,950.00
http://statistics.data.gov.uk/id/local-authority-district/23UB,Cheltenham Borough Council,442930,654,JASON R C BAYLISS,C-LC6006-C601,Play Area Maint-Equipment,23-Feb-11,"1,250.00"
http://statistics.data.gov.uk/id/local-authority-district/23UB,Cheltenham Borough Council,442918,652,JASON R C BAYLISS,C-N11250-9227,Excluded,23-Feb-11,-110.20
http://statistics.data.gov.uk/id/local-authority-district/23UB,Cheltenham Borough Council,442925,651,JASON R C BAYLISS,C-N11250-9227,Excluded,23-Feb-11,-69.80
http://statistics.data.gov.uk/id/local-authority-district/23UB,Cheltenham Borough Council,442929,655,JASON R C BAYLISS,C-N11250-9227,Excluded,23-Feb-11,-74.40
http://statistics.data.gov.uk/id/local-authority-district/23UB,Cheltenham Borough Council,442930,654,JASON R C BAYLISS,C-N11250-9227,Excluded,23-Feb-11,-869.20
http://statistics.data.gov.uk/id/local-authority-district/23UB,Cheltenham Borough Council,442928,656,JASON R C BAYLISS,C-N11250-9227,Excluded,23-Feb-11,-119.60
http://statistics.data.gov.uk/id/local-authority-district/23UB,Cheltenham Borough Council,442923,653,JASON R C BAYLISS,C-N11250-9227,Excluded,23-Feb-11,-204.80
http://statistics.data.gov.uk/id/local-authority-district/23UB,Cheltenham Borough Council,442920,650,JASON R C BAYLISS,C-LC6006-C401,Play Area Maint-Civil Engineering Cntrct,25-Feb-11,"2,540.00"
http://statistics.data.gov.uk/id/local-authority-district/23UB,Cheltenham Borough Council,442919,649,JASON R C BAYLISS,C-LC6006-C401,Play Area Maint-Civil Engineering Cntrct,25-Feb-11,"1,932.00"
http://statistics.data.gov.uk/id/local-authority-district/23UB,Cheltenham Borough Council,442919,649,JASON R C BAYLISS,C-N11250-9227,Excluded,25-Feb-11,-381.40
http://statistics.data.gov.uk/id/local-authority-district/23UB,Cheltenham Borough Council,442920,650,JASON R C BAYLISS,C-N11250-9227,Excluded,25-Feb-11,-466.00
http://statistics.data.gov.uk/id/local-authority-district/23UB,Cheltenham Borough Council,442672,3468,BEAM CONSTRUCTION LTD,C-PM0030-R041,Pitt.Pump Room-Floor Repairs,18-Feb-11,"1,880.00"
http://statistics.data.gov.uk/id/local-authority-district/23UB,Cheltenham Borough Council,441605,REFUND,REDACTED,C-B52300-8412,Bldg Control-B.C.fees-Building Notices,04-Feb-11,677.54
http://statistics.data.gov.uk/id/local-authority-district/23UB,Cheltenham Borough Council,442009,31,BEST OF CHELTENHAM LTD,C-L11500-3401,Rec Facilities-Printing - general,11-Feb-11,184.00
http://statistics.data.gov.uk/id/local-authority-district/23UB,Cheltenham Borough Council,442009,31,BEST OF CHELTENHAM LTD,C-L11500-3401,Rec Facilities-Printing - general,11-Feb-11,184.00
http://statistics.data.gov.uk/id/local-authority-district/23UB,Cheltenham Borough Council,442009,31,BEST OF CHELTENHAM LTD,C-L11500-3401,Rec Facilities-Printing - general,11-Feb-11,367.00
http://statistics.data.gov.uk/id/local-authority-district/23UB,Cheltenham Borough Council,442009,31,BEST OF CHELTENHAM LTD,C-L11500-3401,Rec Facilities-Printing - general,11-Feb-11,184.00
http://statistics.data.gov.uk/id/local-authority-district/23UB,Cheltenham Borough Council,442030,22675,BPF INSTRUMENTS LTD,C-D13120-3636,Mail Room-Area Offs Courier Service,11-Feb-11,330.00
http://statistics.data.gov.uk/id/local-authority-district/23UB,Cheltenham Borough Council,442030,22675,BPF INSTRUMENTS LTD,C-D21100-3501,Dem Process-Hire of outside services,11-Feb-11,49.20
http://statistics.data.gov.uk/id/local-authority-district/23UB,Cheltenham Borough Council,442030,22675,BPF INSTRUMENTS LTD,C-E72500-3501,Built Env Div-Hire of outside services,11-Feb-11,106.60
http://statistics.data.gov.uk/id/local-authority-district/23UB,Cheltenham Borough Council,442030,22675,BPF INSTRUMENTS LTD,C-H22300-3877,Housing Grants-Grants - One-Stop-Shop,11-Feb-11,33.60
http://statistics.data.gov.uk/id/local-authority-district/23UB,Cheltenham Borough Council,442071,22672,BPF INSTRUMENTS LTD,C-L41100-3539,AG & M-Educ-outreach subn serv,11-Feb-11,9.70
http://statistics.data.gov.uk/id/local-authority-district/23UB,Cheltenham Borough Council,442030,22675,BPF INSTRUMENTS LTD,C-Z16500-3501,CBH Holding Acc-Hire of outside services,11-Feb-11,33.60
http://statistics.data.gov.uk/id/local-authority-district/23UB,Cheltenham Borough Council,441549,210163,BHGS LTD,C-C22140-3127,Nursery-Materials-Bedding,04-Feb-11,"1,076.83"
http://statistics.data.gov.uk/id/local-authority-district/23UB,Cheltenham Borough Council,441867,2249,REX BISHOP AND SON,C-H44075-1104,Asbestos-Council House repairs,11-Feb-11,560.00
http://statistics.data.gov.uk/id/local-authority-district/23UB,Cheltenham Borough Council,443162,2309,REX BISHOP AND SON,C-H44075-1104,Asbestos-Council House repairs,25-Feb-11,255.00
http://statistics.data.gov.uk/id/local-authority-district/23UB,Cheltenham Borough Council,443172,2308,REX BISHOP AND SON,C-H44075-1104,Asbestos-Council House repairs,25-Feb-11,"1,130.00"
http://statistics.data.gov.uk/id/local-authority-district/23UB,Cheltenham Borough Council,441639,754,BLONDE SHEEP EVENTS,C-0T02H1-3568,Artist Fees,04-Feb-11,"3,776.14"
http://statistics.data.gov.uk/id/local-authority-district/23UB,Cheltenham Borough Council,441639,754,BLONDE SHEEP EVENTS,C-N13125-9205,ASH Ledger-Town Hall Invoices Paid,04-Feb-11,-344.80
http://statistics.data.gov.uk/id/local-authority-district/23UB,Cheltenham Borough Council,441638,APPEARANCES,MAGGIE BOYLE,C-0T70L0-3568,Folk Festival-Artist Fees,04-Feb-11,600.00
http://statistics.data.gov.uk/id/local-authority-district/23UB,Cheltenham Borough Council,441566,618193,BRENNTAG UK,C-L11500-1714,Rec Facilities-Chemicals,04-Feb-11,610.75
http://statistics.data.gov.uk/id/local-authority-district/23UB,Cheltenham Borough Council,441566,618193,BRENNTAG UK,C-L11500-1714,Rec Facilities-Chemicals,04-Feb-11,11.00
http://statistics.data.gov.uk/id/local-authority-district/23UB,Cheltenham Borough Council,441537,121-001381,L G BROWN ASSOCIATES,C-E21100-3401,Car Prks-Off St-Printing - general,04-Feb-11,"2,923.20"
http://statistics.data.gov.uk/id/local-authority-district/23UB,Cheltenham Borough Council,442910,136954,B S MOWERS LTD,C-C24100-3582,Fleet Maint-DSO Invoices,23-Feb-11,892.47
http://statistics.data.gov.uk/id/local-authority-district/23UB,Cheltenham Borough Council,442941,131538,BULRUSH PEAT COMPANY LTD,C-C22140-3127,Nursery-Materials-Bedding,23-Feb-11,"3,507.20"
http://statistics.data.gov.uk/id/local-authority-district/23UB,Cheltenham Borough Council,442941,131538,BULRUSH PEAT COMPANY LTD,C-C22140-3127,Nursery-Materials-Bedding,23-Feb-11,528.75
http://statistics.data.gov.uk/id/local-authority-district/23UB,Cheltenham Borough Council,443122,SETTLEMENT,VERITY BUTLER,C-N13125-9206,ASH Ledger-PPR Invoices Paid,23-Feb-11,-290.97
http://statistics.data.gov.uk/id/local-authority-district/23UB,Cheltenham Borough Council,443122,SETTLEMENT,VERITY BUTLER,C-Z12210-9137,Box Off A/C-PPR Hirers Tkt Pd out,23-Feb-11,829.00
http://statistics.data.gov.uk/id/local-authority-district/23UB,Cheltenham Borough Council,441872,4282,C AND R DECORATORS,C-H4201G-1104,Gen Wks 2201-Council House repairs,11-Feb-11,"1,196.98"
http://statistics.data.gov.uk/id/local-authority-district/23UB,Cheltenham Borough Council,441869,4277,C AND R DECORATORS,C-H4213G-1104,Gen Wks 2213-Council House repairs,11-Feb-11,170.09
http://statistics.data.gov.uk/id/local-authority-district/23UB,Cheltenham Borough Council,441870,4278,C AND R DECORATORS,C-H4213G-1104,Gen Wks 2213-Council House repairs,11-Feb-11,"1,991.79"
http://statistics.data.gov.uk/id/local-authority-district/23UB,Cheltenham Borough Council,441871,4275,C AND R DECORATORS,C-H4213G-1104,Gen Wks 2213-Council House repairs,11-Feb-11,"1,460.00"
http://statistics.data.gov.uk/id/local-authority-district/23UB,Cheltenham Borough Council,441868,4269,C AND R DECORATORS,C-HC4066-C302,Misc Works-Building Contractor,11-Feb-11,"3,153.83"
http://statistics.data.gov.uk/id/local-authority-district/23UB,Cheltenham Borough Council,442327,4284,C AND R DECORATORS,C-H4203G-1104,Gen Wks 2203-Council House repairs,18-Feb-11,423.98
http://statistics.data.gov.uk/id/local-authority-district/23UB,Cheltenham Borough Council,442329,4281,C AND R DECORATORS,C-H4213G-1104,Gen Wks 2213-Council House repairs,18-Feb-11,"1,984.00"
http://statistics.data.gov.uk/id/local-authority-district/23UB,Cheltenham Borough Council,442331,4287,C AND R DECORATORS,C-H4213V-1104,Voids 2213-Council House repairs,18-Feb-11,265.31
http://statistics.data.gov.uk/id/local-authority-district/23UB,Cheltenham Borough Council,442332,4272,C AND R DECORATORS,C-H4213V-1104,Voids 2213-Council House repairs,18-Feb-11,"1,300.00"
http://statistics.data.gov.uk/id/local-authority-district/23UB,Cheltenham Borough Council,442334,4289,C AND R DECORATORS,C-H4213V-1104,Voids 2213-Council House repairs,18-Feb-11,156.60
http://statistics.data.gov.uk/id/local-authority-district/23UB,Cheltenham Borough Council,442335,4276,C AND R DECORATORS,C-H4213V-1104,Voids 2213-Council House repairs,18-Feb-11,"1,220.00"
http://statistics.data.gov.uk/id/local-authority-district/23UB,Cheltenham Borough Council,442338,4229,C AND R DECORATORS,C-H4213V-1104,Voids 2213-Council House repairs,18-Feb-11,"1,721.60"
http://statistics.data.gov.uk/id/local-authority-district/23UB,Cheltenham Borough Council,442333,4271,C AND R DECORATORS,C-H4214V-1104,Voids 2214-Council House repairs,18-Feb-11,"1,050.00"
http://statistics.data.gov.uk/id/local-authority-district/23UB,Cheltenham Borough Council,442337,4288,C AND R DECORATORS,C-H4214V-1104,Voids 2214-Council House repairs,18-Feb-11,710.63
http://statistics.data.gov.uk/id/local-authority-district/23UB,Cheltenham Borough Council,442339,4227,C AND R DECORATORS,C-H4214V-1104,Voids 2214-Council House repairs,18-Feb-11,203.40
http://statistics.data.gov.uk/id/local-authority-district/23UB,Cheltenham Borough Council,442336,4286,C AND R DECORATORS,C-H4214V-1104,Voids 2214-Council House repairs,18-Feb-11,622.49
http://statistics.data.gov.uk/id/local-authority-district/23UB,Cheltenham Borough Council,442200,4274,C AND R DECORATORS,C-H44752-1104,Dis Adapts-Tech-Council House repairs,18-Feb-11,476.47
http://statistics.data.gov.uk/id/local-authority-district/23UB,Cheltenham Borough Council,442674,4269a,C AND R DECORATORS,C-HC4053-C302,Internal Imp-Building Contractor,18-Feb-11,"2,712.58"
http://statistics.data.gov.uk/id/local-authority-district/23UB,Cheltenham Borough Council,442673,4230,C AND R DECORATORS,C-HC4063-C302,Lift Refurb-Building Contractor,18-Feb-11,"6,459.60"
http://statistics.data.gov.uk/id/local-authority-district/23UB,Cheltenham Borough Council,442199,4268,C AND R DECORATORS,C-HC4066-C302,Misc Works-Building Contractor,18-Feb-11,"1,033.83"
http://statistics.data.gov.uk/id/local-authority-district/23UB,Cheltenham Borough Council,442340,4283,C AND R DECORATORS,C-HC4757-C302,Canberra/Aust-Building Contractor,18-Feb-11,"1,196.97"
http://statistics.data.gov.uk/id/local-authority-district/23UB,Cheltenham Borough Council,441873,H4213G1104/8753,CAUDLE ROOFING,C-H4213G-1104,Gen Wks 2213-Council House repairs,11-Feb-11,100.00
http://statistics.data.gov.uk/id/local-authority-district/23UB,Cheltenham Borough Council,441874,876365,CAUDLE ROOFING,C-H4214G-1104,Gen Wks 2214-Council House repairs,11-Feb-11,"1,000.00"
http://statistics.data.gov.uk/id/local-authority-district/23UB,Cheltenham Borough Council,441875,875674,CAUDLE ROOFING,C-H4214G-1104,Gen Wks 2214-Council House repairs,11-Feb-11,400.00
http://statistics.data.gov.uk/id/local-authority-district/23UB,Cheltenham Borough Council,441875,875674,CAUDLE ROOFING,C-N11250-9227,Excluded,11-Feb-11,-30.00
http://statistics.data.gov.uk/id/local-authority-district/23UB,Cheltenham Borough Council,441874,876365,CAUDLE ROOFING,C-N11250-9227,Excluded,11-Feb-11,-60.00
http://statistics.data.gov.uk/id/local-authority-district/23UB,Cheltenham Borough Council,441873,H4213G1104/8753,CAUDLE ROOFING,C-N11250-9227,Excluded,11-Feb-11,-20.00
http://statistics.data.gov.uk/id/local-authority-district/23UB,Cheltenham Borough Council,441436,HC5980,CHAMBERS MANAGEMENT CLIENT ACCOUNT,C-0T09K1-3568,Artist Fees            ,04-Feb-11,"15,572.88"
http://statistics.data.gov.uk/id/local-authority-district/23UB,Cheltenham Borough Council,441436,HC5980,CHAMBERS MANAGEMENT CLIENT ACCOUNT,C-0T09K1-3568,Artist Fees            ,04-Feb-11,"-12,000.00"
http://statistics.data.gov.uk/id/local-authority-district/23UB,Cheltenham Borough Council,441437,HC5957,CHAMBERS MANAGEMENT CLIENT ACCOUNT,C-0T12J1-3568,Artist Fees,04-Feb-11,"6,253.60"
http://statistics.data.gov.uk/id/local-authority-district/23UB,Cheltenham Borough Council,442106,SETTLEMENT,CHELTENHAM SYMPHONY ORCHESTRA,C-N13125-9206,ASH Ledger-PPR Invoices Paid,11-Feb-11,-722.60
http://statistics.data.gov.uk/id/local-authority-district/23UB,Cheltenham Borough Council,442106,SETTLEMENT,CHELTENHAM SYMPHONY ORCHESTRA,C-Z12210-9137,Box Off A/C-PPR Hirers Tkt Pd out,11-Feb-11,"1,971.50"
http://statistics.data.gov.uk/id/local-authority-district/23UB,Cheltenham Borough Council,442102,SETTLEMENT,CHELTENHAM MUSIC SOCIETY,C-N13125-9206,ASH Ledger-PPR Invoices Paid,11-Feb-11,-835.90
http://statistics.data.gov.uk/id/local-authority-district/23UB,Cheltenham Borough Council,442102,SETTLEMENT,CHELTENHAM MUSIC SOCIETY,C-Z12210-9137,Box Off A/C-PPR Hirers Tkt Pd out,11-Feb-11,"3,570.00"
http://statistics.data.gov.uk/id/local-authority-district/23UB,Cheltenham Borough Council,442102,SETTLEMENT,CHELTENHAM MUSIC SOCIETY,C-Z12210-9276,Box Off A/C-Hirers Invoices Pd,11-Feb-11,"-2,204.00"
http://statistics.data.gov.uk/id/local-authority-district/23UB,Cheltenham Borough Council,443036,JAN11/030,CHELTENHAM DIRECTORIES,C-L17500-3406,Healthy Lifesty-Printing-Promotion/Mktin,23-Feb-11,856.80
http://statistics.data.gov.uk/id/local-authority-district/23UB,Cheltenham Borough Council,441597,MONTH 10,CHILD SUPPORT AGENCY,C-S31400-9150,Other Deds Cntr-Payroll Schedules,04-Feb-11,"1,939.92"
http://statistics.data.gov.uk/id/local-authority-district/23UB,Cheltenham Borough Council,441753,10/11CBC-2,CHINESE CHILDREN & PARENTS ASSOCIATION,C-Z13300-3501,LAA - BSC Rev-Hire of outside services,11-Feb-11,500.00
http://statistics.data.gov.uk/id/local-authority-district/23UB,Cheltenham Borough Council,442715,2573675,CHUBB ELECTRONIC SECURITY SYSTEMS LTD,C-L21200-1114,Pump Room-Security systems,18-Feb-11,"1,022.91"
http://statistics.data.gov.uk/id/local-authority-district/23UB,Cheltenham Borough Council,442732,3041026,CIPFA BUSINESS LTD,C-D11300-3411,Accountancy-Profl books & magazines,18-Feb-11,80.00
http://statistics.data.gov.uk/id/local-authority-district/23UB,Cheltenham Borough Council,442731,304078,CIPFA BUSINESS LTD,C-D11400-3411,Audit & Assrnce-Profl books & magazines,18-Feb-11,660.00
http://statistics.data.gov.uk/id/local-authority-district/23UB,Cheltenham Borough Council,443109,COH 20088,CIRCUS OF HORRORS LIMITED,C-0T04M1-3568,Circus Horrors-Artist Fees,23-Feb-11,"1,500.00"
http://statistics.data.gov.uk/id/local-authority-district/23UB,Cheltenham Borough Council,441876,393461,CLEARWATER TECHNOLOGY LTD,C-H46450-1104,Legionella T&M-Council House repairs,11-Feb-11,450.00,
http://statistics.data.gov.uk/id/local-authority-district/23UB,Cheltenham Borough Council,441877,393462,CLEARWATER TECHNOLOGY LTD,C-H46450-1104,Legionella T&M-Council House repairs,11-Feb-11,450.00,
http://statistics.data.gov.uk/id/local-authority-district/23UB,Cheltenham Borough Council,443221,REDACTED,REDACTED,C-P12250-9104,Tenants Rent Refund,25-Feb-11,627.20,
http://statistics.data.gov.uk/id/local-authority-district/23UB,Cheltenham Borough Council,441572,7351008,COMPUTACENTER UK LIMITED,C-D11820-3660,IT Infrastructu-Hardware PC & Servers,04-Feb-11,38.90,
http://statistics.data.gov.uk/id/local-authority-district/23UB,Cheltenham Borough Council,441532,7344701,COMPUTACENTER UK LIMITED,C-DC3213-C101,Storage Area-Project Est for this Year,04-Feb-11,375.89,
http://statistics.data.gov.uk/id/local-authority-district/23UB,Cheltenham Borough Council,441533,342517,COMPUTACENTER UK LIMITED,C-DC3213-C101,Storage Area-Project Est for this Year,04-Feb-11,212.66,
http://statistics.data.gov.uk/id/local-authority-district/23UB,Cheltenham Borough Council,441535,7343059,COMPUTACENTER UK LIMITED,C-DC3213-C101,Storage Area-Project Est for this Year,04-Feb-11,520.66,
http://statistics.data.gov.uk/id/local-authority-district/23UB,Cheltenham Borough Council,442056,7357134,COMPUTACENTER UK LIMITED,C-D11820-3660,IT Infrastructu-Hardware PC & Servers,11-Feb-11,36.60,
http://statistics.data.gov.uk/id/local-authority-district/23UB,Cheltenham Borough Council,442055,7344434,COMPUTACENTER UK LIMITED,C-GCERP-3623,GO Capital Cost-Cmpter-sftwre lic purch   ,11-Feb-11,"13,167.84",
http://statistics.data.gov.uk/id/local-authority-district/23UB,Cheltenham Borough Council,442055,7344434,COMPUTACENTER UK LIMITED,C-GCERP-3623,GO Capital Cost-Cmpter-sftwre lic purch   ,11-Feb-11,"8,831.04",
http://statistics.data.gov.uk/id/local-authority-district/23UB,Cheltenham Borough Council,442055,7344434,COMPUTACENTER UK LIMITED,C-GCERP-3623,GO Capital Cost-Cmpter-sftwre lic purch   ,11-Feb-11,324.84,
http://statistics.data.gov.uk/id/local-authority-district/23UB,Cheltenham Borough Council,442055,7344434,COMPUTACENTER UK LIMITED,C-GCERP-3623,GO Capital Cost-Cmpter-sftwre lic purch   ,11-Feb-11,336.48,
http://statistics.data.gov.uk/id/local-authority-district/23UB,Cheltenham Borough Council,442055,7344434,COMPUTACENTER UK LIMITED,C-GCERP-3623,GO Capital Cost-Cmpter-sftwre lic purch   ,11-Feb-11,"23,735.64",
http://statistics.data.gov.uk/id/local-authority-district/23UB,Cheltenham Borough Council,442055,7344434,COMPUTACENTER UK LIMITED,C-GCERP-3623,GO Capital Cost-Cmpter-sftwre lic purch   ,11-Feb-11,"4,303.44",
http://statistics.data.gov.uk/id/local-authority-district/23UB,Cheltenham Borough Council,442055,7344434,COMPUTACENTER UK LIMITED,C-GCERP-3623,GO Capital Cost-Cmpter-sftwre lic purch   ,11-Feb-11,336.48,
http://statistics.data.gov.uk/id/local-authority-district/23UB,Cheltenham Borough Council,442055,7344434,COMPUTACENTER UK LIMITED,C-GCERP-3623,GO Capital Cost-Cmpter-sftwre lic purch   ,11-Feb-11,"5,437.68",
http://statistics.data.gov.uk/id/local-authority-district/23UB,Cheltenham Borough Council,442055,7344434,COMPUTACENTER UK LIMITED,C-GCERP-3623,GO Capital Cost-Cmpter-sftwre lic purch   ,11-Feb-11,"1,868.16"
http://statistics.data.gov.uk/id/local-authority-district/23UB,Cheltenham Borough Council,442054,7278140,COMPUTACENTER UK LIMITED,C-L41100-3599,AG & M-Special Project,11-Feb-11,"2,183.70"
http://statistics.data.gov.uk/id/local-authority-district/23UB,Cheltenham Borough Council,442541,7354898,COMPUTACENTER UK LIMITED,C-D11820-3660,IT Infrastructu-Hardware PC & Servers,18-Feb-11,"2,081.90"
http://statistics.data.gov.uk/id/local-authority-district/23UB,Cheltenham Borough Council,442541,7354898,COMPUTACENTER UK LIMITED,C-D11820-3660,IT Infrastructu-Hardware PC & Servers,18-Feb-11,102.70
http://statistics.data.gov.uk/id/local-authority-district/23UB,Cheltenham Borough Council,441461,10215,COMPLETE CLIMATE SOLUTIONS LIMITED,C-C22120-1811,Sports & Open S-RM-Plan.& Prev.Mech.Ctrc,04-Feb-11,313.02
http://statistics.data.gov.uk/id/local-authority-district/23UB,Cheltenham Borough Council,441463,10218,COMPLETE CLIMATE SOLUTIONS LIMITED,C-C22140-1811,Nursery-RM-Plan.& Prev.Mech.Ctrct,04-Feb-11,587.32
http://statistics.data.gov.uk/id/local-authority-district/23UB,Cheltenham Borough Council,441462,10216,COMPLETE CLIMATE SOLUTIONS LIMITED,C-D13550-1811,Area Off -E.Hse-RM-Plan.& Prev.Mech.Ctrc,04-Feb-11,107.67
http://statistics.data.gov.uk/id/local-authority-district/23UB,Cheltenham Borough Council,441470,10214,COMPLETE CLIMATE SOLUTIONS LIMITED,C-D14100-1811,Depot Building-RM-Plan.& Prev.Mech.Ctrct,04-Feb-11,"1,598.94"
http://statistics.data.gov.uk/id/local-authority-district/23UB,Cheltenham Borough Council,441471,10217,COMPLETE CLIMATE SOLUTIONS LIMITED,C-E21100-1811,Car Prks-Off St-RM-Plan.& Prev.Mech.Ctrc   ,04-Feb-11,150.71
http://statistics.data.gov.uk/id/local-authority-district/23UB,Cheltenham Borough Council,441439,10213,COMPLETE CLIMATE SOLUTIONS LIMITED,C-L11500-1811,Rec Facilities-RM-Plan.& Prev.Mech.Ctrct,04-Feb-11,503.17
http://statistics.data.gov.uk/id/local-authority-district/23UB,Cheltenham Borough Council,441438,10212,COMPLETE CLIMATE SOLUTIONS LIMITED,C-L41100-1811,AG & M-RM-Plan.& Prev.Mech.Ctrct,04-Feb-11,34.13
http://statistics.data.gov.uk/id/local-authority-district/23UB,Cheltenham Borough Council,441463,10218,COMPLETE CLIMATE SOLUTIONS LIMITED,C-N11250-9227,Excluded,04-Feb-11,-12.68
http://statistics.data.gov.uk/id/local-authority-district/23UB,Cheltenham Borough Council,441470,10214,COMPLETE CLIMATE SOLUTIONS LIMITED,C-N11250-9227,Excluded,04-Feb-11,-21.58
http://statistics.data.gov.uk/id/local-authority-district/23UB,Cheltenham Borough Council,441471,10217,COMPLETE CLIMATE SOLUTIONS LIMITED,C-N11250-9227,Excluded,04-Feb-11,-9.75
http://statistics.data.gov.uk/id/local-authority-district/23UB,Cheltenham Borough Council,441439,10213,COMPLETE CLIMATE SOLUTIONS LIMITED,C-N11250-9227,Excluded,04-Feb-11,-100.63
http://statistics.data.gov.uk/id/local-authority-district/23UB,Cheltenham Borough Council,441462,10216,COMPLETE CLIMATE SOLUTIONS LIMITED,C-N11250-9227,Excluded,04-Feb-11,-14.63
http://statistics.data.gov.uk/id/local-authority-district/23UB,Cheltenham Borough Council,441461,10215,COMPLETE CLIMATE SOLUTIONS LIMITED,C-N11250-9227,Excluded,04-Feb-11,-27.50
http://statistics.data.gov.uk/id/local-authority-district/23UB,Cheltenham Borough Council,441438,10212,COMPLETE CLIMATE SOLUTIONS LIMITED,C-N11250-9227,Excluded,04-Feb-11,-6.83
http://statistics.data.gov.uk/id/local-authority-district/23UB,Cheltenham Borough Council,442089,10220,COMPLETE CLIMATE SOLUTIONS LIMITED,C-D13100-1123,Muni Off Blgs-M&E Planned & Preventative,11-Feb-11,"2,700.00"
http://statistics.data.gov.uk/id/local-authority-district/23UB,Cheltenham Borough Council,441804,10211,COMPLETE CLIMATE SOLUTIONS LIMITED,C-D13100-1811,Muni Off Blgs-RM-Plan.& Prev.Mech.Ctrct,11-Feb-11,79.79
http://statistics.data.gov.uk/id/local-authority-district/23UB,Cheltenham Borough Council,441808,10170,COMPLETE CLIMATE SOLUTIONS LIMITED,C-D13100-1811,Muni Off Blgs-RM-Plan.& Prev.Mech.Ctrct,11-Feb-11,328.03
http://statistics.data.gov.uk/id/local-authority-district/23UB,Cheltenham Borough Council,441805,10196,COMPLETE CLIMATE SOLUTIONS LIMITED,C-L11500-1811,Rec Facilities-RM-Plan.& Prev.Mech.Ctrct,11-Feb-11,167.31
http://statistics.data.gov.uk/id/local-authority-district/23UB,Cheltenham Borough Council,441807,10178,COMPLETE CLIMATE SOLUTIONS LIMITED,C-L11500-1811,Rec Facilities-RM-Plan.& Prev.Mech.Ctrct,11-Feb-11,682.31
http://statistics.data.gov.uk/id/local-authority-district/23UB,Cheltenham Borough Council,441806,10181,COMPLETE CLIMATE SOLUTIONS LIMITED,C-L21100-1811,Town Hall-RM-Plan.& Prev.Mech.Ctrct,11-Feb-11,43.75
http://statistics.data.gov.uk/id/local-authority-district/23UB,Cheltenham Borough Council,441807,10178,COMPLETE CLIMATE SOLUTIONS LIMITED,C-N11250-9227,Excluded,11-Feb-11,-49.73
http://statistics.data.gov.uk/id/local-authority-district/23UB,Cheltenham Borough Council,441806,10181,COMPLETE CLIMATE SOLUTIONS LIMITED,C-N11250-9227,Excluded,11-Feb-11,-7.50
http://statistics.data.gov.uk/id/local-authority-district/23UB,Cheltenham Borough Council,441805,10196,COMPLETE CLIMATE SOLUTIONS LIMITED,C-N11250-9227,Excluded,11-Feb-11,-15.60
http://statistics.data.gov.uk/id/local-authority-district/23UB,Cheltenham Borough Council,441804,10211,COMPLETE CLIMATE SOLUTIONS LIMITED,C-N11250-9227,Excluded,11-Feb-11,-13.65
http://statistics.data.gov.uk/id/local-authority-district/23UB,Cheltenham Borough Council,441808,10170,COMPLETE CLIMATE SOLUTIONS LIMITED,C-N11250-9227,Excluded,11-Feb-11,-39.00
http://statistics.data.gov.uk/id/local-authority-district/23UB,Cheltenham Borough Council,441825,1499,COMMERCIAL MOWER SUPPLIES,C-C24100-3582,Fleet Maint-DSO Invoices,11-Feb-11,575.79
http://statistics.data.gov.uk/id/local-authority-district/23UB,Cheltenham Borough Council,442477,1500,COMMERCIAL MOWER SUPPLIES,C-C24100-3582,Fleet Maint-DSO Invoices,18-Feb-11,712.02
http://statistics.data.gov.uk/id/local-authority-district/23UB,Cheltenham Borough Council,443089,503231,COMENSURA LIMITED,C-C22100-0115,Green Env Div-Temporary Agency Staff,23-Feb-11,279.20
http://statistics.data.gov.uk/id/local-authority-district/23UB,Cheltenham Borough Council,443111,503429,COMENSURA LIMITED,C-C22100-0115,Green Env Div-Temporary Agency Staff,23-Feb-11,279.20
http://statistics.data.gov.uk/id/local-authority-district/23UB,Cheltenham Borough Council,443089,503231,COMENSURA LIMITED,C-C22100-0115,Green Env Div-Temporary Agency Staff,23-Feb-11,209.40
http://statistics.data.gov.uk/id/local-authority-district/23UB,Cheltenham Borough Council,443089,503231,COMENSURA LIMITED,C-C22110-0115,Parks & Gardens-Temporary Agency Staff,23-Feb-11,624.02
http://statistics.data.gov.uk/id/local-authority-district/23UB,Cheltenham Borough Council,443111,503429,COMENSURA LIMITED,C-C22110-0115,Parks & Gardens-Temporary Agency Staff,23-Feb-11,624.02
http://statistics.data.gov.uk/id/local-authority-district/23UB,Cheltenham Borough Council,443089,503231,COMENSURA LIMITED,C-C23100-0115,Refuse Collection-Temporary Agency Staff,23-Feb-11,253.80
http://statistics.data.gov.uk/id/local-authority-district/23UB,Cheltenham Borough Council,443111,503429,COMENSURA LIMITED,C-C23100-0115,Refuse Collection-Temporary Agency Staff,23-Feb-11,283.41
http://statistics.data.gov.uk/id/local-authority-district/23UB,Cheltenham Borough Council,443111,503429,COMENSURA LIMITED,C-C23100-0115,Refuse Collection-Temporary Agency Staff,23-Feb-11,485.20
http://statistics.data.gov.uk/id/local-authority-district/23UB,Cheltenham Borough Council,443111,503429,COMENSURA LIMITED,C-C23100-0115,Refuse Collection-Temporary Agency Staff,23-Feb-11,50.76
http://statistics.data.gov.uk/id/local-authority-district/23UB,Cheltenham Borough Council,443111,503429,COMENSURA LIMITED,C-C23100-0115,Refuse Collection-Temporary Agency Staff,23-Feb-11,530.69
http://statistics.data.gov.uk/id/local-authority-district/23UB,Cheltenham Borough Council,443111,503429,COMENSURA LIMITED,C-C23100-0115,Refuse Collection-Temporary Agency Staff,23-Feb-11,152.28
http://statistics.data.gov.uk/id/local-authority-district/23UB,Cheltenham Borough Council,443111,503429,COMENSURA LIMITED,C-C23100-0115,Refuse Collection-Temporary Agency Staff,23-Feb-11,247.45
http://statistics.data.gov.uk/id/local-authority-district/23UB,Cheltenham Borough Council,443111,503429,COMENSURA LIMITED,C-C23100-0115,Refuse Collection-Temporary Agency Staff,23-Feb-11,515.51
http://statistics.data.gov.uk/id/local-authority-district/23UB,Cheltenham Borough Council,443111,503429,COMENSURA LIMITED,C-C23100-0115,Refuse Collection-Temporary Agency Staff,23-Feb-11,211.50
http://statistics.data.gov.uk/id/local-authority-district/23UB,Cheltenham Borough Council,443111,503429,COMENSURA LIMITED,C-C23100-0115,Refuse Collection-Temporary Agency Staff,23-Feb-11,300.33
http://statistics.data.gov.uk/id/local-authority-district/23UB,Cheltenham Borough Council,443111,503429,COMENSURA LIMITED,C-C23100-0115,Refuse Collection-Temporary Agency Staff,23-Feb-11,291.12
http://statistics.data.gov.uk/id/local-authority-district/23UB,Cheltenham Borough Council,443111,503429,COMENSURA LIMITED,C-C23100-0115,Refuse Collection-Temporary Agency Staff,23-Feb-11,186.12
http://statistics.data.gov.uk/id/local-authority-district/23UB,Cheltenham Borough Council,443111,503429,COMENSURA LIMITED,C-C23100-0115,Refuse Collection-Temporary Agency Staff,23-Feb-11,338.40
http://statistics.data.gov.uk/id/local-authority-district/23UB,Cheltenham Borough Council,443111,503429,COMENSURA LIMITED,C-C23100-0115,Refuse Collection-Temporary Agency Staff,23-Feb-11,313.02
http://statistics.data.gov.uk/id/local-authority-district/23UB,Cheltenham Borough Council,443089,503231,COMENSURA LIMITED,C-C23100-0115,Refuse Collection-Temporary Agency Staff,23-Feb-11,67.68
http://statistics.data.gov.uk/id/local-authority-district/23UB,Cheltenham Borough Council,443089,503231,COMENSURA LIMITED,C-C23100-0115,Refuse Collection-Temporary Agency Staff,23-Feb-11,213.62
http://statistics.data.gov.uk/id/local-authority-district/23UB,Cheltenham Borough Council,443089,503231,COMENSURA LIMITED,C-C23100-0115,Refuse Collection-Temporary Agency Staff,23-Feb-11,287.64
http://statistics.data.gov.uk/id/local-authority-district/23UB,Cheltenham Borough Council,443089,503231,COMENSURA LIMITED,C-C23100-0115,Refuse Collection-Temporary Agency Staff,23-Feb-11,264.38
http://statistics.data.gov.uk/id/local-authority-district/23UB,Cheltenham Borough Council,443089,503231,COMENSURA LIMITED,C-C23100-0115,Refuse Collection-Temporary Agency Staff,23-Feb-11,114.21
http://statistics.data.gov.uk/id/local-authority-district/23UB,Cheltenham Borough Council,443089,503231,COMENSURA LIMITED,C-C23100-0115,Refuse Collection-Temporary Agency Staff,23-Feb-11,287.64
http://statistics.data.gov.uk/id/local-authority-district/23UB,Cheltenham Borough Council,443089,503231,COMENSURA LIMITED,C-C23100-0115,Refuse Collection-Temporary Agency Staff,23-Feb-11,485.20
http://statistics.data.gov.uk/id/local-authority-district/23UB,Cheltenham Borough Council,443089,503231,COMENSURA LIMITED,C-C23100-0115,Refuse Collection-Temporary Agency Staff,23-Feb-11,289.75
http://statistics.data.gov.uk/id/local-authority-district/23UB,Cheltenham Borough Council,443089,503231,COMENSURA LIMITED,C-C23100-0115,Refuse Collection-Temporary Agency Staff,23-Feb-11,296.11
http://statistics.data.gov.uk/id/local-authority-district/23UB,Cheltenham Borough Council,443089,503231,COMENSURA LIMITED,C-C23100-0115,Refuse Collection-Temporary Agency Staff,23-Feb-11,103.64
http://statistics.data.gov.uk/id/local-authority-district/23UB,Cheltenham Borough Council,443089,503231,COMENSURA LIMITED,C-C23100-0115,Refuse Collection-Temporary Agency Staff,23-Feb-11,393.31
http://statistics.data.gov.uk/id/local-authority-district/23UB,Cheltenham Borough Council,443089,503231,COMENSURA LIMITED,C-C23100-0115,Refuse Collection-Temporary Agency Staff,23-Feb-11,743.02
http://statistics.data.gov.uk/id/local-authority-district/23UB,Cheltenham Borough Council,443089,503231,COMENSURA LIMITED,C-C23110-0115,Street Cleaning-Temporary Agency Staff,23-Feb-11,376.42
http://statistics.data.gov.uk/id/local-authority-district/23UB,Cheltenham Borough Council,443111,503429,COMENSURA LIMITED,C-C23110-0115,Street Cleaning-Temporary Agency Staff,23-Feb-11,329.94
http://statistics.data.gov.uk/id/local-authority-district/23UB,Cheltenham Borough Council,443111,503429,COMENSURA LIMITED,C-C23110-0115,Street Cleaning-Temporary Agency Staff,23-Feb-11,232.65
http://statistics.data.gov.uk/id/local-authority-district/23UB,Cheltenham Borough Council,443111,503429,COMENSURA LIMITED,C-C23110-0115,Street Cleaning-Temporary Agency Staff,23-Feb-11,63.45
http://statistics.data.gov.uk/id/local-authority-district/23UB,Cheltenham Borough Council,443111,503429,COMENSURA LIMITED,C-C23110-0115,Street Cleaning-Temporary Agency Staff,23-Feb-11,63.45
http://statistics.data.gov.uk/id/local-authority-district/23UB,Cheltenham Borough Council,443111,503429,COMENSURA LIMITED,C-C23110-0115,Street Cleaning-Temporary Agency Staff,23-Feb-11,312.97
http://statistics.data.gov.uk/id/local-authority-district/23UB,Cheltenham Borough Council,443089,503231,COMENSURA LIMITED,C-C23110-0115,Street Cleaning-Temporary Agency Staff,23-Feb-11,329.94
http://statistics.data.gov.uk/id/local-authority-district/23UB,Cheltenham Borough Council,443089,503231,COMENSURA LIMITED,C-C23110-0115,Street Cleaning-Temporary Agency Staff,23-Feb-11,190.35
http://statistics.data.gov.uk/id/local-authority-district/23UB,Cheltenham Borough Council,443089,503231,COMENSURA LIMITED,C-C23110-0115,Street Cleaning-Temporary Agency Staff,23-Feb-11,63.45
http://statistics.data.gov.uk/id/local-authority-district/23UB,Cheltenham Borough Council,443111,503429,COMENSURA LIMITED,C-C23125-0115,Recyl Bring Schms-Temporary Agency Staff,23-Feb-11,291.12
http://statistics.data.gov.uk/id/local-authority-district/23UB,Cheltenham Borough Council,443089,503231,COMENSURA LIMITED,C-C23140-0115,Public Convnces-Temporary Agency Staff,23-Feb-11,109.98
http://statistics.data.gov.uk/id/local-authority-district/23UB,Cheltenham Borough Council,443089,503231,COMENSURA LIMITED,C-C23140-0115,Public Convnces-Temporary Agency Staff,23-Feb-11,602.71
http://statistics.data.gov.uk/id/local-authority-district/23UB,Cheltenham Borough Council,443089,503231,COMENSURA LIMITED,C-C23140-0115,Public Convnces-Temporary Agency Staff,23-Feb-11,50.76
http://statistics.data.gov.uk/id/local-authority-district/23UB,Cheltenham Borough Council,443111,503429,COMENSURA LIMITED,C-C23140-0115,Public Convnces-Temporary Agency Staff,23-Feb-11,450.49
http://statistics.data.gov.uk/id/local-authority-district/23UB,Cheltenham Borough Council,443111,503429,COMENSURA LIMITED,C-C23140-0115,Public Convnces-Temporary Agency Staff,23-Feb-11,42.30
http://statistics.data.gov.uk/id/local-authority-district/23UB,Cheltenham Borough Council,443111,503429,COMENSURA LIMITED,C-C23140-0115,Public Convnces-Temporary Agency Staff,23-Feb-11,152.28
http://statistics.data.gov.uk/id/local-authority-district/23UB,Cheltenham Borough Council,443089,503231,COMENSURA LIMITED,C-C23140-0115,Public Convnces-Temporary Agency Staff,23-Feb-11,46.53
http://statistics.data.gov.uk/id/local-authority-district/23UB,Cheltenham Borough Council,443089,503231,COMENSURA LIMITED,C-C23160-0115,Env Maint Div-Temporary Agency Staff,23-Feb-11,346.15
http://statistics.data.gov.uk/id/local-authority-district/23UB,Cheltenham Borough Council,443089,503231,COMENSURA LIMITED,C-C23180-0115,Rcycl Coltn Schms-Temporary Agency Staff,23-Feb-11,232.65
http://statistics.data.gov.uk/id/local-authority-district/23UB,Cheltenham Borough Council,443089,503231,COMENSURA LIMITED,C-C23180-0115,Rcycl Coltn Schms-Temporary Agency Staff,23-Feb-11,642.27
http://statistics.data.gov.uk/id/local-authority-district/23UB,Cheltenham Borough Council,443089,503231,COMENSURA LIMITED,C-C23180-0115,Rcycl Coltn Schms-Temporary Agency Staff,23-Feb-11,63.45
http://statistics.data.gov.uk/id/local-authority-district/23UB,Cheltenham Borough Council,443089,503231,COMENSURA LIMITED,C-C23180-0115,Rcycl Coltn Schms-Temporary Agency Staff,23-Feb-11,227.43
http://statistics.data.gov.uk/id/local-authority-district/23UB,Cheltenham Borough Council,443089,503231,COMENSURA LIMITED,C-C23180-0115,Rcycl Coltn Schms-Temporary Agency Staff,23-Feb-11,169.20
http://statistics.data.gov.uk/id/local-authority-district/23UB,Cheltenham Borough Council,443089,503231,COMENSURA LIMITED,C-C23180-0115,Rcycl Coltn Schms-Temporary Agency Staff,23-Feb-11,308.79
http://statistics.data.gov.uk/id/local-authority-district/23UB,Cheltenham Borough Council,443089,503231,COMENSURA LIMITED,C-C23180-0115,Rcycl Coltn Schms-Temporary Agency Staff,23-Feb-11,190.35
http://statistics.data.gov.uk/id/local-authority-district/23UB,Cheltenham Borough Council,443089,503231,COMENSURA LIMITED,C-C23180-0115,Rcycl Coltn Schms-Temporary Agency Staff,23-Feb-11,54.99
http://statistics.data.gov.uk/id/local-authority-district/23UB,Cheltenham Borough Council,443111,503429,COMENSURA LIMITED,C-C23180-0115,Rcycl Coltn Schms-Temporary Agency Staff,23-Feb-11,126.90
http://statistics.data.gov.uk/id/local-authority-district/23UB,Cheltenham Borough Council,443111,503429,COMENSURA LIMITED,C-C23180-0115,Rcycl Coltn Schms-Temporary Agency Staff,23-Feb-11,122.67
http://statistics.data.gov.uk/id/local-authority-district/23UB,Cheltenham Borough Council,443111,503429,COMENSURA LIMITED,C-C23180-0115,Rcycl Coltn Schms-Temporary Agency Staff,23-Feb-11,274.95
http://statistics.data.gov.uk/id/local-authority-district/23UB,Cheltenham Borough Council,443111,503429,COMENSURA LIMITED,C-C23180-0115,Rcycl Coltn Schms-Temporary Agency Staff,23-Feb-11,300.33
http://statistics.data.gov.uk/id/local-authority-district/23UB,Cheltenham Borough Council,443111,503429,COMENSURA LIMITED,C-C23180-0115,Rcycl Coltn Schms-Temporary Agency Staff,23-Feb-11,236.88
http://statistics.data.gov.uk/id/local-authority-district/23UB,Cheltenham Borough Council,443111,503429,COMENSURA LIMITED,C-C23180-0115,Rcycl Coltn Schms-Temporary Agency Staff,23-Feb-11,164.97
http://statistics.data.gov.uk/id/local-authority-district/23UB,Cheltenham Borough Council,443111,503429,COMENSURA LIMITED,C-C23180-0115,Rcycl Coltn Schms-Temporary Agency Staff,23-Feb-11,236.88
http://statistics.data.gov.uk/id/local-authority-district/23UB,Cheltenham Borough Council,443111,503429,COMENSURA LIMITED,C-C23180-0115,Rcycl Coltn Schms-Temporary Agency Staff,23-Feb-11,181.89
http://statistics.data.gov.uk/id/local-authority-district/23UB,Cheltenham Borough Council,443111,503429,COMENSURA LIMITED,C-C23180-0115,Rcycl Coltn Schms-Temporary Agency Staff,23-Feb-11,283.26
http://statistics.data.gov.uk/id/local-authority-district/23UB,Cheltenham Borough Council,443111,503429,COMENSURA LIMITED,C-C23180-0115,Rcycl Coltn Schms-Temporary Agency Staff,23-Feb-11,194.08
http://statistics.data.gov.uk/id/local-authority-district/23UB,Cheltenham Borough Council,443111,503429,COMENSURA LIMITED,C-C23180-0115,Rcycl Coltn Schms-Temporary Agency Staff,23-Feb-11,388.16
http://statistics.data.gov.uk/id/local-authority-district/23UB,Cheltenham Borough Council,443111,503429,COMENSURA LIMITED,C-C23180-0115,Rcycl Coltn Schms-Temporary Agency Staff,23-Feb-11,97.04
http://statistics.data.gov.uk/id/local-authority-district/23UB,Cheltenham Borough Council,443111,503429,COMENSURA LIMITED,C-C23180-0115,Rcycl Coltn Schms-Temporary Agency Staff,23-Feb-11,484.80
http://statistics.data.gov.uk/id/local-authority-district/23UB,Cheltenham Borough Council,443089,503231,COMENSURA LIMITED,C-C23180-0115,Rcycl Coltn Schms-Temporary Agency Staff,23-Feb-11,163.80
http://statistics.data.gov.uk/id/local-authority-district/23UB,Cheltenham Borough Council,443089,503231,COMENSURA LIMITED,C-C23180-0115,Rcycl Coltn Schms-Temporary Agency Staff,23-Feb-11,59.22
http://statistics.data.gov.uk/id/local-authority-district/23UB,Cheltenham Borough Council,443089,503231,COMENSURA LIMITED,C-C23180-0115,Rcycl Coltn Schms-Temporary Agency Staff,23-Feb-11,308.79
http://statistics.data.gov.uk/id/local-authority-district/23UB,Cheltenham Borough Council,443089,503231,COMENSURA LIMITED,C-C23180-0115,Rcycl Coltn Schms-Temporary Agency Staff,23-Feb-11,114.21
http://statistics.data.gov.uk/id/local-authority-district/23UB,Cheltenham Borough Council,443089,503231,COMENSURA LIMITED,C-C23180-0115,Rcycl Coltn Schms-Temporary Agency Staff,23-Feb-11,243.23
http://statistics.data.gov.uk/id/local-authority-district/23UB,Cheltenham Borough Council,443089,503231,COMENSURA LIMITED,C-C23180-0115,Rcycl Coltn Schms-Temporary Agency Staff,23-Feb-11,109.98
http://statistics.data.gov.uk/id/local-authority-district/23UB,Cheltenham Borough Council,443089,503231,COMENSURA LIMITED,C-C23180-0115,Rcycl Coltn Schms-Temporary Agency Staff,23-Feb-11,200.91
http://statistics.data.gov.uk/id/local-authority-district/23UB,Cheltenham Borough Council,443089,503231,COMENSURA LIMITED,C-C23190-0115,Garden Collectn-Temporary Agency Staff,23-Feb-11,422.92
http://statistics.data.gov.uk/id/local-authority-district/23UB,Cheltenham Borough Council,443089,503231,COMENSURA LIMITED,C-C23190-0115,Garden Collectn-Temporary Agency Staff,23-Feb-11,576.20
http://statistics.data.gov.uk/id/local-authority-district/23UB,Cheltenham Borough Council,443089,503231,COMENSURA LIMITED,C-C23190-0115,Garden Collectn-Temporary Agency Staff,23-Feb-11,491.26
http://statistics.data.gov.uk/id/local-authority-district/23UB,Cheltenham Borough Council,443089,503231,COMENSURA LIMITED,C-C23190-0115,Garden Collectn-Temporary Agency Staff,23-Feb-11,251.69
http://statistics.data.gov.uk/id/local-authority-district/23UB,Cheltenham Borough Council,443089,503231,COMENSURA LIMITED,C-C23190-0115,Garden Collectn-Temporary Agency Staff,23-Feb-11,485.20
http://statistics.data.gov.uk/id/local-authority-district/23UB,Cheltenham Borough Council,443089,503231,COMENSURA LIMITED,C-C23190-0115,Garden Collectn-Temporary Agency Staff,23-Feb-11,485.20
http://statistics.data.gov.uk/id/local-authority-district/23UB,Cheltenham Borough Council,443089,503231,COMENSURA LIMITED,C-C23190-0115,Garden Collectn-Temporary Agency Staff,23-Feb-11,365.89
http://statistics.data.gov.uk/id/local-authority-district/23UB,Cheltenham Borough Council,443111,503429,COMENSURA LIMITED,C-C23190-0115,Garden Collectn-Temporary Agency Staff,23-Feb-11,74.27
http://statistics.data.gov.uk/id/local-authority-district/23UB,Cheltenham Borough Council,443111,503429,COMENSURA LIMITED,C-C23190-0115,Garden Collectn-Temporary Agency Staff,23-Feb-11,338.40
http://statistics.data.gov.uk/id/local-authority-district/23UB,Cheltenham Borough Council,443111,503429,COMENSURA LIMITED,C-C23190-0115,Garden Collectn-Temporary Agency Staff,23-Feb-11,122.67
http://statistics.data.gov.uk/id/local-authority-district/23UB,Cheltenham Borough Council,443111,503429,COMENSURA LIMITED,C-C23190-0115,Garden Collectn-Temporary Agency Staff,23-Feb-11,107.78
http://statistics.data.gov.uk/id/local-authority-district/23UB,Cheltenham Borough Council,443111,503429,COMENSURA LIMITED,C-C23190-0115,Garden Collectn-Temporary Agency Staff,23-Feb-11,303.28
http://statistics.data.gov.uk/id/local-authority-district/23UB,Cheltenham Borough Council,443111,503429,COMENSURA LIMITED,C-C23190-0115,Garden Collectn-Temporary Agency Staff,23-Feb-11,400.28
http://statistics.data.gov.uk/id/local-authority-district/23UB,Cheltenham Borough Council,443111,503429,COMENSURA LIMITED,C-C23190-0115,Garden Collectn-Temporary Agency Staff,23-Feb-11,317.25
http://statistics.data.gov.uk/id/local-authority-district/23UB,Cheltenham Borough Council,443111,503429,COMENSURA LIMITED,C-C23190-0115,Garden Collectn-Temporary Agency Staff,23-Feb-11,101.44
http://statistics.data.gov.uk/id/local-authority-district/23UB,Cheltenham Borough Council,443089,503231,COMENSURA LIMITED,C-C23190-0115,Garden Collectn-Temporary Agency Staff,23-Feb-11,65.56
http://statistics.data.gov.uk/id/local-authority-district/23UB,Cheltenham Borough Council,443089,503231,COMENSURA LIMITED,C-D13100-0115,Muni Off Blgs-Temporary Agency Staff,23-Feb-11,93.06
http://statistics.data.gov.uk/id/local-authority-district/23UB,Cheltenham Borough Council,443111,503429,COMENSURA LIMITED,C-D13100-0115,Muni Off Blgs-Temporary Agency Staff,23-Feb-11,84.60
http://statistics.data.gov.uk/id/local-authority-district/23UB,Cheltenham Borough Council,443089,503231,COMENSURA LIMITED,C-E36200-0115,On-St Car Prkng-Temporary Agency Staff,23-Feb-11,491.71
http://statistics.data.gov.uk/id/local-authority-district/23UB,Cheltenham Borough Council,443089,503231,COMENSURA LIMITED,C-E63100-0115,Cemetery & Crem-Temporary Agency Staff,23-Feb-11,128.64
http://statistics.data.gov.uk/id/local-authority-district/23UB,Cheltenham Borough Council,443111,503429,COMENSURA LIMITED,C-E63100-0115,Cemetery & Crem-Temporary Agency Staff,23-Feb-11,182.24
http://statistics.data.gov.uk/id/local-authority-district/23UB,Cheltenham Borough Council,443111,503429,COMENSURA LIMITED,C-E63100-0115,Cemetery & Crem-Temporary Agency Staff,23-Feb-11,313.02
http://statistics.data.gov.uk/id/local-authority-district/23UB,Cheltenham Borough Council,443089,503231,COMENSURA LIMITED,C-E63100-0115,Cemetery & Crem-Temporary Agency Staff,23-Feb-11,313.02
http://statistics.data.gov.uk/id/local-authority-district/23UB,Cheltenham Borough Council,443111,503429,COMENSURA LIMITED,C-E63100-0115,Cemetery & Crem-Temporary Agency Staff,23-Feb-11,248.08
http://statistics.data.gov.uk/id/local-authority-district/23UB,Cheltenham Borough Council,443111,503429,COMENSURA LIMITED,C-E63100-0115,Cemetery & Crem-Temporary Agency Staff,23-Feb-11,171.52
http://statistics.data.gov.uk/id/local-authority-district/23UB,Cheltenham Borough Council,443089,503231,COMENSURA LIMITED,C-E63100-0115,Cemetery & Crem-Temporary Agency Staff,23-Feb-11,235.84
http://statistics.data.gov.uk/id/local-authority-district/23UB,Cheltenham Borough Council,443111,503429,COMENSURA LIMITED,C-E75500-0115,Intgd Tran Div-Temporary Agency Staff,23-Feb-11,488.62
http://statistics.data.gov.uk/id/local-authority-district/23UB,Cheltenham Borough Council,442528,2349,COMBUSTION SOLUTIONS,C-PM0081-R201,Crematorium-Cremator Repairs,18-Feb-11,550.00
http://statistics.data.gov.uk/id/local-authority-district/23UB,Cheltenham Borough Council,442528,2349,COMBUSTION SOLUTIONS,C-PM0081-R201,Crematorium-Cremator Repairs,18-Feb-11,40.00
http://statistics.data.gov.uk/id/local-authority-district/23UB,Cheltenham Borough Council,442528,2349,COMBUSTION SOLUTIONS,C-PM0081-R201,Crematorium-Cremator Repairs,18-Feb-11,270.00
http://statistics.data.gov.uk/id/local-authority-district/23UB,Cheltenham Borough Council,442684,W5605600SE,CONNAUGHT COMPLIANCE SERVICES LIMITED,C-H46450-1104,Legionella T&M-Council House repairs,18-Feb-11,"4,400.00"
http://statistics.data.gov.uk/id/local-authority-district/23UB,Cheltenham Borough Council,441743,5001,JOHNNY COPPIN,C-0T70L0-3568,Folk Festival-Artist Fees,11-Feb-11,900.00
http://statistics.data.gov.uk/id/local-authority-district/23UB,Cheltenham Borough Council,441518,013840,CORY ENVIRONMENTAL LTD,C-C23100-3581,Refuse Collctn-Tipping charges,04-Feb-11,843.86
http://statistics.data.gov.uk/id/local-authority-district/23UB,Cheltenham Borough Council,441519,013854,CORY ENVIRONMENTAL LTD,C-C23100-3581,Refuse Collctn-Tipping charges,04-Feb-11,"4,005.12"
http://statistics.data.gov.uk/id/local-authority-district/23UB,Cheltenham Borough Council,442752,013901,CORY ENVIRONMENTAL LTD,C-C23100-3581,Refuse Collctn-Tipping charges,18-Feb-11,"4,483.41"
http://statistics.data.gov.uk/id/local-authority-district/23UB,Cheltenham Borough Council,443027,014001,CORY ENVIRONMENTAL LTD,C-C23100-3581,Refuse Collctn-Tipping charges,23-Feb-11,"4,562.38"
http://statistics.data.gov.uk/id/local-authority-district/23UB,Cheltenham Borough Council,443028,014062,CORY ENVIRONMENTAL LTD,C-C23100-3581,Refuse Collctn-Tipping charges,23-Feb-11,"4,623.47"
http://statistics.data.gov.uk/id/local-authority-district/23UB,Cheltenham Borough Council,442887,CBC-68866,MR JAMES CORNWELL,C-D12205-3676,Specialist Legal Advice,23-Feb-11,"4,285.00"
http://statistics.data.gov.uk/id/local-authority-district/23UB,Cheltenham Borough Council,442839,CSMS/110108,CORINIUM SAFETY MANAGEMENT SERVICES,C-D21260-0205,Health & Safety-Training fees/exp (Corp),23-Feb-11,200.00
http://statistics.data.gov.uk/id/local-authority-district/23UB,Cheltenham Borough Council,442973,CSMS/101102,CORINIUM SAFETY MANAGEMENT SERVICES,C-L41100-1114,AG & M-Security systems,23-Feb-11,450.00
http://statistics.data.gov.uk/id/local-authority-district/23UB,Cheltenham Borough Council,441562,6230673,COTSWOLD DISTRICT  COUNCIL,C-D11400-0204,Audit & Assrnce-Training fees/exp (Prof),04-Feb-11,120.00
http://statistics.data.gov.uk/id/local-authority-district/23UB,Cheltenham Borough Council,441561,6203673,COTSWOLD DISTRICT  COUNCIL,C-D11400-3501,Audit & Assrnce-Hire of outside services,04-Feb-11,"10,225.88"
http://statistics.data.gov.uk/id/local-authority-district/23UB,Cheltenham Borough Council,441562,6230673,COTSWOLD DISTRICT  COUNCIL,C-D11400-3501,Audit & Assrnce-Hire of outside services,04-Feb-11,280.00
http://statistics.data.gov.uk/id/local-authority-district/23UB,Cheltenham Borough Council,441781,2648,COTSWOLD AUTO ELECTRICS,C-C24100-3501,Fleet Maint-Hire of outside services,11-Feb-11,170.00
http://statistics.data.gov.uk/id/local-authority-district/23UB,Cheltenham Borough Council,441780,2647,COTSWOLD AUTO ELECTRICS,C-C24100-3501,Fleet Maint-Hire of outside services,11-Feb-11,171.00
http://statistics.data.gov.uk/id/local-authority-district/23UB,Cheltenham Borough Council,441779,2638,COTSWOLD AUTO ELECTRICS,C-C24100-3501,Fleet Maint-Hire of outside services,11-Feb-11,190.00
http://statistics.data.gov.uk/id/local-authority-district/23UB,Cheltenham Borough Council,442003,263375,COTSWOLD ESTATES & GARDENS,C-LC6015-C405,LeckhamptonHill-Specialist Contractor,11-Feb-11,"70,102.60"
http://statistics.data.gov.uk/id/local-authority-district/23UB,Cheltenham Borough Council,443142,P115,COTSWOLD ESTATES & GARDENS,C-LC6015-C405,LeckhamptonHill-Specialist Contractor,23-Feb-11,"46,511.55"
http://statistics.data.gov.uk/id/local-authority-district/23UB,Cheltenham Borough Council,441878,21574,3 COUNTIES DRAIN SERVICE,C-H46250-1104,Drain Clearing-Council House repairs,11-Feb-11,"3,510.00"
http://statistics.data.gov.uk/id/local-authority-district/23UB,Cheltenham Borough Council,442886,888,COUNTY COMMUNITY PROJECTS,C-D38850-3801,Youth Affairs-Grants,23-Feb-11,650.00
http://statistics.data.gov.uk/id/local-authority-district/23UB,Cheltenham Borough Council,442130,SETTLEMENT,MRS R CREED T/A HOWLERS COMEDY CLUB,C-N13125-9205,ASH Ledger-Town Hall Invoices Paid,11-Feb-11,-502.70
http://statistics.data.gov.uk/id/local-authority-district/23UB,Cheltenham Borough Council,442130,SETTLEMENT,MRS R CREED T/A HOWLERS COMEDY CLUB,C-Z12210-9138,Box Off A/C-TH Hirers Tkt Pd out,11-Feb-11,"2,804.00"
http://statistics.data.gov.uk/id/local-authority-district/23UB,Cheltenham Borough Council,441848,778465,CRIMINAL RECORDS BUREAU,C-A21500-3501,Licensing-Hire of outside services,11-Feb-11,"1,080.00"
http://statistics.data.gov.uk/id/local-authority-district/23UB,Cheltenham Borough Council,441848,778465,CRIMINAL RECORDS BUREAU,C-L11500-3501,Rec Facilities-Hire of outside services,11-Feb-11,144.00
http://statistics.data.gov.uk/id/local-authority-district/23UB,Cheltenham Borough Council,441755,S10 514188,CUSTODIAN MONITORING SERVICES,C-H44050-1104,Call-Out Serv.-Council House repairs,11-Feb-11,360.20
http://statistics.data.gov.uk/id/local-authority-district/23UB,Cheltenham Borough Council,441756,S10 516023,CUSTODIAN MONITORING SERVICES,C-H44050-1104,Call-Out Serv.-Council House repairs,11-Feb-11,427.40
http://statistics.data.gov.uk/id/local-authority-district/23UB,Cheltenham Borough Council,442550,900057348,DAVIS LANGDON LLP,C-L41100-3816,AG & M-RIBA - Fees,18-Feb-11,"3,500.00"
http://statistics.data.gov.uk/id/local-authority-district/23UB,Cheltenham Borough Council,442961,7401811710,DELL COMPUTER CORPORATION LTD,C-D11820-3660,IT Infrastructu-Hardware PC & Servers,23-Feb-11,396.00
http://statistics.data.gov.uk/id/local-authority-district/23UB,Cheltenham Borough Council,442960,7401813034,DELL COMPUTER CORPORATION LTD,C-D11820-3660,IT Infrastructu-Hardware PC & Servers,23-Feb-11,"1,221.52"
http://statistics.data.gov.uk/id/local-authority-district/23UB,Cheltenham Borough Council,442960,7401813034,DELL COMPUTER CORPORATION LTD,C-D11820-3660,IT Infrastructu-Hardware PC & Servers,23-Feb-11,17.72
http://statistics.data.gov.uk/id/local-authority-district/23UB,Cheltenham Borough Council,442960,7401813034,DELL COMPUTER CORPORATION LTD,C-D11820-3660,IT Infrastructu-Hardware PC & Servers,23-Feb-11,38.68
http://statistics.data.gov.uk/id/local-authority-district/23UB,Cheltenham Borough Council,442960,7401813034,DELL COMPUTER CORPORATION LTD,C-D11820-3660,IT Infrastructu-Hardware PC & Servers,23-Feb-11,223.40
http://statistics.data.gov.uk/id/local-authority-district/23UB,Cheltenham Borough Council,442960,7401813034,DELL COMPUTER CORPORATION LTD,C-D11820-3660,IT Infrastructu-Hardware PC & Servers,23-Feb-11,390.24
http://statistics.data.gov.uk/id/local-authority-district/23UB,Cheltenham Borough Council,442960,7401813034,DELL COMPUTER CORPORATION LTD,C-D11820-3660,IT Infrastructu-Hardware PC & Servers,23-Feb-11,"1,227.90"
http://statistics.data.gov.uk/id/local-authority-district/23UB,Cheltenham Borough Council,442963,7401812130,DELL COMPUTER CORPORATION LTD,C-H22600-3101,Community Servs-Equipment purchases,23-Feb-11,97.56
http://statistics.data.gov.uk/id/local-authority-district/23UB,Cheltenham Borough Council,441790,38761,DELAWARE COMMUNICATIONS PLC,C-E61500-3103,CCTV/TC Safety-Equipment repairs & maint,11-Feb-11,"1,419.17"
http://statistics.data.gov.uk/id/local-authority-district/23UB,Cheltenham Borough Council,442777,38809,DELAWARE COMMUNICATIONS PLC,C-EC0006-C101,CCTV/TC inits-Project Est for this Year,23-Feb-11,"42,823.16"
http://statistics.data.gov.uk/id/local-authority-district/23UB,Cheltenham Borough Council,441510,DE10532086,DENNIS EAGLE,C-C24100-3582,Fleet Maint-DSO Invoices,04-Feb-11,769.04
http://statistics.data.gov.uk/id/local-authority-district/23UB,Cheltenham Borough Council,441512,D10531360,DENNIS EAGLE,C-C24100-3582,Fleet Maint-DSO Invoices,04-Feb-11,38.22
http://statistics.data.gov.uk/id/local-authority-district/23UB,Cheltenham Borough Council,441511,DE10531359,DENNIS EAGLE,C-C24100-3582,Fleet Maint-DSO Invoices,04-Feb-11,26.04
http://statistics.data.gov.uk/id/local-authority-district/23UB,Cheltenham Borough Council,442479,DE10534477,DENNIS EAGLE,C-C24100-3582,Fleet Maint-DSO Invoices,18-Feb-11,657.30
http://statistics.data.gov.uk/id/local-authority-district/23UB,Cheltenham Borough Council,442478,DE10534476,DENNIS EAGLE,C-C24100-3582,Fleet Maint-DSO Invoices,18-Feb-11,32.46
http://statistics.data.gov.uk/id/local-authority-district/23UB,Cheltenham Borough Council,442712,DE10535151,DENNIS EAGLE,C-C24100-3582,Fleet Maint-DSO Invoices,18-Feb-11,206.29
http://statistics.data.gov.uk/id/local-authority-district/23UB,Cheltenham Borough Council,442878,DE10536030,DENNIS EAGLE,C-C24100-3582,Fleet Maint-DSO Invoices,23-Feb-11,769.04
http://statistics.data.gov.uk/id/local-authority-district/23UB,Cheltenham Borough Council,442877,DE10536029,DENNIS EAGLE,C-C24100-3582,Fleet Maint-DSO Invoices,23-Feb-11,671.02
http://statistics.data.gov.uk/id/local-authority-district/23UB,Cheltenham Borough Council,442038,512998,DESIGNA UK LIMITED,C-E21100-3103,Car Prks-Off St-Equipment repairs & main,11-Feb-11,"4,613.75"
http://statistics.data.gov.uk/id/local-authority-district/23UB,Cheltenham Borough Council,442050,513009,DESIGNA UK LIMITED,C-E21100-3103,Car Prks-Off St-Equipment repairs & main,11-Feb-11,60.00
http://statistics.data.gov.uk/id/local-authority-district/23UB,Cheltenham Borough Council,442050,513009,DESIGNA UK LIMITED,C-E21100-3103,Car Prks-Off St-Equipment repairs & main,11-Feb-11,90.00
http://statistics.data.gov.uk/id/local-authority-district/23UB,Cheltenham Borough Council,442049,512982,DESIGNA UK LIMITED,C-E21100-3103,Car Prks-Off St-Equipment repairs & main,11-Feb-11,60.00
http://statistics.data.gov.uk/id/local-authority-district/23UB,Cheltenham Borough Council,442049,512982,DESIGNA UK LIMITED,C-E21100-3103,Car Prks-Off St-Equipment repairs & main,11-Feb-11,90.00
http://statistics.data.gov.uk/id/local-authority-district/23UB,Cheltenham Borough Council,442698,BD4141,DIRECT PUBLICITY,C-0T70L0-3527,Folk Festival-Distribution/Mailing,18-Feb-11,480.00
http://statistics.data.gov.uk/id/local-authority-district/23UB,Cheltenham Borough Council,442699,BD4106,DIRECT PUBLICITY,C-L21100-3920,Town Hall-Advertising,18-Feb-11,630.00
http://statistics.data.gov.uk/id/local-authority-district/23UB,Cheltenham Borough Council,441783,196355,DOMESTIC AND GENERAL INSULATION LTD,C-HC4076-C302,Loft/Cavity Ins-Building Contractor,11-Feb-11,199.00
http://statistics.data.gov.uk/id/local-authority-district/23UB,Cheltenham Borough Council,441789,196349,DOMESTIC AND GENERAL INSULATION LTD,C-HC4076-C302,Loft/Cavity Ins-Building Contractor,11-Feb-11,189.52
http://statistics.data.gov.uk/id/local-authority-district/23UB,Cheltenham Borough Council,441788,196350,DOMESTIC AND GENERAL INSULATION LTD,C-HC4076-C302,Loft/Cavity Ins-Building Contractor,11-Feb-11,189.52
http://statistics.data.gov.uk/id/local-authority-district/23UB,Cheltenham Borough Council,441785,196353,DOMESTIC AND GENERAL INSULATION LTD,C-HC4076-C302,Loft/Cavity Ins-Building Contractor,11-Feb-11,214.29
http://statistics.data.gov.uk/id/local-authority-district/23UB,Cheltenham Borough Council,441786,196352,DOMESTIC AND GENERAL INSULATION LTD,C-HC4076-C302,Loft/Cavity Ins-Building Contractor,11-Feb-11,233.33
http://statistics.data.gov.uk/id/local-authority-district/23UB,Cheltenham Borough Council,441784,196354,DOMESTIC AND GENERAL INSULATION LTD,C-HC4076-C302,Loft/Cavity Ins-Building Contractor,11-Feb-11,245.00
http://statistics.data.gov.uk/id/local-authority-district/23UB,Cheltenham Borough Council,441787,196351,DOMESTIC AND GENERAL INSULATION LTD,C-HC4076-C302,Loft/Cavity Ins-Building Contractor,11-Feb-11,189.52
http://statistics.data.gov.uk/id/local-authority-district/23UB,Cheltenham Borough Council,441992,05012011,DORCHESTER HOUSE TRUST,C-H22400-5204,Homelessness-Provision of accommo(B&B),11-Feb-11,"1,458.06"
http://statistics.data.gov.uk/id/local-authority-district/23UB,Cheltenham Borough Council,442750,2976,DOWNEND ELECTRICS LIMITED,C-C23120-3501,Recycling Cntr-Hire of outside services,18-Feb-11,770.00
http://statistics.data.gov.uk/id/local-authority-district/23UB,Cheltenham Borough Council,442739,REDACTED,REDACTED,C-P12250-9104,Tenants Rent Refund,18-Feb-11,"2,589.64"
http://statistics.data.gov.uk/id/local-authority-district/23UB,Cheltenham Borough Council,442745,REDACTED,REDACTED,C-P12250-9104,Tenants Rent Refund,18-Feb-11,539.10
http://statistics.data.gov.uk/id/local-authority-district/23UB,Cheltenham Borough Council,441477,7866,EMMDEE BUILDING SERVICES,C-C23140-1801,Public Convnces-RM-Electrical repairs,04-Feb-11,108.90
http://statistics.data.gov.uk/id/local-authority-district/23UB,Cheltenham Borough Council,441478,7867,EMMDEE BUILDING SERVICES,C-D13100-1801,Muni Off Blgs-RM-Electrical repairs,04-Feb-11,45.00
http://statistics.data.gov.uk/id/local-authority-district/23UB,Cheltenham Borough Council,441479,7869,EMMDEE BUILDING SERVICES,C-D13100-1801,Muni Off Blgs-RM-Electrical repairs,04-Feb-11,11.75
http://statistics.data.gov.uk/id/local-authority-district/23UB,Cheltenham Borough Council,441482,7930,EMMDEE BUILDING SERVICES,C-D13100-1801,Muni Off Blgs-RM-Electrical repairs,04-Feb-11,67.50
http://statistics.data.gov.uk/id/local-authority-district/23UB,Cheltenham Borough Council,441480,7928,EMMDEE BUILDING SERVICES,C-D13100-1801,Muni Off Blgs-RM-Electrical repairs,04-Feb-11,56.25
http://statistics.data.gov.uk/id/local-authority-district/23UB,Cheltenham Borough Council,441481,7929,EMMDEE BUILDING SERVICES,C-L11500-1801,Rec Facilities-RM-Electrical repairs,04-Feb-11,341.85
http://statistics.data.gov.uk/id/local-authority-district/23UB,Cheltenham Borough Council,441483,7932,EMMDEE BUILDING SERVICES,C-L11500-1801,Rec Facilities-RM-Electrical repairs,04-Feb-11,101.25
http://statistics.data.gov.uk/id/local-authority-district/23UB,Cheltenham Borough Council,442190,9088,EMMDEE BUILDING SERVICES,C-C22120-1801,Sports & Open S-RM-Electrical repairs,18-Feb-11,32.80
http://statistics.data.gov.uk/id/local-authority-district/23UB,Cheltenham Borough Council,442189,8089,EMMDEE BUILDING SERVICES,C-D13100-1801,Muni Off Blgs-RM-Electrical repairs,18-Feb-11,85.47
http://statistics.data.gov.uk/id/local-authority-district/23UB,Cheltenham Borough Council,442191,8087,EMMDEE BUILDING SERVICES,C-D13100-1801,Muni Off Blgs-RM-Electrical repairs,18-Feb-11,56.25
http://statistics.data.gov.uk/id/local-authority-district/23UB,Cheltenham Borough Council,442504,8027,EMMDEE BUILDING SERVICES,C-D13100-1801,Muni Off Blgs-RM-Electrical repairs,18-Feb-11,146.36
http://statistics.data.gov.uk/id/local-authority-district/23UB,Cheltenham Borough Council,442501,8032,EMMDEE BUILDING SERVICES,C-D13550-1801,Area Off -E.Hse-RM-Electrical repairs,18-Feb-11,33.75
http://statistics.data.gov.uk/id/local-authority-district/23UB,Cheltenham Borough Council,442503,8028,EMMDEE BUILDING SERVICES,C-D13550-1801,Area Off -E.Hse-RM-Electrical repairs,18-Feb-11,47.44
http://statistics.data.gov.uk/id/local-authority-district/23UB,Cheltenham Borough Council,442502,8029,EMMDEE BUILDING SERVICES,C-D30200-1801,Misc Props & Ld-RM-Electrical repairs,18-Feb-11,32.42
http://statistics.data.gov.uk/id/local-authority-district/23UB,Cheltenham Borough Council,442186,8092,EMMDEE BUILDING SERVICES,C-L11500-1801,Rec Facilities-RM-Electrical repairs,18-Feb-11,101.25
http://statistics.data.gov.uk/id/local-authority-district/23UB,Cheltenham Borough Council,442188,8090,EMMDEE BUILDING SERVICES,C-L11500-1801,Rec Facilities-RM-Electrical repairs,18-Feb-11,45.00
http://statistics.data.gov.uk/id/local-authority-district/23UB,Cheltenham Borough Council,442500,8033,EMMDEE BUILDING SERVICES,C-L11500-1801,Rec Facilities-RM-Electrical repairs,18-Feb-11,45.00
http://statistics.data.gov.uk/id/local-authority-district/23UB,Cheltenham Borough Council,442187,8091,EMMDEE BUILDING SERVICES,C-L21100-3103,Town Hall-Equipment repairs & maint,18-Feb-11,101.25
http://statistics.data.gov.uk/id/local-authority-district/23UB,Cheltenham Borough Council,442192,8031,EMMDEE BUILDING SERVICES,C-L21100-3103,Town Hall-Equipment repairs & maint,18-Feb-11,35.95
http://statistics.data.gov.uk/id/local-authority-district/23UB,Cheltenham Borough Council,442193,8030,EMMDEE BUILDING SERVICES,C-L21100-3103,Town Hall-Equipment repairs & maint,18-Feb-11,39.38
http://statistics.data.gov.uk/id/local-authority-district/23UB,Cheltenham Borough Council,442185,301267/1/2011,ENER-G,C-L11500-1402,Rec Facilities-Electricity,18-Feb-11,"2,724.59"
http://statistics.data.gov.uk/id/local-authority-district/23UB,Cheltenham Borough Council,441791,1129506,ENVIRONMENT AGENCY,C-E61600-3179,Contaminatd Lnd-Marle Hill revenue expen,11-Feb-11,"9,445.57"
http://statistics.data.gov.uk/id/local-authority-district/23UB,Cheltenham Borough Council,441879,874174,ENVIROVENT LIMITED,C-H4203G-1104,Gen Wks 2203-Council House repairs,11-Feb-11,506.42
http://statistics.data.gov.uk/id/local-authority-district/23UB,Cheltenham Borough Council,442693,3514,ESI LIMITED,C-E61600-3173,Contaminatd Lnd-Exp-Sandy Lane Playg Fld,18-Feb-11,162.50
http://statistics.data.gov.uk/id/local-authority-district/23UB,Cheltenham Borough Council,442693,3514,ESI LIMITED,C-E61600-3173,Contaminatd Lnd-Exp-Sandy Lane Playg Fld,18-Feb-11,"1,664.12"
http://statistics.data.gov.uk/id/local-authority-district/23UB,Cheltenham Borough Council,442694,3516,ESI LIMITED,C-E61600-3174,Contaminatd Lnd-Exp-Church Piece Plyg Fl,18-Feb-11,"4,803.91"
http://statistics.data.gov.uk/id/local-authority-district/23UB,Cheltenham Borough Council,442695,3502,ESI LIMITED,C-E61600-3239,Contaminatd Lnd-Alstone Lane Grant expen,18-Feb-11,"1,188.05"
http://statistics.data.gov.uk/id/local-authority-district/23UB,Cheltenham Borough Council,442691,4651,EVERYMAN THEATRE,C-Z13500-3501,LAA - ASBO Rev-Hire of outside services,18-Feb-11,"1,380.00"
http://statistics.data.gov.uk/id/local-authority-district/23UB,Cheltenham Borough Council,441629,NANJAM140111,JAMES FAGAN,C-0T70L0-3568,Folk Festival-Artist Fees,04-Feb-11,500.00
http://statistics.data.gov.uk/id/local-authority-district/23UB,Cheltenham Borough Council,441630,560,JAMES FAGAN,C-0T70L0-3568,Folk Festival-Artist Fees,04-Feb-11,900.00
http://statistics.data.gov.uk/id/local-authority-district/23UB,Cheltenham Borough Council,442157,4330,FERNMONT LIMITED,C-H44752-1104,Dis Adapts-Tech-Council House repairs,18-Feb-11,150.00
http://statistics.data.gov.uk/id/local-authority-district/23UB,Cheltenham Borough Council,442150,4705,FERNMONT LIMITED,C-HC4068-C302,Sheltered Hsg-Building Contractor,18-Feb-11,"1,997.50"
http://statistics.data.gov.uk/id/local-authority-district/23UB,Cheltenham Borough Council,442148,4706,FERNMONT LIMITED,C-HC4166-C302,Sheltered Accom-Building Contractor,18-Feb-11,"1,752.50"
http://statistics.data.gov.uk/id/local-authority-district/23UB,Cheltenham Borough Council,442149,4707,FERNMONT LIMITED,C-HC4166-C302,Sheltered Accom-Building Contractor,18-Feb-11,"1,846.00"
http://statistics.data.gov.uk/id/local-authority-district/23UB,Cheltenham Borough Council,441554,S/117131,FLEET LINE MARKERS LTD,C-C22120-3121,Spts/Open Space-Materials-Contract,04-Feb-11,877.50
http://statistics.data.gov.uk/id/local-authority-district/23UB,Cheltenham Borough Council,441554,S/117131,FLEET LINE MARKERS LTD,C-C22120-3121,Spts/Open Space-Materials-Contract,04-Feb-11,38.00
http://statistics.data.gov.uk/id/local-authority-district/23UB,Cheltenham Borough Council,441554,S/117131,FLEET LINE MARKERS LTD,C-C22120-3121,Spts/Open Space-Materials-Contract,04-Feb-11,25.00
http://statistics.data.gov.uk/id/local-authority-district/23UB,Cheltenham Borough Council,442086,SI117707,FLEET LINE MARKERS LTD,C-C22120-3121,Spts/Open Space-Materials-Contract,11-Feb-11,877.50
http://statistics.data.gov.uk/id/local-authority-district/23UB,Cheltenham Borough Council,442114,SETTLEMENT,FLICK PRODUCTIONS,C-N13125-9205,ASH Ledger-Town Hall Invoices Paid,11-Feb-11,"-3,221.36"
http://statistics.data.gov.uk/id/local-authority-district/23UB,Cheltenham Borough Council,442114,SETTLEMENT,FLICK PRODUCTIONS,C-Z12210-9138,Box Off A/C-TH Hirers Tkt Pd out,11-Feb-11,"6,527.50"
http://statistics.data.gov.uk/id/local-authority-district/23UB,Cheltenham Borough Council,442114,SETTLEMENT,FLICK PRODUCTIONS,C-Z12210-9276,Box Off A/C-Hirers Invoices Pd,11-Feb-11,-87.50
http://statistics.data.gov.uk/id/local-authority-district/23UB,Cheltenham Borough Council,442888,V1413,FLYING ENTERTAINMENT LIMITED,C-0T06K1-3568,Artist Fees         ,23-Feb-11,"6,500.00"
http://statistics.data.gov.uk/id/local-authority-district/23UB,Cheltenham Borough Council,442703,26951,FOSTERS EVENT CATERING,C-0T22K1-3569,Lon Mrkt Play 2-Artist Expenses(TravAcco,18-Feb-11,55.50
http://statistics.data.gov.uk/id/local-authority-district/23UB,Cheltenham Borough Council,442173,26902,FOSTERS EVENT CATERING,C-0T31J1-3212,New Years Eve-Catering,18-Feb-11,110.00
http://statistics.data.gov.uk/id/local-authority-district/23UB,Cheltenham Borough Council,442734,26707,FOSTERS EVENT CATERING,C-0T31J1-3212,New Years Eve-Catering,18-Feb-11,"2,586.80"
http://statistics.data.gov.uk/id/local-authority-district/23UB,Cheltenham Borough Council,442175,26909,FOSTERS EVENT CATERING,C-0T31J1-3212,New Years Eve-Catering,18-Feb-11,-220.00
http://statistics.data.gov.uk/id/local-authority-district/23UB,Cheltenham Borough Council,442702,27040,FOSTERS EVENT CATERING,C-0T50M0-3569,Lunchtime Recit-Artist Expenses(TravAcco      ,18-Feb-11,15.00
http://statistics.data.gov.uk/id/local-authority-district/23UB,Cheltenham Borough Council,442724,683,FRUSION ARTISTS,C-0T70L0-3568,Folk Festival-Artist Fees,18-Feb-11,"1,200.00"
http://statistics.data.gov.uk/id/local-authority-district/23UB,Cheltenham Borough Council,442778,5176,FUTRA LTD,C-C24150-3170,Fleet Managemnt-Fuel system maintenance,23-Feb-11,904.00
http://statistics.data.gov.uk/id/local-authority-district/23UB,Cheltenham Borough Council,441851,SINV-034935,GELPACK EXCELSIOR LTD,C-N42250-3112,DSO Stores - Stock purchases,11-Feb-11,"1,740.96"
http://statistics.data.gov.uk/id/local-authority-district/23UB,Cheltenham Borough Council,442717,RP110192,GIFFORD,C-D21250-3972,Civil Emergency-EU Restoration Fund,18-Feb-11,842.50
http://statistics.data.gov.uk/id/local-authority-district/23UB,Cheltenham Borough Council,442719,RP 110193,GIFFORD,C-D21250-3972,Civil Emergency-EU Restoration Fund,18-Feb-11,752.50
http://statistics.data.gov.uk/id/local-authority-district/23UB,Cheltenham Borough Council,442719,RP 110193,GIFFORD,C-D21250-3972,Civil Emergency-EU Restoration Fund,18-Feb-11,752.50
http://statistics.data.gov.uk/id/local-authority-district/23UB,Cheltenham Borough Council,442718,RP 110191,GIFFORD,C-D21250-3972,Civil Emergency-EU Restoration Fund,18-Feb-11,622.50
http://statistics.data.gov.uk/id/local-authority-district/23UB,Cheltenham Borough Council,442717,RP110192,GIFFORD,C-D21250-3974,Civil Emergency-Multi-agency funding,18-Feb-11,842.50
http://statistics.data.gov.uk/id/local-authority-district/23UB,Cheltenham Borough Council,442718,RP 110191,GIFFORD,C-D21250-3974,Civil Emergency-Multi-agency funding,18-Feb-11,622.50
http://statistics.data.gov.uk/id/local-authority-district/23UB,Cheltenham Borough Council,442794,RND124/11/10,GILLMANS SERVICE,C-H33400-3102,Sheltered.Hsg-Equipment rental,23-Feb-11,31.45
http://statistics.data.gov.uk/id/local-authority-district/23UB,Cheltenham Borough Council,442799,RND1107/12/10,GILLMANS SERVICE,C-H33400-3102,Sheltered.Hsg-Equipment rental,23-Feb-11,33.95
http://statistics.data.gov.uk/id/local-authority-district/23UB,Cheltenham Borough Council,442834,RND1143/12/10,GILLMANS SERVICE,C-H33400-3102,Sheltered.Hsg-Equipment rental,23-Feb-11,46.60
http://statistics.data.gov.uk/id/local-authority-district/23UB,Cheltenham Borough Council,442833,RND1180/12/10,GILLMANS SERVICE,C-H33400-3102,Sheltered.Hsg-Equipment rental,23-Feb-11,50.55
http://statistics.data.gov.uk/id/local-authority-district/23UB,Cheltenham Borough Council,442832,RND1131/11/10,GILLMANS SERVICE,C-H33400-3102,Sheltered.Hsg-Equipment rental,23-Feb-11,43.00
http://statistics.data.gov.uk/id/local-authority-district/23UB,Cheltenham Borough Council,442831,RND112/11/10,GILLMANS SERVICE,C-H33400-3102,Sheltered.Hsg-Equipment rental,23-Feb-11,72.30
http://statistics.data.gov.uk/id/local-authority-district/23UB,Cheltenham Borough Council,442830,RND1131,GILLMANS SERVICE,C-H33400-3102,Sheltered.Hsg-Equipment rental,23-Feb-11,43.00
http://statistics.data.gov.uk/id/local-authority-district/23UB,Cheltenham Borough Council,442829,RND112,GILLMANS SERVICE,C-H33400-3102,Sheltered.Hsg-Equipment rental,23-Feb-11,72.30
http://statistics.data.gov.uk/id/local-authority-district/23UB,Cheltenham Borough Council,442828,RND1212,GILLMANS SERVICE,C-H33400-3102,Sheltered.Hsg-Equipment rental,23-Feb-11,53.52
http://statistics.data.gov.uk/id/local-authority-district/23UB,Cheltenham Borough Council,442827,RND117/11/10,GILLMANS SERVICE,C-H33400-3102,Sheltered.Hsg-Equipment rental,23-Feb-11,40.13
http://statistics.data.gov.uk/id/local-authority-district/23UB,Cheltenham Borough Council,442826,RND1145/11/10,GILLMANS SERVICE,C-H33400-3102,Sheltered.Hsg-Equipment rental,23-Feb-11,46.60
http://statistics.data.gov.uk/id/local-authority-district/23UB,Cheltenham Borough Council,442836,RND1180/11/10,GILLMANS SERVICE,C-H33400-3102,Sheltered.Hsg-Equipment rental,23-Feb-11,50.55
http://statistics.data.gov.uk/id/local-authority-district/23UB,Cheltenham Borough Council,442835,RND1143/11/10,GILLMANS SERVICE,C-H33400-3102,Sheltered.Hsg-Equipment rental,23-Feb-11,46.60
http://statistics.data.gov.uk/id/local-authority-district/23UB,Cheltenham Borough Council,442825,RND1181/11/10,GILLMANS SERVICE,C-H33400-3102,Sheltered.Hsg-Equipment rental,23-Feb-11,48.15
http://statistics.data.gov.uk/id/local-authority-district/23UB,Cheltenham Borough Council,442824,RND1145/12/10,GILLMANS SERVICE,C-H33400-3102,Sheltered.Hsg-Equipment rental,23-Feb-11,46.60
http://statistics.data.gov.uk/id/local-authority-district/23UB,Cheltenham Borough Council,442823,RND117/12/10,GILLMANS SERVICE,C-H33400-3102,Sheltered.Hsg-Equipment rental,23-Feb-11,40.13
http://statistics.data.gov.uk/id/local-authority-district/23UB,Cheltenham Borough Council,442822,RND1181,GILLMANS SERVICE,C-H33400-3102,Sheltered.Hsg-Equipment rental,23-Feb-11,48.15
http://statistics.data.gov.uk/id/local-authority-district/23UB,Cheltenham Borough Council,442821,RND1212,GILLMANS SERVICE,C-H33400-3102,Sheltered.Hsg-Equipment rental,23-Feb-11,53.52
http://statistics.data.gov.uk/id/local-authority-district/23UB,Cheltenham Borough Council,442820,RND115/11/10,GILLMANS SERVICE,C-H33400-3102,Sheltered.Hsg-Equipment rental,23-Feb-11,40.13
http://statistics.data.gov.uk/id/local-authority-district/23UB,Cheltenham Borough Council,442819,RND192/11/10,GILLMANS SERVICE,C-H33400-3102,Sheltered.Hsg-Equipment rental,23-Feb-11,49.50
http://statistics.data.gov.uk/id/local-authority-district/23UB,Cheltenham Borough Council,442809,RND190/12/10,GILLMANS SERVICE,C-H33400-3102,Sheltered.Hsg-Equipment rental,23-Feb-11,35.00
http://statistics.data.gov.uk/id/local-authority-district/23UB,Cheltenham Borough Council,442808,RND1211/11/10,GILLMANS SERVICE,C-H33400-3102,Sheltered.Hsg-Equipment rental,23-Feb-11,62.62
http://statistics.data.gov.uk/id/local-authority-district/23UB,Cheltenham Borough Council,442806,RND1179/12/10,GILLMANS SERVICE,C-H33400-3102,Sheltered.Hsg-Equipment rental,23-Feb-11,60.09
http://statistics.data.gov.uk/id/local-authority-district/23UB,Cheltenham Borough Council,442807,RND1179/11/10,GILLMANS SERVICE,C-H33400-3102,Sheltered.Hsg-Equipment rental,23-Feb-11,60.09
http://statistics.data.gov.uk/id/local-authority-district/23UB,Cheltenham Borough Council,442804,RND1211/12/10,GILLMANS SERVICE,C-H33400-3102,Sheltered.Hsg-Equipment rental,23-Feb-11,62.62
http://statistics.data.gov.uk/id/local-authority-district/23UB,Cheltenham Borough Council,442803,RND1107/11/10,GILLMANS SERVICE,C-H33400-3102,Sheltered.Hsg-Equipment rental,23-Feb-11,33.95
http://statistics.data.gov.uk/id/local-authority-district/23UB,Cheltenham Borough Council,442802,RND1126/11/10,GILLMANS SERVICE,C-H33400-3102,Sheltered.Hsg-Equipment rental,23-Feb-11,42.00
http://statistics.data.gov.uk/id/local-authority-district/23UB,Cheltenham Borough Council,442801,RND125/11/10,GILLMANS SERVICE,C-H33400-3102,Sheltered.Hsg-Equipment rental,23-Feb-11,34.15
http://statistics.data.gov.uk/id/local-authority-district/23UB,Cheltenham Borough Council,442800,RND1126,GILLMANS SERVICE,C-H33400-3102,Sheltered.Hsg-Equipment rental,23-Feb-11,42.00
http://statistics.data.gov.uk/id/local-authority-district/23UB,Cheltenham Borough Council,442818,RND1144/11/10,GILLMANS SERVICE,C-H33400-3102,Sheltered.Hsg-Equipment rental,23-Feb-11,75.00
http://statistics.data.gov.uk/id/local-authority-district/23UB,Cheltenham Borough Council,442817,RND1144/12/10,GILLMANS SERVICE,C-H33400-3102,Sheltered.Hsg-Equipment rental,23-Feb-11,75.00
http://statistics.data.gov.uk/id/local-authority-district/23UB,Cheltenham Borough Council,442816,RND192/12/10,GILLMANS SERVICE,C-H33400-3102,Sheltered.Hsg-Equipment rental,23-Feb-11,49.50
http://statistics.data.gov.uk/id/local-authority-district/23UB,Cheltenham Borough Council,442815,RND115/12/10,GILLMANS SERVICE,C-H33400-3102,Sheltered.Hsg-Equipment rental,23-Feb-11,40.13
http://statistics.data.gov.uk/id/local-authority-district/23UB,Cheltenham Borough Council,442814,RND1203/12/10,GILLMANS SERVICE,C-H33400-3102,Sheltered.Hsg-Equipment rental,23-Feb-11,59.65
http://statistics.data.gov.uk/id/local-authority-district/23UB,Cheltenham Borough Council,442813,RND124,GILLMANS SERVICE,C-H33400-3102,Sheltered.Hsg-Equipment rental,23-Feb-11,31.45
http://statistics.data.gov.uk/id/local-authority-district/23UB,Cheltenham Borough Council,442812,RND190/11/10,GILLMANS SERVICE,C-H33400-3102,Sheltered.Hsg-Equipment rental,23-Feb-11,35.00
http://statistics.data.gov.uk/id/local-authority-district/23UB,Cheltenham Borough Council,442811,RND182/11/10,GILLMANS SERVICE,C-H33400-3102,Sheltered.Hsg-Equipment rental,23-Feb-11,73.65
http://statistics.data.gov.uk/id/local-authority-district/23UB,Cheltenham Borough Council,442810,RND182/12/10,GILLMANS SERVICE,C-H33400-3102,Sheltered.Hsg-Equipment rental,23-Feb-11,73.65
http://statistics.data.gov.uk/id/local-authority-district/23UB,Cheltenham Borough Council,442798,RND125/12/10,GILLMANS SERVICE,C-H33400-3102,Sheltered.Hsg-Equipment rental,23-Feb-11,34.15
http://statistics.data.gov.uk/id/local-authority-district/23UB,Cheltenham Borough Council,442795,RND1203/11/10,GILLMANS SERVICE,C-H33400-3102,Sheltered.Hsg-Equipment rental,23-Feb-11,59.65
http://statistics.data.gov.uk/id/local-authority-district/23UB,Cheltenham Borough Council,442797,RND187,GILLMANS SERVICE,C-H33400-3102,Sheltered.Hsg-Equipment rental,23-Feb-11,141.90
http://statistics.data.gov.uk/id/local-authority-district/23UB,Cheltenham Borough Council,442796,RND187/12/10,GILLMANS SERVICE,C-H33400-3102,Sheltered.Hsg-Equipment rental,23-Feb-11,141.90
http://statistics.data.gov.uk/id/local-authority-district/23UB,Cheltenham Borough Council,442073,22806,GLIDE MEDIA MARKETING,C-L41100-3920,AG & M-Advertising,11-Feb-11,555.19
http://statistics.data.gov.uk/id/local-authority-district/23UB,Cheltenham Borough Council,442977,22818,GLIDE MEDIA MARKETING,C-L21100-3920,Town Hall-Advertising,23-Feb-11,913.00
http://statistics.data.gov.uk/id/local-authority-district/23UB,Cheltenham Borough Council,442687,10877126,GLOUCESTER CITY COUNCIL,C-D35100-350A,Glos Airport-Consultants Fees,18-Feb-11,"2,114.60"
http://statistics.data.gov.uk/id/local-authority-district/23UB,Cheltenham Borough Council,441526,1800168767,GLOUCESTERSHIRE COUNTY COUNCIL,C-D21600-8428,Land Charges-Fees for services,04-Feb-11,"10,041.28"
http://statistics.data.gov.uk/id/local-authority-district/23UB,Cheltenham Borough Council,441645,1800169203,GLOUCESTERSHIRE COUNTY COUNCIL,C-D32400-4126,Elderly Trspt-Paymts to Bus Cos-Full Far,04-Feb-11,"438,593.00"
http://statistics.data.gov.uk/id/local-authority-district/23UB,Cheltenham Borough Council,441538,1800169227,GLOUCESTERSHIRE COUNTY COUNCIL,C-D32400-4126,Elderly Trspt-Paymts to Bus Cos-Full Far,04-Feb-11,"70,643.82"
http://statistics.data.gov.uk/id/local-authority-district/23UB,Cheltenham Borough Council,443093,1800169298,GLOUCESTERSHIRE COUNTY COUNCIL,C-E36200-4528,On-St Car Prkng-Net income paid to GCC,23-Feb-11,"165,375.94"
http://statistics.data.gov.uk/id/local-authority-district/23UB,Cheltenham Borough Council,442868,yc14655,GLOS YOUTH & COMMUNITY SERVICE,C-Z13500-3501,LAA - ASBO Rev-Hire of outside services,23-Feb-11,"1,050.00"
http://statistics.data.gov.uk/id/local-authority-district/23UB,Cheltenham Borough Council,442096,COMMUNITY PRI,GLOUCESTERSHIRE COUNTY COUNCIL,C-D21970-3677,Parish Pride-Parish Council - Community,11-Feb-11,"4,586.00"
http://statistics.data.gov.uk/id/local-authority-district/23UB,Cheltenham Borough Council,441484,CBC007,G & M BUILDING,C-D13100-1805,Muni Off Blgs-RM-Int. fixtures/fittings,04-Feb-11,558.40
http://statistics.data.gov.uk/id/local-authority-district/23UB,Cheltenham Borough Council,442098,REDACTED,REDACTED,C-P12250-9104,Tenants Rent Refund,11-Feb-11,801.52
http://statistics.data.gov.uk/id/local-authority-district/23UB,Cheltenham Borough Council,442080,45150,GOOCH GROUP LTD,C-C22120-3501,Spts/Open Space-Hire of outside services,11-Feb-11,270.00
http://statistics.data.gov.uk/id/local-authority-district/23UB,Cheltenham Borough Council,442080,45150,GOOCH GROUP LTD,C-C22120-3501,Spts/Open Space-Hire of outside services,11-Feb-11,3.00
http://statistics.data.gov.uk/id/local-authority-district/23UB,Cheltenham Borough Council,442052,44873,GOOCH GROUP LTD,C-E21100-1701,Car Prks-Off St-Cleaning,11-Feb-11,70.00
http://statistics.data.gov.uk/id/local-authority-district/23UB,Cheltenham Borough Council,442052,44873,GOOCH GROUP LTD,C-E21100-1701,Car Prks-Off St-Cleaning,11-Feb-11,75.00
http://statistics.data.gov.uk/id/local-authority-district/23UB,Cheltenham Borough Council,442052,44873,GOOCH GROUP LTD,C-E21100-1701,Car Prks-Off St-Cleaning,11-Feb-11,5.63
http://statistics.data.gov.uk/id/local-authority-district/23UB,Cheltenham Borough Council,441826,44975,GOOCH GROUP LTD,C-H33700-1712,Estate Services-Estate cleaning-reactive,11-Feb-11,555.00
http://statistics.data.gov.uk/id/local-authority-district/23UB,Cheltenham Borough Council,442266,5902,G P AERIALS LTD,C-H46550-1104,TV Aerials-Council House repairs,18-Feb-11,117.50
http://statistics.data.gov.uk/id/local-authority-district/23UB,Cheltenham Borough Council,442268,5914,G P AERIALS LTD,C-H46550-1104,TV Aerials-Council House repairs,18-Feb-11,61.00
http://statistics.data.gov.uk/id/local-authority-district/23UB,Cheltenham Borough Council,442267,5913,G P AERIALS LTD,C-HC4074-C302,Communal Aerial-Building Contractor,18-Feb-11,445.00
http://statistics.data.gov.uk/id/local-authority-district/23UB,Cheltenham Borough Council,442859,36146,GREENLINE CONTRACTS.,C-C24100-2701,Fleet Maint-Hired transport,23-Feb-11,603.60
http://statistics.data.gov.uk/id/local-authority-district/23UB,Cheltenham Borough Council,441490,160,GREENWAY PARTNERSHIP LIMITED,C-C23120-3501,Recycling Cntr-Hire of outside services,04-Feb-11,"4,315.00"
http://statistics.data.gov.uk/id/local-authority-district/23UB,Cheltenham Borough Council,441486,3110139,GREENWAY PARTNERSHIP LIMITED,C-C23140-1809,Public Convnces-RM-sanitary works,04-Feb-11,186.75
http://statistics.data.gov.uk/id/local-authority-district/23UB,Cheltenham Borough Council,441474,161,GREENWAY PARTNERSHIP LIMITED,C-D21300-3501,District Elects-Hire of outside services,04-Feb-11,150.00
http://statistics.data.gov.uk/id/local-authority-district/23UB,Cheltenham Borough Council,441474,161,GREENWAY PARTNERSHIP LIMITED,C-D21300-3670,District Elects-Hire of outside services,04-Feb-11,370.00
http://statistics.data.gov.uk/id/local-authority-district/23UB,Cheltenham Borough Council,441544,157,GREENWAY PARTNERSHIP LIMITED,C-D30200-1803,Misc Props & Ld-RM-Internal structures,04-Feb-11,"1,520.00"
http://statistics.data.gov.uk/id/local-authority-district/23UB,Cheltenham Borough Council,441491,162,GREENWAY PARTNERSHIP LIMITED,C-PM0090-R001,Misc.Properties-Roof Repairs,04-Feb-11,"4,164.00"
http://statistics.data.gov.uk/id/local-authority-district/23UB,Cheltenham Borough Council,441489,159,GREENWAY PARTNERSHIP LIMITED,C-PM0131-R003,Regent Arc. CP-External Re-decoration,04-Feb-11,"3,872.00"
http://statistics.data.gov.uk/id/local-authority-district/23UB,Cheltenham Borough Council,441488,158,GREENWAY PARTNERSHIP LIMITED,C-PM0160-R100,Public Toilets-General Public Toilets,04-Feb-11,908.50
http://statistics.data.gov.uk/id/local-authority-district/23UB,Cheltenham Borough Council,441812,163,GREENWAY PARTNERSHIP LIMITED,C-C22120-1804,Sports & Open S-RM-External structures,11-Feb-11,596.00
http://statistics.data.gov.uk/id/local-authority-district/23UB,Cheltenham Borough Council,441811,3110138,GREENWAY PARTNERSHIP LIMITED,C-C22120-1809,Sports & Open S-RM-sanitary works,11-Feb-11,165.00
http://statistics.data.gov.uk/id/local-authority-district/23UB,Cheltenham Borough Council,442195,167,GREENWAY PARTNERSHIP LIMITED,C-PM0020-R046,Town Hall-Kitchen Refurbishments,18-Feb-11,"14,320.00"
http://statistics.data.gov.uk/id/local-authority-district/23UB,Cheltenham Borough Council,441543,89924,GRIMSHAW KINNEAR LTD,C-C22110-1301,Parks & Gardens-Routine grounds maint,04-Feb-11,653.82
http://statistics.data.gov.uk/id/local-authority-district/23UB,Cheltenham Borough Council,442587,C3996 APP01,GRIMSHAW KINNEAR LTD,C-C22110-1301,Parks & Gardens-Routine grounds maint,18-Feb-11,"12,616.82"
http://statistics.data.gov.uk/id/local-authority-district/23UB,Cheltenham Borough Council,441603,REDACTED,HANOVER HOUSING ASSOCIATION,C-HC4100-C801,Dis.Adapt.HRA-Grants,04-Feb-11,"5,205.38"
http://statistics.data.gov.uk/id/local-authority-district/23UB,Cheltenham Borough Council,441643,REDACTED,HANOVER HOUSING ASSOCIATION,C-HC4100-C801,Dis.Adapt.HRA-Grants,04-Feb-11,"1,738.13"
http://statistics.data.gov.uk/id/local-authority-district/23UB,Cheltenham Borough Council,442124,REDACTED,HANOVER HOUSING ASSOCIATION,C-HC7440-C801,DFG.96.Act-Grants,11-Feb-11,"6,588.00"
http://statistics.data.gov.uk/id/local-authority-district/23UB,Cheltenham Borough Council,442128,REDACTED,HANOVER HOUSING ASSOCIATION,C-HC7440-C801,DFG.96.Act-Grants,11-Feb-11,"7,202.81"
http://statistics.data.gov.uk/id/local-authority-district/23UB,Cheltenham Borough Council,442126,REDACTED,HANOVER HOUSING ASSOCIATION,C-HC7440-C801,DFG.96.Act-Grants,11-Feb-11,"3,777.69"
http://statistics.data.gov.uk/id/local-authority-district/23UB,Cheltenham Borough Council,442127,REDACTED,HANOVER HOUSING ASSOCIATION,C-HC7440-C801,DFG.96.Act-Grants,11-Feb-11,"6,112.13"
http://statistics.data.gov.uk/id/local-authority-district/23UB,Cheltenham Borough Council,443112,REDACTED,HANOVER HOUSING ASSOCIATION,C-HC4100-C801,Dis.Adapt.HRA-Grants,23-Feb-11,"6,446.25"
http://statistics.data.gov.uk/id/local-authority-district/23UB,Cheltenham Borough Council,443115,REDACTED,HANOVER HOUSING ASSOCIATION,C-HC4100-C801,Dis.Adapt.HRA-Grants,23-Feb-11,"5,242.50"
http://statistics.data.gov.uk/id/local-authority-district/23UB,Cheltenham Borough Council,443113,REDACTED,HANOVER HOUSING ASSOCIATION,C-HC4100-C801,Dis.Adapt.HRA-Grants,23-Feb-11,"5,798.25"
http://statistics.data.gov.uk/id/local-authority-district/23UB,Cheltenham Borough Council,443114,REDACTED,HANOVER HOUSING ASSOCIATION,C-HC7440-C801,DFG.96.Act-Grants,23-Feb-11,"13,957.88"
http://statistics.data.gov.uk/id/local-authority-district/23UB,Cheltenham Borough Council,443116,REDACTED,HANOVER HOUSING ASSOCIATION,C-HC7440-C801,DFG.96.Act-Grants,23-Feb-11,"14,228.38"
http://statistics.data.gov.uk/id/local-authority-district/23UB,Cheltenham Borough Council,443196,REDACTED,HANOVER HOUSING ASSOCIATION,C-HC7440-C801,DFG.96.Act-Grants,25-Feb-11,"2,591.15"
http://statistics.data.gov.uk/id/local-authority-district/23UB,Cheltenham Borough Council,442112,REDACTED,HATCHMERE PARK LTD,C-H22400-3244,Homelessness-Supporting People,11-Feb-11,500.00
http://statistics.data.gov.uk/id/local-authority-district/23UB,Cheltenham Borough Council,441991,8352716,THE HAY GROUP MANAGEMENT LIMITED,C-D12300-3415,Personnel and P-Single Status Costs,11-Feb-11,"6,000.00"
http://statistics.data.gov.uk/id/local-authority-district/23UB,Cheltenham Borough Council,441759,136385,HAZLEWOODS,C-HC4055-C302,Neighhd Works-Building Contractor,11-Feb-11,"1,000.00"
http://statistics.data.gov.uk/id/local-authority-district/23UB,Cheltenham Borough Council,441759,136385,HAZLEWOODS,C-HC4059-C302,Concrete repair-Building Contractor,11-Feb-11,"1,100.00"
http://statistics.data.gov.uk/id/local-authority-district/23UB,Cheltenham Borough Council,442955,6691844,HEWLETT PACKARD LIMITED,C-DC3211-C101,WorkingFlexibly-Project Est for this Yea,23-Feb-11,"2,354.94"
http://statistics.data.gov.uk/id/local-authority-district/23UB,Cheltenham Borough Council,442725,REDACTED,MARK HOLLAND,C-H22400-3244,Homelessness-Supporting People,18-Feb-11,410.00
http://statistics.data.gov.uk/id/local-authority-district/23UB,Cheltenham Borough Council,442726,REDACTED,MARK HOLLAND,C-H22400-3244,Homelessness-Supporting People,18-Feb-11,500.00
http://statistics.data.gov.uk/id/local-authority-district/23UB,Cheltenham Borough Council,443138,COMM PRIDE FEE,REDACTED,C-D21970-3677,Parish Pride-Parish Council - Community,23-Feb-11,500.00
http://statistics.data.gov.uk/id/local-authority-district/23UB,Cheltenham Borough Council,442545,4763,ICON NET LIMITED,C-L41100-3599,AG & M-Special Project,18-Feb-11,"1,400.00"
http://statistics.data.gov.uk/id/local-authority-district/23UB,Cheltenham Borough Council,442762,4764,ICON NET LIMITED,C-L41100-3599,AG & M-Special Project,18-Feb-11,"2,500.00"
http://statistics.data.gov.uk/id/local-authority-district/23UB,Cheltenham Borough Council,442755,037928,IDOX SOFTWARE LIMITED,C-B52300-3623,Bldg Control-Cmpter-sftwre lic purch,18-Feb-11,500.00
http://statistics.data.gov.uk/id/local-authority-district/23UB,Cheltenham Borough Council,442755,037928,IDOX SOFTWARE LIMITED,C-B52300-3623,Bldg Control-Cmpter-sftwre lic purch,18-Feb-11,500.00
http://statistics.data.gov.uk/id/local-authority-district/23UB,Cheltenham Borough Council,441852,3890,INDUSTRIAL MEDICAL AND SAFETY SVCE LTD,C-D12205-3676,Specialist Legal Advice,11-Feb-11,209.17
http://statistics.data.gov.uk/id/local-authority-district/23UB,Cheltenham Borough Council,441853,3859,INDUSTRIAL MEDICAL AND SAFETY SVCE LTD,C-D12205-3676,Specialist Legal Advice,11-Feb-11,359.58
http://statistics.data.gov.uk/id/local-authority-district/23UB,Cheltenham Borough Council,441852,3890,INDUSTRIAL MEDICAL AND SAFETY SVCE LTD,C-D12300-3250,Personnel and P-Occupational Health,11-Feb-11,"1,074.58"
http://statistics.data.gov.uk/id/local-authority-district/23UB,Cheltenham Borough Council,441853,3859,INDUSTRIAL MEDICAL AND SAFETY SVCE LTD,C-D12300-3250,Personnel and P-Occupational Health,11-Feb-11,"1,365.75"
http://statistics.data.gov.uk/id/local-authority-district/23UB,Cheltenham Borough Council,442510,SIN0019,INTERIOR CONTROL LIMITED,C-D21800-3185,Chelt.Strat P/S-Carbon reduction,18-Feb-11,898.00
http://statistics.data.gov.uk/id/local-authority-district/23UB,Cheltenham Borough Council,442135,01037,D A JONES,C-C22110-3152,Parks & Gardens-Commemorative Seats,11-Feb-11,118.62
http://statistics.data.gov.uk/id/local-authority-district/23UB,Cheltenham Borough Council,442135,01037,D A JONES,C-C22110-3152,Parks & Gardens-Commemorative Seats,11-Feb-11,31.38
http://statistics.data.gov.uk/id/local-authority-district/23UB,Cheltenham Borough Council,442042,01038,D A JONES,C-E21100-1807,Car Prks-Off St-RM-Vandalism,11-Feb-11,65.00
http://statistics.data.gov.uk/id/local-authority-district/23UB,Cheltenham Borough Council,442041,01035,D A JONES,C-E21100-3501,Car Prks-Off St-Hire of outside services,11-Feb-11,60.00
http://statistics.data.gov.uk/id/local-authority-district/23UB,Cheltenham Borough Council,442040,01036,D A JONES,C-E22150-3101,CBC Highway Wk-Equipment purchases,11-Feb-11,150.00
http://statistics.data.gov.uk/id/local-authority-district/23UB,Cheltenham Borough Council,442136,01040,D A JONES,C-LC6006-C401,Play Area Maint-Civil Engineering Cntrct,11-Feb-11,212.00
http://statistics.data.gov.uk/id/local-authority-district/23UB,Cheltenham Borough Council,442079,01042,D A JONES,C-LC6006-C401,Play Area Maint-Civil Engineering Cntrct,11-Feb-11,120.80
http://statistics.data.gov.uk/id/local-authority-district/23UB,Cheltenham Borough Council,442082,01043,D A JONES,C-LC6006-C401,Play Area Maint-Civil Engineering Cntrct,11-Feb-11,200.00
http://statistics.data.gov.uk/id/local-authority-district/23UB,Cheltenham Borough Council,442079,01042,D A JONES,C-LC6006-C401,Play Area Maint-Civil Engineering Cntrct,11-Feb-11,125.20
http://statistics.data.gov.uk/id/local-authority-district/23UB,Cheltenham Borough Council,442042,01038,D A JONES,C-N11250-9227,Excluded,11-Feb-11,-13.00
http://statistics.data.gov.uk/id/local-authority-district/23UB,Cheltenham Borough Council,442040,01036,D A JONES,C-N11250-9227,Excluded,11-Feb-11,-23.72
http://statistics.data.gov.uk/id/local-authority-district/23UB,Cheltenham Borough Council,442041,01035,D A JONES,C-N11250-9227,Excluded,11-Feb-11,-12.00
http://statistics.data.gov.uk/id/local-authority-district/23UB,Cheltenham Borough Council,442082,01043,D A JONES,C-N11250-9227,Excluded,11-Feb-11,-40.00
http://statistics.data.gov.uk/id/local-authority-district/23UB,Cheltenham Borough Council,442079,01042,D A JONES,C-N11250-9227,Excluded,11-Feb-11,-25.04
http://statistics.data.gov.uk/id/local-authority-district/23UB,Cheltenham Borough Council,442135,01037,D A JONES,C-N11250-9227,Excluded,11-Feb-11,-23.72
http://statistics.data.gov.uk/id/local-authority-district/23UB,Cheltenham Borough Council,442136,01040,D A JONES,C-N11250-9227,Excluded,11-Feb-11,-30.00
http://statistics.data.gov.uk/id/local-authority-district/23UB,Cheltenham Borough Council,443141,GAS JANUARY V,P H JONES LIMITED,C-H46100-1104,Cen.Heat.Serv-Council House repairs,23-Feb-11,"53,036.41"
http://statistics.data.gov.uk/id/local-authority-district/23UB,Cheltenham Borough Council,443141,GAS JANUARY V,P H JONES LIMITED,C-HC4061-C302,New Heating Ins-Building Contractor,23-Feb-11,"16,678.53"
http://statistics.data.gov.uk/id/local-authority-district/23UB,Cheltenham Borough Council,443141,GAS JANUARY V,P H JONES LIMITED,C-HC4079-C302,Gas - void-Building Contractor,23-Feb-11,"3,504.09"
http://statistics.data.gov.uk/id/local-authority-district/23UB,Cheltenham Borough Council,441545,612-1295,JUPITER PLAY AND LEISURE LIMITED,C-LC6006-C601,Play Area Maint-Equipment,04-Feb-11,"2,866.00"
http://statistics.data.gov.uk/id/local-authority-district/23UB,Cheltenham Borough Council,441545,612-1295,JUPITER PLAY AND LEISURE LIMITED,C-LC6006-C601,Play Area Maint-Equipment,04-Feb-11,"1,198.00"
http://statistics.data.gov.uk/id/local-authority-district/23UB,Cheltenham Borough Council,441545,612-1295,JUPITER PLAY AND LEISURE LIMITED,C-LC6006-C601,Play Area Maint-Equipment,04-Feb-11,"1,226.00"
http://statistics.data.gov.uk/id/local-authority-district/23UB,Cheltenham Borough Council,441546,6161423,JUPITER PLAY AND LEISURE LIMITED,C-LC6006-C601,Play Area Maint-Equipment,04-Feb-11,862.00
http://statistics.data.gov.uk/id/local-authority-district/23UB,Cheltenham Borough Council,441546,6161423,JUPITER PLAY AND LEISURE LIMITED,C-LC6006-C601,Play Area Maint-Equipment,04-Feb-11,"2,550.00"
http://statistics.data.gov.uk/id/local-authority-district/23UB,Cheltenham Borough Council,441546,6161423,JUPITER PLAY AND LEISURE LIMITED,C-LC6006-C601,Play Area Maint-Equipment,04-Feb-11,"1,127.00"
http://statistics.data.gov.uk/id/local-authority-district/23UB,Cheltenham Borough Council,441547,616-1423,JUPITER PLAY AND LEISURE LIMITED,C-LC6006-C601,Play Area Maint-Equipment,04-Feb-11,"4,985.00"
http://statistics.data.gov.uk/id/local-authority-district/23UB,Cheltenham Borough Council,441546,6161423,JUPITER PLAY AND LEISURE LIMITED,C-LC6006-C601,Play Area Maint-Equipment,04-Feb-11,"2,107.00"
http://statistics.data.gov.uk/id/local-authority-district/23UB,Cheltenham Borough Council,441546,6161423,JUPITER PLAY AND LEISURE LIMITED,C-LC6006-C601,Play Area Maint-Equipment,04-Feb-11,766.00
http://statistics.data.gov.uk/id/local-authority-district/23UB,Cheltenham Borough Council,441545,612-1295,JUPITER PLAY AND LEISURE LIMITED,C-LC6006-C601,Play Area Maint-Equipment,04-Feb-11,740.00
http://statistics.data.gov.uk/id/local-authority-district/23UB,Cheltenham Borough Council,441545,612-1295,JUPITER PLAY AND LEISURE LIMITED,C-LC6006-C601,Play Area Maint-Equipment,04-Feb-11,"2,107.00"
http://statistics.data.gov.uk/id/local-authority-district/23UB,Cheltenham Borough Council,442090,928,K B BUILDING SERVICES UK LIMITED,C-D30200-1804,Misc Props & Ld-RM-External structures,11-Feb-11,830.00
http://statistics.data.gov.uk/id/local-authority-district/23UB,Cheltenham Borough Council,441793,916,K B BUILDING SERVICES UK LIMITED,C-E21100-1804,Car Prks-Off St-RM-External structures,11-Feb-11,800.00
http://statistics.data.gov.uk/id/local-authority-district/23UB,Cheltenham Borough Council,441881,917,K B BUILDING SERVICES UK LIMITED,C-H4201G-1104,Gen Wks 2201-Council House repairs,11-Feb-11,995.00
http://statistics.data.gov.uk/id/local-authority-district/23UB,Cheltenham Borough Council,441882,877969,K B BUILDING SERVICES UK LIMITED,C-H4213G-1104,Gen Wks 2213-Council House repairs,11-Feb-11,803.00
http://statistics.data.gov.uk/id/local-authority-district/23UB,Cheltenham Borough Council,442090,928,K B BUILDING SERVICES UK LIMITED,C-H44500-1104,Prop.Manager-Council House repairs,11-Feb-11,830.00
http://statistics.data.gov.uk/id/local-authority-district/23UB,Cheltenham Borough Council,442090,928,K B BUILDING SERVICES UK LIMITED,C-N11250-9227,Excluded,11-Feb-11,-192.00
http://statistics.data.gov.uk/id/local-authority-district/23UB,Cheltenham Borough Council,441793,916,K B BUILDING SERVICES UK LIMITED,C-N11250-9227,Excluded,11-Feb-11,-128.00
http://statistics.data.gov.uk/id/local-authority-district/23UB,Cheltenham Borough Council,441882,877969,K B BUILDING SERVICES UK LIMITED,C-N11250-9227,Excluded,11-Feb-11,-139.00
http://statistics.data.gov.uk/id/local-authority-district/23UB,Cheltenham Borough Council,441881,917,K B BUILDING SERVICES UK LIMITED,C-N11250-9227,Excluded,11-Feb-11,-144.00
http://statistics.data.gov.uk/id/local-authority-district/23UB,Cheltenham Borough Council,442511,915,K B BUILDING SERVICES UK LIMITED,C-E63100-1804,Cemetery & Crem-RM-External structures,18-Feb-11,"1,445.00"
http://statistics.data.gov.uk/id/local-authority-district/23UB,Cheltenham Borough Council,442161,920,K B BUILDING SERVICES UK LIMITED,C-H4211V-1104,Voids 2211-Council House repairs,18-Feb-11,400.00
http://statistics.data.gov.uk/id/local-authority-district/23UB,Cheltenham Borough Council,442160,921,K B BUILDING SERVICES UK LIMITED,C-H4213V-1104,Voids 2213-Council House repairs,18-Feb-11,270.00
http://statistics.data.gov.uk/id/local-authority-district/23UB,Cheltenham Borough Council,442160,921,K B BUILDING SERVICES UK LIMITED,C-N11250-9227,Excluded,18-Feb-11,-45.00
http://statistics.data.gov.uk/id/local-authority-district/23UB,Cheltenham Borough Council,442161,920,K B BUILDING SERVICES UK LIMITED,C-N11250-9227,Excluded,18-Feb-11,-64.00
http://statistics.data.gov.uk/id/local-authority-district/23UB,Cheltenham Borough Council,442511,915,K B BUILDING SERVICES UK LIMITED,C-N11250-9227,Excluded,18-Feb-11,-256.00
http://statistics.data.gov.uk/id/local-authority-district/23UB,Cheltenham Borough Council,442882,930,K B BUILDING SERVICES UK LIMITED,C-C24150-3107,Fleet Management-Vehicle wash maintence,23-Feb-11,"6,450.00"
http://statistics.data.gov.uk/id/local-authority-district/23UB,Cheltenham Borough Council,442882,930,K B BUILDING SERVICES UK LIMITED,C-C24150-3107,Fleet Management-Vehicle wash maintence,23-Feb-11,-823.00
http://statistics.data.gov.uk/id/local-authority-district/23UB,Cheltenham Borough Council,442881,919,K B BUILDING SERVICES UK LIMITED,C-HC4050-C302,Major Voids-Building Contractor,23-Feb-11,"4,350.00"
http://statistics.data.gov.uk/id/local-authority-district/23UB,Cheltenham Borough Council,442881,919,K B BUILDING SERVICES UK LIMITED,C-N11250-9227,Excluded,23-Feb-11,-720.00
http://statistics.data.gov.uk/id/local-authority-district/23UB,Cheltenham Borough Council,442959,600487,KEDRON UK LIMITED,C-D11820-3660,IT Infrastructu-Hardware PC & Servers,23-Feb-11,985.00
http://statistics.data.gov.uk/id/local-authority-district/23UB,Cheltenham Borough Council,442959,600487,KEDRON UK LIMITED,C-D11820-3660,IT Infrastructu-Hardware PC & Servers,23-Feb-11,"1,645.00"
http://statistics.data.gov.uk/id/local-authority-district/23UB,Cheltenham Borough Council,442959,600487,KEDRON UK LIMITED,C-D11820-3660,IT Infrastructu-Hardware PC & Servers,23-Feb-11,"1,975.00"
http://statistics.data.gov.uk/id/local-authority-district/23UB,Cheltenham Borough Council,442959,600487,KEDRON UK LIMITED,C-D11820-3660,IT Infrastructu-Hardware PC & Servers,23-Feb-11,"5,595.00"
http://statistics.data.gov.uk/id/local-authority-district/23UB,Cheltenham Borough Council,442959,600487,KEDRON UK LIMITED,C-D11820-3660,IT Infrastructu-Hardware PC & Servers,23-Feb-11,"3,995.00"
http://statistics.data.gov.uk/id/local-authority-district/23UB,Cheltenham Borough Council,442959,600487,KEDRON UK LIMITED,C-D11820-3660,IT Infrastructu-Hardware PC & Servers,23-Feb-11,"-1,900.00"
http://statistics.data.gov.uk/id/local-authority-district/23UB,Cheltenham Borough Council,442936,103405,KEEP BRITAIN TIDY,C-C22110-1107,Parks & Gardens-Repairs/Cleaning,23-Feb-11,175.00
http://statistics.data.gov.uk/id/local-authority-district/23UB,Cheltenham Borough Council,442937,103406,KEEP BRITAIN TIDY,C-C22110-1107,Parks & Gardens-Repairs/Cleaning,23-Feb-11,175.00
http://statistics.data.gov.uk/id/local-authority-district/23UB,Cheltenham Borough Council,442937,103406,KEEP BRITAIN TIDY,C-C22110-1107,Parks & Gardens-Repairs/Cleaning,23-Feb-11,175.00
http://statistics.data.gov.uk/id/local-authority-district/23UB,Cheltenham Borough Council,442937,103406,KEEP BRITAIN TIDY,C-C22110-1107,Parks & Gardens-Repairs/Cleaning,23-Feb-11,175.00
http://statistics.data.gov.uk/id/local-authority-district/23UB,Cheltenham Borough Council,443004,OP/1472297,KILLGERM CHEMICALS LTD,C-E61350-3110,Pests Control-Materials,23-Feb-11,186.42
http://statistics.data.gov.uk/id/local-authority-district/23UB,Cheltenham Borough Council,443004,OP/1472297,KILLGERM CHEMICALS LTD,C-E61350-3110,Pests Control-Materials,23-Feb-11,133.62
http://statistics.data.gov.uk/id/local-authority-district/23UB,Cheltenham Borough Council,443003,OP/1472746,KILLGERM CHEMICALS LTD,C-E61350-3110,Pests Control-Materials,23-Feb-11,36.80
http://statistics.data.gov.uk/id/local-authority-district/23UB,Cheltenham Borough Council,443003,OP/1472746,KILLGERM CHEMICALS LTD,C-E61350-3110,Pests Control-Materials,23-Feb-11,39.22
http://statistics.data.gov.uk/id/local-authority-district/23UB,Cheltenham Borough Council,443004,OP/1472297,KILLGERM CHEMICALS LTD,C-E61350-3110,Pests Control-Materials,23-Feb-11,94.10
http://statistics.data.gov.uk/id/local-authority-district/23UB,Cheltenham Borough Council,443004,OP/1472297,KILLGERM CHEMICALS LTD,C-E61350-3110,Pests Control-Materials,23-Feb-11,27.72
http://statistics.data.gov.uk/id/local-authority-district/23UB,Cheltenham Borough Council,443004,OP/1472297,KILLGERM CHEMICALS LTD,C-E61350-3110,Pests Control-Materials,23-Feb-11,73.60
http://statistics.data.gov.uk/id/local-authority-district/23UB,Cheltenham Borough Council,443004,OP/1472297,KILLGERM CHEMICALS LTD,C-E61350-3110,Pests Control-Materials,23-Feb-11,114.58
http://statistics.data.gov.uk/id/local-authority-district/23UB,Cheltenham Borough Council,441641,REDACTED,REDACTED,C-L21100-3934,Town Hall-Insurance claim,04-Feb-11,"3,000.00"
http://statistics.data.gov.uk/id/local-authority-district/23UB,Cheltenham Borough Council,442125,REDACTED,PETER KNOX WINDOWS,C-HC7400-C801,H&S Grant-Grants,11-Feb-11,"5,000.00"
http://statistics.data.gov.uk/id/local-authority-district/23UB,Cheltenham Borough Council,442906,351,G GARDINER T/A LABURNUM LODGE,C-H22400-5204,Homelessness-Provision of accommo(B&B),23-Feb-11,444.06
http://statistics.data.gov.uk/id/local-authority-district/23UB,Cheltenham Borough Council,442907,350,G GARDINER T/A LABURNUM LODGE,C-H22400-5204,Homelessness-Provision of accommo(B&B),23-Feb-11,540.60
http://statistics.data.gov.uk/id/local-authority-district/23UB,Cheltenham Borough Council,442729,REDACTED,REDACTED,C-H22225-3525,Housing Stndrds-N.A.A. Burials,18-Feb-11,"1,124.00"
http://statistics.data.gov.uk/id/local-authority-district/23UB,Cheltenham Borough Council,441620,CONTRIBUTION T,LECKHAMPTON WITH WARDEN HILL PARISH COUN,C-D38850-3801,Youth Affairs-Grants,04-Feb-11,"7,940.83"
http://statistics.data.gov.uk/id/local-authority-district/23UB,Cheltenham Borough Council,442727,REDACTED,2 LET GLOS LIMITED,C-H22400-3244,Homelessness-Supporting People,18-Feb-11,410.00
http://statistics.data.gov.uk/id/local-authority-district/23UB,Cheltenham Borough Council,442728,REDACTED,2 LET GLOS LIMITED,C-H22400-3244,Homelessness-Supporting People,18-Feb-11,410.00
http://statistics.data.gov.uk/id/local-authority-district/23UB,Cheltenham Borough Council,441760,362617,LISTER WILDER LTD,C-C24100-3582,Fleet Maint-DSO Invoices,11-Feb-11,441.70
http://statistics.data.gov.uk/id/local-authority-district/23UB,Cheltenham Borough Council,441761,362616,LISTER WILDER LTD,C-C24100-3582,Fleet Maint-DSO Invoices,11-Feb-11,884.66
http://statistics.data.gov.uk/id/local-authority-district/23UB,Cheltenham Borough Council,442512,363185,LISTER WILDER LTD,C-C24100-3501,Fleet Maint-Hire of outside services,18-Feb-11,"1,477.38"
http://statistics.data.gov.uk/id/local-authority-district/23UB,Cheltenham Borough Council,441408,L301,MR M J LOVERIDGE,C-H46300-1104,Comm.Light.Mtce-Council House repairs,04-Feb-11,45.68
http://statistics.data.gov.uk/id/local-authority-district/23UB,Cheltenham Borough Council,441413,L296,MR M J LOVERIDGE,C-H46300-1104,Comm.Light.Mtce-Council House repairs,04-Feb-11,36.90
http://statistics.data.gov.uk/id/local-authority-district/23UB,Cheltenham Borough Council,441415,L310,MR M J LOVERIDGE,C-H46300-1104,Comm.Light.Mtce-Council House repairs,04-Feb-11,184.04
http://statistics.data.gov.uk/id/local-authority-district/23UB,Cheltenham Borough Council,441417,L307,MR M J LOVERIDGE,C-H46300-1104,Comm.Light.Mtce-Council House repairs,04-Feb-11,96.41
http://statistics.data.gov.uk/id/local-authority-district/23UB,Cheltenham Borough Council,441419,L305,MR M J LOVERIDGE,C-H46300-1104,Comm.Light.Mtce-Council House repairs,04-Feb-11,54.46
http://statistics.data.gov.uk/id/local-authority-district/23UB,Cheltenham Borough Council,441428,L293,MR M J LOVERIDGE,C-H46300-1104,Comm.Light.Mtce-Council House repairs,04-Feb-11,32.51
http://statistics.data.gov.uk/id/local-authority-district/23UB,Cheltenham Borough Council,441427,L304,MR M J LOVERIDGE,C-H46300-1104,Comm.Light.Mtce-Council House repairs,04-Feb-11,50.07
http://statistics.data.gov.uk/id/local-authority-district/23UB,Cheltenham Borough Council,441426,L287,MR M J LOVERIDGE,C-H46300-1104,Comm.Light.Mtce-Council House repairs,04-Feb-11,32.51
http://statistics.data.gov.uk/id/local-authority-district/23UB,Cheltenham Borough Council,441425,L288,MR M J LOVERIDGE,C-H46300-1104,Comm.Light.Mtce-Council House repairs,04-Feb-11,32.51
http://statistics.data.gov.uk/id/local-authority-district/23UB,Cheltenham Borough Council,441424,L289,MR M J LOVERIDGE,C-H46300-1104,Comm.Light.Mtce-Council House repairs,04-Feb-11,32.51
http://statistics.data.gov.uk/id/local-authority-district/23UB,Cheltenham Borough Council,441423,L290,MR M J LOVERIDGE,C-H46300-1104,Comm.Light.Mtce-Council House repairs,04-Feb-11,32.51
http://statistics.data.gov.uk/id/local-authority-district/23UB,Cheltenham Borough Council,441422,L291,MR M J LOVERIDGE,C-H46300-1104,Comm.Light.Mtce-Council House repairs,04-Feb-11,32.51
http://statistics.data.gov.uk/id/local-authority-district/23UB,Cheltenham Borough Council,441421,L292,MR M J LOVERIDGE,C-H46300-1104,Comm.Light.Mtce-Council House repairs,04-Feb-11,32.51
http://statistics.data.gov.uk/id/local-authority-district/23UB,Cheltenham Borough Council,441420,L308,MR M J LOVERIDGE,C-H46300-1104,Comm.Light.Mtce-Council House repairs,04-Feb-11,105.34
http://statistics.data.gov.uk/id/local-authority-district/23UB,Cheltenham Borough Council,441435,L302,MR M J LOVERIDGE,C-H46300-1104,Comm.Light.Mtce-Council House repairs,04-Feb-11,45.68
http://statistics.data.gov.uk/id/local-authority-district/23UB,Cheltenham Borough Council,441434,L303,MR M J LOVERIDGE,C-H46300-1104,Comm.Light.Mtce-Council House repairs,04-Feb-11,45.68
http://statistics.data.gov.uk/id/local-authority-district/23UB,Cheltenham Borough Council,441433,L286,MR M J LOVERIDGE,C-H46300-1104,Comm.Light.Mtce-Council House repairs,04-Feb-11,32.51
http://statistics.data.gov.uk/id/local-authority-district/23UB,Cheltenham Borough Council,441432,L285,MR M J LOVERIDGE,C-H46300-1104,Comm.Light.Mtce-Council House repairs,04-Feb-11,32.51
http://statistics.data.gov.uk/id/local-authority-district/23UB,Cheltenham Borough Council,441431,L283,MR M J LOVERIDGE,C-H46300-1104,Comm.Light.Mtce-Council House repairs,04-Feb-11,32.51
http://statistics.data.gov.uk/id/local-authority-district/23UB,Cheltenham Borough Council,441430,L284,MR M J LOVERIDGE,C-H46300-1104,Comm.Light.Mtce-Council House repairs,04-Feb-11,32.51
http://statistics.data.gov.uk/id/local-authority-district/23UB,Cheltenham Borough Council,441429,L294,MR M J LOVERIDGE,C-H46300-1104,Comm.Light.Mtce-Council House repairs,04-Feb-11,32.51
http://statistics.data.gov.uk/id/local-authority-district/23UB,Cheltenham Borough Council,441418,L306,MR M J LOVERIDGE,C-H46300-1104,Comm.Light.Mtce-Council House repairs,04-Feb-11,62.12
http://statistics.data.gov.uk/id/local-authority-district/23UB,Cheltenham Borough Council,441416,L309,MR M J LOVERIDGE,C-H46300-1104,Comm.Light.Mtce-Council House repairs,04-Feb-11,128.92
http://statistics.data.gov.uk/id/local-authority-district/23UB,Cheltenham Borough Council,441414,L295,MR M J LOVERIDGE,C-H46300-1104,Comm.Light.Mtce-Council House repairs,04-Feb-11,36.90
http://statistics.data.gov.uk/id/local-authority-district/23UB,Cheltenham Borough Council,441412,L297,MR M J LOVERIDGE,C-H46300-1104,Comm.Light.Mtce-Council House repairs,04-Feb-11,36.90
http://statistics.data.gov.uk/id/local-authority-district/23UB,Cheltenham Borough Council,441409,L300,MR M J LOVERIDGE,C-H46300-1104,Comm.Light.Mtce-Council House repairs,04-Feb-11,45.68
http://statistics.data.gov.uk/id/local-authority-district/23UB,Cheltenham Borough Council,441411,L298,MR M J LOVERIDGE,C-H46300-1104,Comm.Light.Mtce-Council House repairs,04-Feb-11,36.90
http://statistics.data.gov.uk/id/local-authority-district/23UB,Cheltenham Borough Council,441410,L299,MR M J LOVERIDGE,C-H46300-1104,Comm.Light.Mtce-Council House repairs,04-Feb-11,41.29
http://statistics.data.gov.uk/id/local-authority-district/23UB,Cheltenham Borough Council,442286,L314,MR M J LOVERIDGE,C-H44600-1104,J D Court-Council House repairs,18-Feb-11,32.51
http://statistics.data.gov.uk/id/local-authority-district/23UB,Cheltenham Borough Council,442269,L312,MR M J LOVERIDGE,C-H46300-1104,Comm.Light.Mtce-Council House repairs,18-Feb-11,32.51
http://statistics.data.gov.uk/id/local-authority-district/23UB,Cheltenham Borough Council,442277,L325,MR M J LOVERIDGE,C-H46300-1104,Comm.Light.Mtce-Council House repairs,18-Feb-11,80.80
http://statistics.data.gov.uk/id/local-authority-district/23UB,Cheltenham Borough Council,442283,L323,MR M J LOVERIDGE,C-H46300-1104,Comm.Light.Mtce-Council House repairs,18-Feb-11,50.07
http://statistics.data.gov.uk/id/local-authority-district/23UB,Cheltenham Borough Council,442282,L311,MR M J LOVERIDGE,C-H46300-1104,Comm.Light.Mtce-Council House repairs,18-Feb-11,32.51
http://statistics.data.gov.uk/id/local-authority-district/23UB,Cheltenham Borough Council,442281,L316,MR M J LOVERIDGE,C-H46300-1104,Comm.Light.Mtce-Council House repairs,18-Feb-11,32.51
http://statistics.data.gov.uk/id/local-authority-district/23UB,Cheltenham Borough Council,442280,L313,MR M J LOVERIDGE,C-H46300-1104,Comm.Light.Mtce-Council House repairs,18-Feb-11,32.51
http://statistics.data.gov.uk/id/local-authority-district/23UB,Cheltenham Borough Council,442279,L315,MR M J LOVERIDGE,C-H46300-1104,Comm.Light.Mtce-Council House repairs,18-Feb-11,32.51
http://statistics.data.gov.uk/id/local-authority-district/23UB,Cheltenham Borough Council,442278,L317,MR M J LOVERIDGE,C-H46300-1104,Comm.Light.Mtce-Council House repairs,18-Feb-11,32.51
http://statistics.data.gov.uk/id/local-authority-district/23UB,Cheltenham Borough Council,442276,L319,MR M J LOVERIDGE,C-H46300-1104,Comm.Light.Mtce-Council House repairs,18-Feb-11,36.90
http://statistics.data.gov.uk/id/local-authority-district/23UB,Cheltenham Borough Council,442271,L326,MR M J LOVERIDGE,C-H46300-1104,Comm.Light.Mtce-Council House repairs,18-Feb-11,111.17
http://statistics.data.gov.uk/id/local-authority-district/23UB,Cheltenham Borough Council,442273,L322,MR M J LOVERIDGE,C-H46300-1104,Comm.Light.Mtce-Council House repairs,18-Feb-11,45.68
http://statistics.data.gov.uk/id/local-authority-district/23UB,Cheltenham Borough Council,442274,L321,MR M J LOVERIDGE,C-H46300-1104,Comm.Light.Mtce-Council House repairs,18-Feb-11,41.29
http://statistics.data.gov.uk/id/local-authority-district/23UB,Cheltenham Borough Council,442275,L324,MR M J LOVERIDGE,C-H46300-1104,Comm.Light.Mtce-Council House repairs,18-Feb-11,75.90
http://statistics.data.gov.uk/id/local-authority-district/23UB,Cheltenham Borough Council,442272,L320,MR M J LOVERIDGE,C-H46300-1104,Comm.Light.Mtce-Council House repairs,18-Feb-11,41.29
http://statistics.data.gov.uk/id/local-authority-district/23UB,Cheltenham Borough Council,442270,L318,MR M J LOVERIDGE,C-H46300-1104,Comm.Light.Mtce-Council House repairs,18-Feb-11,36.90
http://statistics.data.gov.uk/id/local-authority-district/23UB,Cheltenham Borough Council,442044,57971,MAIGRET CHEMICALS LIMITED,C-E21100-3101,Car Prks-Off St-Equipment purchases,11-Feb-11,45.00
http://statistics.data.gov.uk/id/local-authority-district/23UB,Cheltenham Borough Council,442044,57971,MAIGRET CHEMICALS LIMITED,C-E21100-3101,Car Prks-Off St-Equipment purchases,11-Feb-11,"1,800.00"
http://statistics.data.gov.uk/id/local-authority-district/23UB,Cheltenham Borough Council,442989,17465,F G MARSHALL LTD,C-E63100-3111,Cemetery & Crem-Goods purch for resale,25-Feb-11,20.00
http://statistics.data.gov.uk/id/local-authority-district/23UB,Cheltenham Borough Council,442989,17465,F G MARSHALL LTD,C-E63100-3111,Cemetery & Crem-Goods purch for resale,25-Feb-11,721.78
http://statistics.data.gov.uk/id/local-authority-district/23UB,Cheltenham Borough Council,442894,080,MISS A MARAFFI,C-H22400-5204,Homelessness-Provision of accommo(B&B),23-Feb-11,240.00
http://statistics.data.gov.uk/id/local-authority-district/23UB,Cheltenham Borough Council,442905,079,MISS A MARAFFI,C-H22400-5204,Homelessness-Provision of accommo(B&B),23-Feb-11,240.00
http://statistics.data.gov.uk/id/local-authority-district/23UB,Cheltenham Borough Council,442895,081,MISS A MARAFFI,C-H22400-5204,Homelessness-Provision of accommo(B&B),23-Feb-11,240.00
http://statistics.data.gov.uk/id/local-authority-district/23UB,Cheltenham Borough Council,441622,REDACTED,MARKET RIGHT,C-H22400-3828,Homelessness-Prevention Fund,04-Feb-11,600.00
http://statistics.data.gov.uk/id/local-authority-district/23UB,Cheltenham Borough Council,442956,8786,MASSIE ELECTRICS,C-D11820-3660,IT Infrastructu-Hardware PC & Servers,23-Feb-11,27.00
http://statistics.data.gov.uk/id/local-authority-district/23UB,Cheltenham Borough Council,442958,8809,MASSIE ELECTRICS,C-D11820-3662,IT Infrastructu-Cabling & Network work,23-Feb-11,100.00
http://statistics.data.gov.uk/id/local-authority-district/23UB,Cheltenham Borough Council,442958,8809,MASSIE ELECTRICS,C-D11820-3662,IT Infrastructu-Cabling & Network work,23-Feb-11,270.00
http://statistics.data.gov.uk/id/local-authority-district/23UB,Cheltenham Borough Council,442958,8809,MASSIE ELECTRICS,C-D11820-3662,IT Infrastructu-Cabling & Network work,23-Feb-11,94.00
http://statistics.data.gov.uk/id/local-authority-district/23UB,Cheltenham Borough Council,442768,8812,MASSIE ELECTRICS,C-D14100-1801,Depot Building-RM-Electrical repairs,23-Feb-11,217.90
http://statistics.data.gov.uk/id/local-authority-district/23UB,Cheltenham Borough Council,442769,8817,MASSIE ELECTRICS,C-D14100-1801,Depot Building-RM-Electrical repairs,23-Feb-11,86.00
http://statistics.data.gov.uk/id/local-authority-district/23UB,Cheltenham Borough Council,442767,8811,MASSIE ELECTRICS,C-PM0081-R201,Crematorium-Cremator Repairs,23-Feb-11,55.00
http://statistics.data.gov.uk/id/local-authority-district/23UB,Cheltenham Borough Council,442590,0014,MARK MASTERS,C-L11500-3522,Rec Facilities-Coaching scheme,18-Feb-11,100.00
http://statistics.data.gov.uk/id/local-authority-district/23UB,Cheltenham Borough Council,442590,0014,MARK MASTERS,C-L11500-3522,Rec Facilities-Coaching scheme,18-Feb-11,189.00
http://statistics.data.gov.uk/id/local-authority-district/23UB,Cheltenham Borough Council,442590,0014,MARK MASTERS,C-L11500-3522,Rec Facilities-Coaching scheme,18-Feb-11,126.00
http://statistics.data.gov.uk/id/local-authority-district/23UB,Cheltenham Borough Council,442590,0014,MARK MASTERS,C-L11500-3522,Rec Facilities-Coaching scheme,18-Feb-11,84.00
http://statistics.data.gov.uk/id/local-authority-district/23UB,Cheltenham Borough Council,442590,0014,MARK MASTERS,C-L11500-3522,Rec Facilities-Coaching scheme,18-Feb-11,252.00
http://statistics.data.gov.uk/id/local-authority-district/23UB,Cheltenham Borough Council,442077,127768,MATTA PRODUCTS UK LIMITED,C-LC6006-C401,Play Area Maint-Civil Engineering Cntrct,11-Feb-11,"2,041.00"
http://statistics.data.gov.uk/id/local-authority-district/23UB,Cheltenham Borough Council,442077,127768,MATTA PRODUCTS UK LIMITED,C-LC6006-C401,Play Area Maint-Civil Engineering Cntrct,11-Feb-11,"2,845.00"
http://statistics.data.gov.uk/id/local-authority-district/23UB,Cheltenham Borough Council,442931,127784,MATTA PRODUCTS UK LIMITED,C-LC6006-C401,Play Area Maint-Civil Engineering Cntrct,23-Feb-11,"5,021.25"
http://statistics.data.gov.uk/id/local-authority-district/23UB,Cheltenham Borough Council,442854,3490,PHIL MCINTYRE ENTERTAINMENTS LTD,C-0T23H1-3568,Artist Fees,23-Feb-11,"8,968.29"
http://statistics.data.gov.uk/id/local-authority-district/23UB,Cheltenham Borough Council,442855,3494,PHIL MCINTYRE ENTERTAINMENTS LTD,C-0T29K1-3568,Artist Fees         ,23-Feb-11,"2,522.64"
http://statistics.data.gov.uk/id/local-authority-district/23UB,Cheltenham Borough Council,442855,3494,PHIL MCINTYRE ENTERTAINMENTS LTD,C-N13125-9205,ASH Ledger-Town Hall Invoices Paid,23-Feb-11,-432.00
http://statistics.data.gov.uk/id/local-authority-district/23UB,Cheltenham Borough Council,442854,3490,PHIL MCINTYRE ENTERTAINMENTS LTD,C-Z12210-9271,Box Off A/C-CBC Invoices Paid,23-Feb-11,"-1,353.00"
http://statistics.data.gov.uk/id/local-authority-district/23UB,Cheltenham Borough Council,441446,01497,MG WINDOWS CHELTENHAM LIMITED,C-H44350-1104,Window Repairs-Council House repairs,04-Feb-11,469.00
http://statistics.data.gov.uk/id/local-authority-district/23UB,Cheltenham Borough Council,441447,02063,MG WINDOWS CHELTENHAM LIMITED,C-H44350-1104,Window Repairs-Council House repairs,04-Feb-11,487.00
http://statistics.data.gov.uk/id/local-authority-district/23UB,Cheltenham Borough Council,441929,02132,MG WINDOWS CHELTENHAM LIMITED,C-H44350-1104,Window Repairs-Council House repairs,11-Feb-11,34.08
http://statistics.data.gov.uk/id/local-authority-district/23UB,Cheltenham Borough Council,441885,02104,MG WINDOWS CHELTENHAM LIMITED,C-H44350-1104,Window Repairs-Council House repairs,11-Feb-11,54.92
http://statistics.data.gov.uk/id/local-authority-district/23UB,Cheltenham Borough Council,441884,02064,MG WINDOWS CHELTENHAM LIMITED,C-H44350-1104,Window Repairs-Council House repairs,11-Feb-11,32.56
http://statistics.data.gov.uk/id/local-authority-district/23UB,Cheltenham Borough Council,441950,02133,MG WINDOWS CHELTENHAM LIMITED,C-H44350-1104,Window Repairs-Council House repairs,11-Feb-11,38.51
http://statistics.data.gov.uk/id/local-authority-district/23UB,Cheltenham Borough Council,441949,02128,MG WINDOWS CHELTENHAM LIMITED,C-H44350-1104,Window Repairs-Council House repairs,11-Feb-11,84.33
http://statistics.data.gov.uk/id/local-authority-district/23UB,Cheltenham Borough Council,441948,02125,MG WINDOWS CHELTENHAM LIMITED,C-H44350-1104,Window Repairs-Council House repairs,11-Feb-11,26.74
http://statistics.data.gov.uk/id/local-authority-district/23UB,Cheltenham Borough Council,441947,02124,MG WINDOWS CHELTENHAM LIMITED,C-H44350-1104,Window Repairs-Council House repairs,11-Feb-11,30.02
http://statistics.data.gov.uk/id/local-authority-district/23UB,Cheltenham Borough Council,441946,878271/2123,MG WINDOWS CHELTENHAM LIMITED,C-H44350-1104,Window Repairs-Council House repairs,11-Feb-11,42.49
http://statistics.data.gov.uk/id/local-authority-district/23UB,Cheltenham Borough Council,441945,02122,MG WINDOWS CHELTENHAM LIMITED,C-H44350-1104,Window Repairs-Council House repairs,11-Feb-11,20.00
http://statistics.data.gov.uk/id/local-authority-district/23UB,Cheltenham Borough Council,441944,02121,MG WINDOWS CHELTENHAM LIMITED,C-H44350-1104,Window Repairs-Council House repairs,11-Feb-11,44.45
http://statistics.data.gov.uk/id/local-authority-district/23UB,Cheltenham Borough Council,441943,02120,MG WINDOWS CHELTENHAM LIMITED,C-H44350-1104,Window Repairs-Council House repairs,11-Feb-11,27.61
http://statistics.data.gov.uk/id/local-authority-district/23UB,Cheltenham Borough Council,441942,878166,MG WINDOWS CHELTENHAM LIMITED,C-H44350-1104,Window Repairs-Council House repairs,11-Feb-11,21.90
http://statistics.data.gov.uk/id/local-authority-district/23UB,Cheltenham Borough Council,441941,02118,MG WINDOWS CHELTENHAM LIMITED,C-H44350-1104,Window Repairs-Council House repairs,11-Feb-11,20.00
http://statistics.data.gov.uk/id/local-authority-district/23UB,Cheltenham Borough Council,441940,02117,MG WINDOWS CHELTENHAM LIMITED,C-H44350-1104,Window Repairs-Council House repairs,11-Feb-11,99.75
http://statistics.data.gov.uk/id/local-authority-district/23UB,Cheltenham Borough Council,441939,02115,MG WINDOWS CHELTENHAM LIMITED,C-H44350-1104,Window Repairs-Council House repairs,11-Feb-11,100.50
http://statistics.data.gov.uk/id/local-authority-district/23UB,Cheltenham Borough Council,441938,02116,MG WINDOWS CHELTENHAM LIMITED,C-H44350-1104,Window Repairs-Council House repairs,11-Feb-11,31.90
http://statistics.data.gov.uk/id/local-authority-district/23UB,Cheltenham Borough Council,441937,02113,MG WINDOWS CHELTENHAM LIMITED,C-H44350-1104,Window Repairs-Council House repairs,11-Feb-11,116.78
http://statistics.data.gov.uk/id/local-authority-district/23UB,Cheltenham Borough Council,441936,02114,MG WINDOWS CHELTENHAM LIMITED,C-H44350-1104,Window Repairs-Council House repairs,11-Feb-11,35.55
http://statistics.data.gov.uk/id/local-authority-district/23UB,Cheltenham Borough Council,441894,02056,MG WINDOWS CHELTENHAM LIMITED,C-H44350-1104,Window Repairs-Council House repairs,11-Feb-11,19.60
http://statistics.data.gov.uk/id/local-authority-district/23UB,Cheltenham Borough Council,441893,02068,MG WINDOWS CHELTENHAM LIMITED,C-H44350-1104,Window Repairs-Council House repairs,11-Feb-11,48.09
http://statistics.data.gov.uk/id/local-authority-district/23UB,Cheltenham Borough Council,441892,02101,MG WINDOWS CHELTENHAM LIMITED,C-H44350-1104,Window Repairs-Council House repairs,11-Feb-11,38.49
http://statistics.data.gov.uk/id/local-authority-district/23UB,Cheltenham Borough Council,441891,02102,MG WINDOWS CHELTENHAM LIMITED,C-H44350-1104,Window Repairs-Council House repairs,11-Feb-11,30.00
http://statistics.data.gov.uk/id/local-authority-district/23UB,Cheltenham Borough Council,441890,02103,MG WINDOWS CHELTENHAM LIMITED,C-H44350-1104,Window Repairs-Council House repairs,11-Feb-11,42.49
http://statistics.data.gov.uk/id/local-authority-district/23UB,Cheltenham Borough Council,441889,02106,MG WINDOWS CHELTENHAM LIMITED,C-H44350-1104,Window Repairs-Council House repairs,11-Feb-11,24.40
http://statistics.data.gov.uk/id/local-authority-district/23UB,Cheltenham Borough Council,441888,02107,MG WINDOWS CHELTENHAM LIMITED,C-H44350-1104,Window Repairs-Council House repairs,11-Feb-11,86.31
http://statistics.data.gov.uk/id/local-authority-district/23UB,Cheltenham Borough Council,441887,02108,MG WINDOWS CHELTENHAM LIMITED,C-H44350-1104,Window Repairs-Council House repairs,11-Feb-11,46.12
http://statistics.data.gov.uk/id/local-authority-district/23UB,Cheltenham Borough Council,441886,02109,MG WINDOWS CHELTENHAM LIMITED,C-H44350-1104,Window Repairs-Council House repairs,11-Feb-11,31.28
http://statistics.data.gov.uk/id/local-authority-district/23UB,Cheltenham Borough Council,441902,02025,MG WINDOWS CHELTENHAM LIMITED,C-H44350-1104,Window Repairs-Council House repairs,11-Feb-11,20.00
http://statistics.data.gov.uk/id/local-authority-district/23UB,Cheltenham Borough Council,441900,02098,MG WINDOWS CHELTENHAM LIMITED,C-H44350-1104,Window Repairs-Council House repairs,11-Feb-11,45.20
http://statistics.data.gov.uk/id/local-authority-district/23UB,Cheltenham Borough Council,441899,02065,MG WINDOWS CHELTENHAM LIMITED,C-H44350-1104,Window Repairs-Council House repairs,11-Feb-11,20.00
http://statistics.data.gov.uk/id/local-authority-district/23UB,Cheltenham Borough Council,441898,02082,MG WINDOWS CHELTENHAM LIMITED,C-H44350-1104,Window Repairs-Council House repairs,11-Feb-11,13.50
http://statistics.data.gov.uk/id/local-authority-district/23UB,Cheltenham Borough Council,441897,02067,MG WINDOWS CHELTENHAM LIMITED,C-H44350-1104,Window Repairs-Council House repairs,11-Feb-11,21.90
http://statistics.data.gov.uk/id/local-authority-district/23UB,Cheltenham Borough Council,441896,020545,MG WINDOWS CHELTENHAM LIMITED,C-H44350-1104,Window Repairs-Council House repairs,11-Feb-11,52.38
http://statistics.data.gov.uk/id/local-authority-district/23UB,Cheltenham Borough Council,441895,02058,MG WINDOWS CHELTENHAM LIMITED,C-H44350-1104,Window Repairs-Council House repairs,11-Feb-11,33.60
http://statistics.data.gov.uk/id/local-authority-district/23UB,Cheltenham Borough Council,441931,02130,MG WINDOWS CHELTENHAM LIMITED,C-H44350-1104,Window Repairs-Council House repairs,11-Feb-11,25.40
http://statistics.data.gov.uk/id/local-authority-district/23UB,Cheltenham Borough Council,441932,02126,MG WINDOWS CHELTENHAM LIMITED,C-H44350-1104,Window Repairs-Council House repairs,11-Feb-11,45.40
http://statistics.data.gov.uk/id/local-authority-district/23UB,Cheltenham Borough Council,441933,02127,MG WINDOWS CHELTENHAM LIMITED,C-H44350-1104,Window Repairs-Council House repairs,11-Feb-11,36.80
http://statistics.data.gov.uk/id/local-authority-district/23UB,Cheltenham Borough Council,441935,02129,MG WINDOWS CHELTENHAM LIMITED,C-H44350-1104,Window Repairs-Council House repairs,11-Feb-11,81.20
http://statistics.data.gov.uk/id/local-authority-district/23UB,Cheltenham Borough Council,441934,02112,MG WINDOWS CHELTENHAM LIMITED,C-H44350-1104,Window Repairs-Council House repairs,11-Feb-11,141.88
http://statistics.data.gov.uk/id/local-authority-district/23UB,Cheltenham Borough Council,441930,02131,MG WINDOWS CHELTENHAM LIMITED,C-H44350-1104,Window Repairs-Council House repairs,11-Feb-11,40.49
http://statistics.data.gov.uk/id/local-authority-district/23UB,Cheltenham Borough Council,442298,02160,MG WINDOWS CHELTENHAM LIMITED,C-H44350-1104,Window Repairs-Council House repairs,18-Feb-11,63.24
http://statistics.data.gov.uk/id/local-authority-district/23UB,Cheltenham Borough Council,442306,02189,MG WINDOWS CHELTENHAM LIMITED,C-H44350-1104,Window Repairs-Council House repairs,18-Feb-11,39.85
http://statistics.data.gov.uk/id/local-authority-district/23UB,Cheltenham Borough Council,442308,02176,MG WINDOWS CHELTENHAM LIMITED,C-H44350-1104,Window Repairs-Council House repairs,18-Feb-11,45.53
http://statistics.data.gov.uk/id/local-authority-district/23UB,Cheltenham Borough Council,442341,02161,MG WINDOWS CHELTENHAM LIMITED,C-H44350-1104,Window Repairs-Council House repairs,18-Feb-11,40.44
http://statistics.data.gov.uk/id/local-authority-district/23UB,Cheltenham Borough Council,442328,02080,MG WINDOWS CHELTENHAM LIMITED,C-H44350-1104,Window Repairs-Council House repairs,18-Feb-11,362.00
http://statistics.data.gov.uk/id/local-authority-district/23UB,Cheltenham Borough Council,442315,02175,MG WINDOWS CHELTENHAM LIMITED,C-H44350-1104,Window Repairs-Council House repairs,18-Feb-11,37.50
http://statistics.data.gov.uk/id/local-authority-district/23UB,Cheltenham Borough Council,442314,02177,MG WINDOWS CHELTENHAM LIMITED,C-H44350-1104,Window Repairs-Council House repairs,18-Feb-11,33.80
http://statistics.data.gov.uk/id/local-authority-district/23UB,Cheltenham Borough Council,442313,02188,MG WINDOWS CHELTENHAM LIMITED,C-H44350-1104,Window Repairs-Council House repairs,18-Feb-11,28.26
http://statistics.data.gov.uk/id/local-authority-district/23UB,Cheltenham Borough Council,442312,02166,MG WINDOWS CHELTENHAM LIMITED,C-H44350-1104,Window Repairs-Council House repairs,18-Feb-11,20.00
http://statistics.data.gov.uk/id/local-authority-district/23UB,Cheltenham Borough Council,442311,02167,MG WINDOWS CHELTENHAM LIMITED,C-H44350-1104,Window Repairs-Council House repairs,18-Feb-11,61.70
http://statistics.data.gov.uk/id/local-authority-district/23UB,Cheltenham Borough Council,442310,02170,MG WINDOWS CHELTENHAM LIMITED,C-H44350-1104,Window Repairs-Council House repairs,18-Feb-11,37.60
http://statistics.data.gov.uk/id/local-authority-district/23UB,Cheltenham Borough Council,442309,02186,MG WINDOWS CHELTENHAM LIMITED,C-H44350-1104,Window Repairs-Council House repairs,18-Feb-11,60.70
http://statistics.data.gov.uk/id/local-authority-district/23UB,Cheltenham Borough Council,442256,02169,MG WINDOWS CHELTENHAM LIMITED,C-H44350-1104,Window Repairs-Council House repairs,18-Feb-11,64.39
http://statistics.data.gov.uk/id/local-authority-district/23UB,Cheltenham Borough Council,442255,02187,MG WINDOWS CHELTENHAM LIMITED,C-H44350-1104,Window Repairs-Council House repairs,18-Feb-11,28.40
http://statistics.data.gov.uk/id/local-authority-district/23UB,Cheltenham Borough Council,442254,02179,MG WINDOWS CHELTENHAM LIMITED,C-H44350-1104,Window Repairs-Council House repairs,18-Feb-11,47.60
http://statistics.data.gov.uk/id/local-authority-district/23UB,Cheltenham Borough Council,442253,02190,MG WINDOWS CHELTENHAM LIMITED,C-H44350-1104,Window Repairs-Council House repairs,18-Feb-11,115.70
http://statistics.data.gov.uk/id/local-authority-district/23UB,Cheltenham Borough Council,442252,02191,MG WINDOWS CHELTENHAM LIMITED,C-H44350-1104,Window Repairs-Council House repairs,18-Feb-11,83.10
http://statistics.data.gov.uk/id/local-authority-district/23UB,Cheltenham Borough Council,442353,02134,MG WINDOWS CHELTENHAM LIMITED,C-H44350-1104,Window Repairs-Council House repairs,18-Feb-11,19.60
http://statistics.data.gov.uk/id/local-authority-district/23UB,Cheltenham Borough Council,442352,02135,MG WINDOWS CHELTENHAM LIMITED,C-H44350-1104,Window Repairs-Council House repairs,18-Feb-11,48.93
http://statistics.data.gov.uk/id/local-authority-district/23UB,Cheltenham Borough Council,442351,02136,MG WINDOWS CHELTENHAM LIMITED,C-H44350-1104,Window Repairs-Council House repairs,18-Feb-11,27.04
http://statistics.data.gov.uk/id/local-authority-district/23UB,Cheltenham Borough Council,442350,02140,MG WINDOWS CHELTENHAM LIMITED,C-H44350-1104,Window Repairs-Council House repairs,18-Feb-11,30.67
http://statistics.data.gov.uk/id/local-authority-district/23UB,Cheltenham Borough Council,442349,02139,MG WINDOWS CHELTENHAM LIMITED,C-H44350-1104,Window Repairs-Council House repairs,18-Feb-11,34.28
http://statistics.data.gov.uk/id/local-authority-district/23UB,Cheltenham Borough Council,442348,02143,MG WINDOWS CHELTENHAM LIMITED,C-H44350-1104,Window Repairs-Council House repairs,18-Feb-11,49.14
http://statistics.data.gov.uk/id/local-authority-district/23UB,Cheltenham Borough Council,442347,02137,MG WINDOWS CHELTENHAM LIMITED,C-H44350-1104,Window Repairs-Council House repairs,18-Feb-11,31.90
http://statistics.data.gov.uk/id/local-authority-district/23UB,Cheltenham Borough Council,442346,02141,MG WINDOWS CHELTENHAM LIMITED,C-H44350-1104,Window Repairs-Council House repairs,18-Feb-11,30.58
http://statistics.data.gov.uk/id/local-authority-district/23UB,Cheltenham Borough Council,442345,02164,MG WINDOWS CHELTENHAM LIMITED,C-H44350-1104,Window Repairs-Council House repairs,18-Feb-11,30.00
http://statistics.data.gov.uk/id/local-authority-district/23UB,Cheltenham Borough Council,442344,02159,MG WINDOWS CHELTENHAM LIMITED,C-H44350-1104,Window Repairs-Council House repairs,18-Feb-11,194.40
http://statistics.data.gov.uk/id/local-authority-district/23UB,Cheltenham Borough Council,442343,02162,MG WINDOWS CHELTENHAM LIMITED,C-H44350-1104,Window Repairs-Council House repairs,18-Feb-11,20.00
http://statistics.data.gov.uk/id/local-authority-district/23UB,Cheltenham Borough Council,442342,02163,MG WINDOWS CHELTENHAM LIMITED,C-H44350-1104,Window Repairs-Council House repairs,18-Feb-11,39.85
http://statistics.data.gov.uk/id/local-authority-district/23UB,Cheltenham Borough Council,442284,02142,MG WINDOWS CHELTENHAM LIMITED,C-H44350-1104,Window Repairs-Council House repairs,18-Feb-11,27.93
http://statistics.data.gov.uk/id/local-authority-district/23UB,Cheltenham Borough Council,442265,02145,MG WINDOWS CHELTENHAM LIMITED,C-H44350-1104,Window Repairs-Council House repairs,18-Feb-11,128.77
http://statistics.data.gov.uk/id/local-authority-district/23UB,Cheltenham Borough Council,442264,02178,MG WINDOWS CHELTENHAM LIMITED,C-H44350-1104,Window Repairs-Council House repairs,18-Feb-11,27.93
http://statistics.data.gov.uk/id/local-authority-district/23UB,Cheltenham Borough Council,442263,02168,MG WINDOWS CHELTENHAM LIMITED,C-H44350-1104,Window Repairs-Council House repairs,18-Feb-11,290.37
http://statistics.data.gov.uk/id/local-authority-district/23UB,Cheltenham Borough Council,442262,02144,MG WINDOWS CHELTENHAM LIMITED,C-H44350-1104,Window Repairs-Council House repairs,18-Feb-11,70.05
http://statistics.data.gov.uk/id/local-authority-district/23UB,Cheltenham Borough Council,442260,02174,MG WINDOWS CHELTENHAM LIMITED,C-H44350-1104,Window Repairs-Council House repairs,18-Feb-11,39.05
http://statistics.data.gov.uk/id/local-authority-district/23UB,Cheltenham Borough Council,442259,02138,MG WINDOWS CHELTENHAM LIMITED,C-H44350-1104,Window Repairs-Council House repairs,18-Feb-11,26.61
http://statistics.data.gov.uk/id/local-authority-district/23UB,Cheltenham Borough Council,442258,02146,MG WINDOWS CHELTENHAM LIMITED,C-H44350-1104,Window Repairs-Council House repairs,18-Feb-11,47.85
http://statistics.data.gov.uk/id/local-authority-district/23UB,Cheltenham Borough Council,442257,02172,MG WINDOWS CHELTENHAM LIMITED,C-H44350-1104,Window Repairs-Council House repairs,18-Feb-11,75.50
http://statistics.data.gov.uk/id/local-authority-district/23UB,Cheltenham Borough Council,442285,02158,MG WINDOWS CHELTENHAM LIMITED,C-H44350-1104,Window Repairs-Council House repairs,18-Feb-11,160.95
http://statistics.data.gov.uk/id/local-authority-district/23UB,Cheltenham Borough Council,442307,02173,MG WINDOWS CHELTENHAM LIMITED,C-H44350-1104,Window Repairs-Council House repairs,18-Feb-11,193.12
http://statistics.data.gov.uk/id/local-authority-district/23UB,Cheltenham Borough Council,442305,02185,MG WINDOWS CHELTENHAM LIMITED,C-H44350-1104,Window Repairs-Council House repairs,18-Feb-11,28.26
http://statistics.data.gov.uk/id/local-authority-district/23UB,Cheltenham Borough Council,442299,02165,MG WINDOWS CHELTENHAM LIMITED,C-H44350-1104,Window Repairs-Council House repairs,18-Feb-11,30.06
http://statistics.data.gov.uk/id/local-authority-district/23UB,Cheltenham Borough Council,442330,02069,MG WINDOWS CHELTENHAM LIMITED,C-HC4075-C302,Window Renewals-Building Contractor,18-Feb-11,346.00
http://statistics.data.gov.uk/id/local-authority-district/23UB,Cheltenham Borough Council,442261,02180,MG WINDOWS CHELTENHAM LIMITED,C-HC4075-C302,Window Renewals-Building Contractor,18-Feb-11,2.50
http://statistics.data.gov.uk/id/local-authority-district/23UB,Cheltenham Borough Council,443188,02155,MG WINDOWS CHELTENHAM LIMITED,C-HC4075-C302,Window Renewals-Building Contractor,25-Feb-11,523.00
http://statistics.data.gov.uk/id/local-authority-district/23UB,Cheltenham Borough Council,443190,02156,MG WINDOWS CHELTENHAM LIMITED,C-HC4075-C302,Window Renewals-Building Contractor,25-Feb-11,886.00
http://statistics.data.gov.uk/id/local-authority-district/23UB,Cheltenham Borough Council,443191,02157,MG WINDOWS CHELTENHAM LIMITED,C-HC4075-C302,Window Renewals-Building Contractor,25-Feb-11,504.00
http://statistics.data.gov.uk/id/local-authority-district/23UB,Cheltenham Borough Council,442714,0249,MHP DESIGN LIMITED,C-HC4055-C302,Neighhd Works-Building Contractor,18-Feb-11,"1,971.00"
http://statistics.data.gov.uk/id/local-authority-district/23UB,Cheltenham Borough Council,442669,H161779,MIDLANDS VEHICLE RENTAL LIMITED,C-C24100-2701,Fleet Maint-Hired transport,18-Feb-11,259.00
http://statistics.data.gov.uk/id/local-authority-district/23UB,Cheltenham Borough Council,442671,H161710,MIDLANDS VEHICLE RENTAL LIMITED,C-C24100-2701,Fleet Maint-Hired transport,18-Feb-11,481.00
http://statistics.data.gov.uk/id/local-authority-district/23UB,Cheltenham Borough Council,442670,H161694,MIDLANDS VEHICLE RENTAL LIMITED,C-C24100-2701,Fleet Maint-Hired transport,18-Feb-11,518.00
http://statistics.data.gov.uk/id/local-authority-district/23UB,Cheltenham Borough Council,442177,5822/90241973,MITIE,C-PM0041-R163,Prince of Wales-Equipment,18-Feb-11,"1,000.00"
http://statistics.data.gov.uk/id/local-authority-district/23UB,Cheltenham Borough Council,442004,74,J.J.MORRELL,C-D11400-3501,Audit & Assrnce-Hire of outside services,11-Feb-11,"1,849.10"
http://statistics.data.gov.uk/id/local-authority-district/23UB,Cheltenham Borough Council,442489,INV21585,MORPHO DETECTION UK LIMITED,C-D34510-3501,Crime & Disordr-Hire of outside services,18-Feb-11,"1,200.00"
http://statistics.data.gov.uk/id/local-authority-district/23UB,Cheltenham Borough Council,443131,REDACTED,REDACTED,C-H22400-3828,Homelessness-Prevention Fund,23-Feb-11,600.00
http://statistics.data.gov.uk/id/local-authority-district/23UB,Cheltenham Borough Council,443228,REDACTED,REDACTED,C-P12250-9104,Tenants Rent Refund,25-Feb-11,18.77
http://statistics.data.gov.uk/id/local-authority-district/23UB,Cheltenham Borough Council,441901,1178,MPL WROUGHT IRON,C-H44752-1104,Dis Adapts-Tech-Council House repairs,11-Feb-11,650.00
http://statistics.data.gov.uk/id/local-authority-district/23UB,Cheltenham Borough Council,442134,1172,MPL WROUGHT IRON,C-HC4704-C302,EIP Churn Ave-Building Contractor,11-Feb-11,"1,899.00"
http://statistics.data.gov.uk/id/local-authority-district/23UB,Cheltenham Borough Council,441524,95,NATURE FIRST LIMITED,C-C22110-1312,Parks & Gardens-Annual felling prog,04-Feb-11,685.00
http://statistics.data.gov.uk/id/local-authority-district/23UB,Cheltenham Borough Council,441640,94,NATURE FIRST LIMITED,C-C22120-1305,Spts/Open Space-Tree surgery,04-Feb-11,175.00
http://statistics.data.gov.uk/id/local-authority-district/23UB,Cheltenham Borough Council,441640,94,NATURE FIRST LIMITED,C-C22120-1312,Spts/Open Space-Annual felling prog,04-Feb-11,700.00
http://statistics.data.gov.uk/id/local-authority-district/23UB,Cheltenham Borough Council,442962,18669,NETWORK UTILITIES SYSTEMS LIMITED,C-D11820-3660,IT Infrastructu-Hardware PC & Servers,23-Feb-11,542.10
http://statistics.data.gov.uk/id/local-authority-district/23UB,Cheltenham Borough Council,442962,18669,NETWORK UTILITIES SYSTEMS LIMITED,C-D11820-3660,IT Infrastructu-Hardware PC & Servers,23-Feb-11,"3,344.80"
http://statistics.data.gov.uk/id/local-authority-district/23UB,Cheltenham Borough Council,441997,L1070,NEW TECHNOLOGY ENTERPRISE LIMITED,C-DC3212-C101,Ctte Web System-Project Est for this Yea,11-Feb-11,"2,000.00"
http://statistics.data.gov.uk/id/local-authority-district/23UB,Cheltenham Borough Council,442945,SI/01486048,NO MIX ENVIRO LTD,C-C22110-1107,Parks & Gardens-Repairs/Cleaning,23-Feb-11,144.80
http://statistics.data.gov.uk/id/local-authority-district/23UB,Cheltenham Borough Council,442945,SI/01486048,NO MIX ENVIRO LTD,C-C22110-3110,Parks & Gardens-Materials,23-Feb-11,221.25
http://statistics.data.gov.uk/id/local-authority-district/23UB,Cheltenham Borough Council,442945,SI/01486048,NO MIX ENVIRO LTD,C-C22120-1119,Spts/Open Space-Playground Maint,23-Feb-11,295.55
http://statistics.data.gov.uk/id/local-authority-district/23UB,Cheltenham Borough Council,443129,GRAZIER FEE,Mrs North,C-C22120-1304,Spts/Open Space-Nature conservation,23-Feb-11,"2,609.52"
http://statistics.data.gov.uk/id/local-authority-district/23UB,Cheltenham Borough Council,442850,54832401,NORTHCLIFFE MEDIA LTD,C-0T90H0-3559,Hirers-Recoverable Event Exp,23-Feb-11,256.96
http://statistics.data.gov.uk/id/local-authority-district/23UB,Cheltenham Borough Council,443029,54948643,NORTHCLIFFE MEDIA LTD,C-L11500-3510,Rec Facilities-Promotion & Marketing,23-Feb-11,285.00
http://statistics.data.gov.uk/id/local-authority-district/23UB,Cheltenham Borough Council,443110,18585140,NORWICH BOOKS AND MUSIC,C-E63100-3411,Cemetery & Crem-Profl books & magazines,23-Feb-11,"1,668.60"
http://statistics.data.gov.uk/id/local-authority-district/23UB,Cheltenham Borough Council,441466,7956 76157 30,NPOWER,C-H33700-1402,Estate Services-Electricity,04-Feb-11,"1,948.06"
http://statistics.data.gov.uk/id/local-authority-district/23UB,Cheltenham Borough Council,441469,7944 04469 30 BA,NPOWER,C-H33700-1402,Estate Services-Electricity,04-Feb-11,43.78
http://statistics.data.gov.uk/id/local-authority-district/23UB,Cheltenham Borough Council,441448,065 3727 6388,NPOWER,C-H33700-1402,Estate Services-Electricity,04-Feb-11,34.21
http://statistics.data.gov.uk/id/local-authority-district/23UB,Cheltenham Borough Council,441450,065 3445 6074,NPOWER,C-H33700-1402,Estate Services-Electricity,04-Feb-11,210.20
http://statistics.data.gov.uk/id/local-authority-district/23UB,Cheltenham Borough Council,441452,065 5994 5217,NPOWER,C-H33700-1402,Estate Services-Electricity,04-Feb-11,22.51
http://statistics.data.gov.uk/id/local-authority-district/23UB,Cheltenham Borough Council,441453,065 2266 2778,NPOWER,C-H33700-1402,Estate Services-Electricity,04-Feb-11,6.43
http://statistics.data.gov.uk/id/local-authority-district/23UB,Cheltenham Borough Council,441451,065 2266 2425,NPOWER,C-H33700-1402,Estate Services-Electricity,04-Feb-11,42.77
http://statistics.data.gov.uk/id/local-authority-district/23UB,Cheltenham Borough Council,441449,065 8096 7555,NPOWER,C-H33700-1402,Estate Services-Electricity,04-Feb-11,172.73
http://statistics.data.gov.uk/id/local-authority-district/23UB,Cheltenham Borough Council,441468,7944 04469 30,NPOWER,C-H33700-1402,Estate Services-Electricity,04-Feb-11,"4,461.03"
http://statistics.data.gov.uk/id/local-authority-district/23UB,Cheltenham Borough Council,441467,7956 76157 30 BA,NPOWER,C-H33700-1402,Estate Services-Electricity,04-Feb-11,18.55
http://statistics.data.gov.uk/id/local-authority-district/23UB,Cheltenham Borough Council,441631,20110001,JACKIE OATES,C-0T70L0-3568,Folk Festival-Artist Fees,04-Feb-11,"1,100.00"
http://statistics.data.gov.uk/id/local-authority-district/23UB,Cheltenham Borough Council,442515,30671,OCONNOR CONSTRUCTION AND  PLANT HIRE,C-C24100-2701,Fleet Maint-Hired transport,18-Feb-11,250.00
http://statistics.data.gov.uk/id/local-authority-district/23UB,Cheltenham Borough Council,442704,30707,OCONNOR CONSTRUCTION AND  PLANT HIRE,C-C24100-2701,Fleet Maint-Hired transport,18-Feb-11,250.00
http://statistics.data.gov.uk/id/local-authority-district/23UB,Cheltenham Borough Council,442026,948616849,OFFICE DEPOT,C-D11100-3410,CEO Management-Stationery & office supps,11-Feb-11,6.57
http://statistics.data.gov.uk/id/local-authority-district/23UB,Cheltenham Borough Council,442026,948616849,OFFICE DEPOT,C-D11100-3410,CEO Management-Stationery & office supps,11-Feb-11,7.24
http://statistics.data.gov.uk/id/local-authority-district/23UB,Cheltenham Borough Council,442026,948616849,OFFICE DEPOT,C-D11100-3410,CEO Management-Stationery & office supps,11-Feb-11,7.42
http://statistics.data.gov.uk/id/local-authority-district/23UB,Cheltenham Borough Council,442026,948616849,OFFICE DEPOT,C-D11300-3410,Accountancy-Stationery & office supps,11-Feb-11,2.10
http://statistics.data.gov.uk/id/local-authority-district/23UB,Cheltenham Borough Council,442026,948616849,OFFICE DEPOT,C-D11300-3410,Accountancy-Stationery & office supps,11-Feb-11,30.60
http://statistics.data.gov.uk/id/local-authority-district/23UB,Cheltenham Borough Council,442026,948616849,OFFICE DEPOT,C-D11700-3410,Pol & Info Mgmt-Stationery & office supp,11-Feb-11,6.60
http://statistics.data.gov.uk/id/local-authority-district/23UB,Cheltenham Borough Council,442025,948589183,OFFICE DEPOT,C-D11830-3410,Corporate Print-Stationery & office supp,11-Feb-11,122.00
http://statistics.data.gov.uk/id/local-authority-district/23UB,Cheltenham Borough Council,442026,948616849,OFFICE DEPOT,C-D11830-3410,Corporate Print-Stationery & office supp,11-Feb-11,122.00
http://statistics.data.gov.uk/id/local-authority-district/23UB,Cheltenham Borough Council,442026,948616849,OFFICE DEPOT,C-D12450-3410,Cash Rec / Bnkg-Stationery & office supp,11-Feb-11,8.22
http://statistics.data.gov.uk/id/local-authority-district/23UB,Cheltenham Borough Council,442026,948616849,OFFICE DEPOT,C-D21100-3410,Dem Process-Stationery & office supps,11-Feb-11,6.12
http://statistics.data.gov.uk/id/local-authority-district/23UB,Cheltenham Borough Council,442026,948616849,OFFICE DEPOT,C-D21100-3410,Dem Process-Stationery & office supps,11-Feb-11,6.69
http://statistics.data.gov.uk/id/local-authority-district/23UB,Cheltenham Borough Council,442026,948616849,OFFICE DEPOT,C-D21100-3410,Dem Process-Stationery & office supps,11-Feb-11,0.16
http://statistics.data.gov.uk/id/local-authority-district/23UB,Cheltenham Borough Council,442026,948616849,OFFICE DEPOT,C-D21400-3410,Electoral Regn-Stationery & office supps,11-Feb-11,23.92
http://statistics.data.gov.uk/id/local-authority-district/23UB,Cheltenham Borough Council,442026,948616849,OFFICE DEPOT,C-D21400-3410,Electoral Regn-Stationery & office supps,11-Feb-11,6.49
http://statistics.data.gov.uk/id/local-authority-district/23UB,Cheltenham Borough Council,442026,948616849,OFFICE DEPOT,C-D21400-3410,Electoral Regn-Stationery & office supps,11-Feb-11,55.58
http://statistics.data.gov.uk/id/local-authority-district/23UB,Cheltenham Borough Council,442028,948628154,OFFICE DEPOT,C-D21550-3410,AV Referendum-Stationery & office supps      ,11-Feb-11,86.64
http://statistics.data.gov.uk/id/local-authority-district/23UB,Cheltenham Borough Council,442027,948628155,OFFICE DEPOT,C-E72500-3410,Built Env Div-Stationery & office supps,11-Feb-11,5.83
http://statistics.data.gov.uk/id/local-authority-district/23UB,Cheltenham Borough Council,442026,948616849,OFFICE DEPOT,C-E74100-3410,Env M&A Div-Stationery & office supps,11-Feb-11,3.56
http://statistics.data.gov.uk/id/local-authority-district/23UB,Cheltenham Borough Council,442060,947459216,OFFICE DEPOT,C-L41100-3410,AG & M-Stationery & office supps,11-Feb-11,-43.60
http://statistics.data.gov.uk/id/local-authority-district/23UB,Cheltenham Borough Council,442062,948061327,OFFICE DEPOT,C-L41100-3410,AG & M-Stationery & office supps,11-Feb-11,3.23
http://statistics.data.gov.uk/id/local-authority-district/23UB,Cheltenham Borough Council,442069,948623579,OFFICE DEPOT,C-L41100-3410,AG & M-Stationery & office supps,11-Feb-11,0.56
http://statistics.data.gov.uk/id/local-authority-district/23UB,Cheltenham Borough Council,442069,948623579,OFFICE DEPOT,C-L41100-3410,AG & M-Stationery & office supps,11-Feb-11,24.40
http://statistics.data.gov.uk/id/local-authority-district/23UB,Cheltenham Borough Council,442069,948623579,OFFICE DEPOT,C-L41100-3410,AG & M-Stationery & office supps,11-Feb-11,0.47
http://statistics.data.gov.uk/id/local-authority-district/23UB,Cheltenham Borough Council,442069,948623579,OFFICE DEPOT,C-L41100-3410,AG & M-Stationery & office supps,11-Feb-11,4.95
http://statistics.data.gov.uk/id/local-authority-district/23UB,Cheltenham Borough Council,442062,948061327,OFFICE DEPOT,C-L41100-3410,AG & M-Stationery & office supps,11-Feb-11,16.70
http://statistics.data.gov.uk/id/local-authority-district/23UB,Cheltenham Borough Council,442062,948061327,OFFICE DEPOT,C-L41100-3410,AG & M-Stationery & office supps,11-Feb-11,0.40
http://statistics.data.gov.uk/id/local-authority-district/23UB,Cheltenham Borough Council,442062,948061327,OFFICE DEPOT,C-L41100-3410,AG & M-Stationery & office supps,11-Feb-11,3.42
http://statistics.data.gov.uk/id/local-authority-district/23UB,Cheltenham Borough Council,442062,948061327,OFFICE DEPOT,C-L41100-3410,AG & M-Stationery & office supps,11-Feb-11,3.42
http://statistics.data.gov.uk/id/local-authority-district/23UB,Cheltenham Borough Council,442062,948061327,OFFICE DEPOT,C-L41100-3410,AG & M-Stationery & office supps,11-Feb-11,2.48
http://statistics.data.gov.uk/id/local-authority-district/23UB,Cheltenham Borough Council,442062,948061327,OFFICE DEPOT,C-L41100-3410,AG & M-Stationery & office supps,11-Feb-11,3.29
http://statistics.data.gov.uk/id/local-authority-district/23UB,Cheltenham Borough Council,442062,948061327,OFFICE DEPOT,C-L41100-3410,AG & M-Stationery & office supps,11-Feb-11,5.36
http://statistics.data.gov.uk/id/local-authority-district/23UB,Cheltenham Borough Council,442062,948061327,OFFICE DEPOT,C-L41100-3410,AG & M-Stationery & office supps,11-Feb-11,5.36
http://statistics.data.gov.uk/id/local-authority-district/23UB,Cheltenham Borough Council,442025,948589183,OFFICE DEPOT,C-N72800-3410,Stationery Hldg-Stationery & office supp,11-Feb-11,2.90
http://statistics.data.gov.uk/id/local-authority-district/23UB,Cheltenham Borough Council,442983,948764165,OFFICE DEPOT,C-L21100-3410,Town Hall-Stationery & office supps,23-Feb-11,1.84
http://statistics.data.gov.uk/id/local-authority-district/23UB,Cheltenham Borough Council,441515,3674,ONE51 ES PLSTCS UK LTD T/A MGB PLASTICS,C-C23100-3101,Refuse Collctn-Equipment purchases,04-Feb-11,"1,875.00"
http://statistics.data.gov.uk/id/local-authority-district/23UB,Cheltenham Borough Council,441563,3636,ONE51 ES PLSTCS UK LTD T/A MGB PLASTICS,C-NBS000-BI54,B/S-Leasing,04-Feb-11,"17,864.00"
http://statistics.data.gov.uk/id/local-authority-district/23UB,Cheltenham Borough Council,443012,3811,ONE51 ES PLSTCS UK LTD T/A MGB PLASTICS,C-NBS000-BI54,B/S-Leasing,23-Feb-11,"-2,980.00"
http://statistics.data.gov.uk/id/local-authority-district/23UB,Cheltenham Borough Council,443046,3673,ONE51 ES PLSTCS UK LTD T/A MGB PLASTICS,C-NBS000-BI54,B/S-Leasing,23-Feb-11,"95,062.00"
http://statistics.data.gov.uk/id/local-authority-district/23UB,Cheltenham Borough Council,443173,490,OOMPH DESIGN,C-D34400-3801,Bus & Econ Dev-Grants,25-Feb-11,"1,354.17"
http://statistics.data.gov.uk/id/local-authority-district/23UB,Cheltenham Borough Council,441492,I02425566,PACE FUELCARE LIMITED,C-N42250-3112,DSO Stores - Stock purchases,04-Feb-11,"2,718.75"
http://statistics.data.gov.uk/id/local-authority-district/23UB,Cheltenham Borough Council,441493,I02421623,PACE FUELCARE LIMITED,C-N42250-3112,DSO Stores - Stock purchases,04-Feb-11,"12,506.25"
http://statistics.data.gov.uk/id/local-authority-district/23UB,Cheltenham Borough Council,441857,I02429976,PACE FUELCARE LIMITED,C-N42250-3112,DSO Stores - Stock purchases,11-Feb-11,"2,708.50"
http://statistics.data.gov.uk/id/local-authority-district/23UB,Cheltenham Borough Council,441858,I02425717,PACE FUELCARE LIMITED,C-N42250-3112,DSO Stores - Stock purchases,11-Feb-11,"9,747.35"
http://statistics.data.gov.uk/id/local-authority-district/23UB,Cheltenham Borough Council,442490,IO2429982,PACE FUELCARE LIMITED,C-N42250-3112,DSO Stores - Stock purchases,18-Feb-11,"12,457.95"
http://statistics.data.gov.uk/id/local-authority-district/23UB,Cheltenham Borough Council,442780,I02435804,PACE FUELCARE LIMITED,C-N42250-3112,DSO Stores - Stock purchases,23-Feb-11,"9,878.00"
http://statistics.data.gov.uk/id/local-authority-district/23UB,Cheltenham Borough Council,442783,I02435851,PACE FUELCARE LIMITED,C-N42250-3112,DSO Stores - Stock purchases,23-Feb-11,"2,744.50"
http://statistics.data.gov.uk/id/local-authority-district/23UB,Cheltenham Borough Council,442782,I02435847,PACE FUELCARE LIMITED,C-N42250-3112,DSO Stores - Stock purchases,23-Feb-11,"2,587.50"
http://statistics.data.gov.uk/id/local-authority-district/23UB,Cheltenham Borough Council,442292,jan213.ppc/rcs,PC MOLEING SERVICES,C-H4206G-1104,Gen Wks 2206-Council House repairs,18-Feb-11,55.00
http://statistics.data.gov.uk/id/local-authority-district/23UB,Cheltenham Borough Council,442287,JAN228/PPC/RCS,PC MOLEING SERVICES,C-H4213G-1104,Gen Wks 2213-Council House repairs,18-Feb-11,100.00
http://statistics.data.gov.uk/id/local-authority-district/23UB,Cheltenham Borough Council,442288,JAN229/PPC/RCS,PC MOLEING SERVICES,C-H4213G-1104,Gen Wks 2213-Council House repairs,18-Feb-11,100.00
http://statistics.data.gov.uk/id/local-authority-district/23UB,Cheltenham Borough Council,442289,JAN230/PPC/RCS,PC MOLEING SERVICES,C-H4213G-1104,Gen Wks 2213-Council House repairs,18-Feb-11,100.00
http://statistics.data.gov.uk/id/local-authority-district/23UB,Cheltenham Borough Council,442293,JAN226/PPC/RCS,PC MOLEING SERVICES,C-H4213G-1104,Gen Wks 2213-Council House repairs,18-Feb-11,75.00
http://statistics.data.gov.uk/id/local-authority-district/23UB,Cheltenham Borough Council,442296,AJN225/PPC/RCS,PC MOLEING SERVICES,C-H4213G-1104,Gen Wks 2213-Council House repairs,18-Feb-11,100.00
http://statistics.data.gov.uk/id/local-authority-district/23UB,Cheltenham Borough Council,442294,JAN227/PPC/RCS,PC MOLEING SERVICES,C-H4213G-1104,Gen Wks 2213-Council House repairs,18-Feb-11,100.00
http://statistics.data.gov.uk/id/local-authority-district/23UB,Cheltenham Borough Council,442291,JAN231/PPC/RCS,PC MOLEING SERVICES,C-H4213G-1104,Gen Wks 2213-Council House repairs,18-Feb-11,100.00
http://statistics.data.gov.uk/id/local-authority-district/23UB,Cheltenham Borough Council,442295,JAN215/PPC/RCS,PC MOLEING SERVICES,C-H4214G-1104,Gen Wks 2214-Council House repairs,18-Feb-11,110.00
http://statistics.data.gov.uk/id/local-authority-district/23UB,Cheltenham Borough Council,441764,M3762,PEAK HIRE LIMITED,C-0T24K1-3151,Brendan Cole-Specialist Equipment       ,11-Feb-11,800.00
http://statistics.data.gov.uk/id/local-authority-district/23UB,Cheltenham Borough Council,441763,M3763,PEAK HIRE LIMITED,C-0T90H0-3501,Hirers-Hire of outside services,11-Feb-11,30.00
http://statistics.data.gov.uk/id/local-authority-district/23UB,Cheltenham Borough Council,442081,8030,PICTORIAL MEADOWS,C-C22110-3110,Parks & Gardens-Materials,11-Feb-11,337.10
http://statistics.data.gov.uk/id/local-authority-district/23UB,Cheltenham Borough Council,442081,8030,PICTORIAL MEADOWS,C-C22110-3110,Parks & Gardens-Materials,11-Feb-11,66.21
http://statistics.data.gov.uk/id/local-authority-district/23UB,Cheltenham Borough Council,442081,8030,PICTORIAL MEADOWS,C-C22110-3110,Parks & Gardens-Materials,11-Feb-11,290.28
http://statistics.data.gov.uk/id/local-authority-district/23UB,Cheltenham Borough Council,442518,1859,PIPELINE LOGISTICS,C-E63100-1804,Cemetery & Crem-RM-External structures,18-Feb-11,"2,634.42"
http://statistics.data.gov.uk/id/local-authority-district/23UB,Cheltenham Borough Council,443148,10451045,POSTAGE BY PHONE PITNEY BOWES PLC,C-L11500-3602,Rec Facilities-Postages - frkng machine,25-Feb-11,200.00
http://statistics.data.gov.uk/id/local-authority-district/23UB,Cheltenham Borough Council,443148,10451045,POSTAGE BY PHONE PITNEY BOWES PLC,C-L11500-3602,Rec Facilities-Postages - frkng machine,25-Feb-11,9.00
http://statistics.data.gov.uk/id/local-authority-district/23UB,Cheltenham Borough Council,443176,10400808,POSTAGE BY PHONE PITNEY BOWES PLC,C-L21100-3602,Town Hall-Postages - frkng machine,25-Feb-11,63.00
http://statistics.data.gov.uk/id/local-authority-district/23UB,Cheltenham Borough Council,443176,10400808,POSTAGE BY PHONE PITNEY BOWES PLC,C-L21100-3602,Town Hall-Postages - frkng machine,25-Feb-11,9.00
http://statistics.data.gov.uk/id/local-authority-district/23UB,Cheltenham Borough Council,443176,10400808,POSTAGE BY PHONE PITNEY BOWES PLC,C-L24500-3602,Box Office-Postages - frkng machine,25-Feb-11,237.00
http://statistics.data.gov.uk/id/local-authority-district/23UB,Cheltenham Borough Council,442845,SIN000773,POWERPERFECTOR PLC,C-PM0040-R020,Recreation Cent-Mechanical & Electrical,23-Feb-11,"19,153.00"
http://statistics.data.gov.uk/id/local-authority-district/23UB,Cheltenham Borough Council,443143,2041462,PRINTWASTE RECYCLING,C-C23120-3509,Recycling Centr-Payments                ,23-Feb-11,"2,693.61"
http://statistics.data.gov.uk/id/local-authority-district/23UB,Cheltenham Borough Council,443026,2042757,PRINTWASTE RECYCLING,C-C23120-3509,Recycling Centr-Payments                ,23-Feb-11,"1,574.00"
http://statistics.data.gov.uk/id/local-authority-district/23UB,Cheltenham Borough Council,443024,2042327,PRINTWASTE RECYCLING,C-C23120-3509,Recycling Centr-Payments                ,23-Feb-11,"1,950.00"
http://statistics.data.gov.uk/id/local-authority-district/23UB,Cheltenham Borough Council,443025,2042755,PRINTWASTE RECYCLING,C-C23120-3509,Recycling Centr-Payments                ,23-Feb-11,"4,687.24"
http://statistics.data.gov.uk/id/local-authority-district/23UB,Cheltenham Borough Council,442574,214252749,PROLUDIC LTD,C-LC6006-C601,Play Area Maint-Equipment,18-Feb-11,"3,172.00"
http://statistics.data.gov.uk/id/local-authority-district/23UB,Cheltenham Borough Council,442574,214252749,PROLUDIC LTD,C-LC6006-C601,Play Area Maint-Equipment,18-Feb-11,250.00
http://statistics.data.gov.uk/id/local-authority-district/23UB,Cheltenham Borough Council,441866,016302,REDFERN TRAVEL LIMITED,C-B51160-2803,Civic Pride-Public transport allce,11-Feb-11,40.62
http://statistics.data.gov.uk/id/local-authority-district/23UB,Cheltenham Borough Council,441866,016302,REDFERN TRAVEL LIMITED,C-D11800-2803,IT Services-Public transport allce,11-Feb-11,31.23
http://statistics.data.gov.uk/id/local-authority-district/23UB,Cheltenham Borough Council,441866,016302,REDFERN TRAVEL LIMITED,C-D12205-2803, Legal Services Public transport allce         ,11-Feb-11,327.66
http://statistics.data.gov.uk/id/local-authority-district/23UB,Cheltenham Borough Council,441859,017546,REDFERN TRAVEL LIMITED,C-D12400-2803,AD (CAST)-Public transport allce,11-Feb-11,144.33
http://statistics.data.gov.uk/id/local-authority-district/23UB,Cheltenham Borough Council,441859,017546,REDFERN TRAVEL LIMITED,C-D34400-2803,Bus & Econ Dev-Public transport allce,11-Feb-11,55.09
http://statistics.data.gov.uk/id/local-authority-district/23UB,Cheltenham Borough Council,441859,017546,REDFERN TRAVEL LIMITED,C-E72500-2803,Built Env Div-Public transport allce,11-Feb-11,18.56
http://statistics.data.gov.uk/id/local-authority-district/23UB,Cheltenham Borough Council,441859,017546,REDFERN TRAVEL LIMITED,C-E74100-2803,Env M&A Div-Public transport allce,11-Feb-11,70.72
http://statistics.data.gov.uk/id/local-authority-district/23UB,Cheltenham Borough Council,441859,017546,REDFERN TRAVEL LIMITED,C-L41100-2803,AG & M-Public transport allce,11-Feb-11,97.04
http://statistics.data.gov.uk/id/local-authority-district/23UB,Cheltenham Borough Council,442144,49N4ALTKWTS,REDACTIVE EVENTS LIMITED,C-D11300-3701,Accountancy-Conference fees & expenses,18-Feb-11,725.00
http://statistics.data.gov.uk/id/local-authority-district/23UB,Cheltenham Borough Council,442481,3001,REP SECURITY LIMITED,C-D34510-3183,Crime & Disordr-Taxi Marshalls,18-Feb-11,300.00
http://statistics.data.gov.uk/id/local-authority-district/23UB,Cheltenham Borough Council,442482,2996,REP SECURITY LIMITED,C-D34510-3183,Crime & Disordr-Taxi Marshalls,18-Feb-11,300.00
http://statistics.data.gov.uk/id/local-authority-district/23UB,Cheltenham Borough Council,442483,2991,REP SECURITY LIMITED,C-D34510-3183,Crime & Disordr-Taxi Marshalls,18-Feb-11,300.00
http://statistics.data.gov.uk/id/local-authority-district/23UB,Cheltenham Borough Council,442484,2986,REP SECURITY LIMITED,C-D34510-3183,Crime & Disordr-Taxi Marshalls,18-Feb-11,300.00
http://statistics.data.gov.uk/id/local-authority-district/23UB,Cheltenham Borough Council,442676,86207512,RICOH UK LIMITED,C-D11830-3102,Corporate Print-Equipment rental,18-Feb-11,"1,499.68"
http://statistics.data.gov.uk/id/local-authority-district/23UB,Cheltenham Borough Council,442675,86233141,RICOH UK LIMITED,C-D11830-3401,Corporate Print-Printing - general,18-Feb-11,59.49
http://statistics.data.gov.uk/id/local-authority-district/23UB,Cheltenham Borough Council,442676,86207512,RICOH UK LIMITED,C-D11830-3401,Corporate Print-Printing - general,18-Feb-11,"2,403.25"
http://statistics.data.gov.uk/id/local-authority-district/23UB,Cheltenham Borough Council,443013,7432,PETER RIDLEY WASTE SYSTEMS ,C-C23180-3101,Rcycl Coltn Schms-Equipment purchases,23-Feb-11,"22,276.80"
http://statistics.data.gov.uk/id/local-authority-district/23UB,Cheltenham Borough Council,441617,REDACTED,REDACTED,C-H22400-3828,Homeless Persons Deposit  Scheme,04-Feb-11,795.00
http://statistics.data.gov.uk/id/local-authority-district/23UB,Cheltenham Borough Council,441644,REDACTED,ROSS ALDRIDGE LLP,C-L21100-3934,Insurance Claim ,04-Feb-11,"11,000.00"
http://statistics.data.gov.uk/id/local-authority-district/23UB,Cheltenham Borough Council,442031,9032559224,ROYAL MAIL,C-B51140-3602,Strategic Plng-Postages - frkng machine,11-Feb-11,283.19
http://statistics.data.gov.uk/id/local-authority-district/23UB,Cheltenham Borough Council,442031,9032559224,ROYAL MAIL,C-C23160-3602,Env Maint Div-Postages - frkng machine,11-Feb-11,139.00
http://statistics.data.gov.uk/id/local-authority-district/23UB,Cheltenham Borough Council,441798,9032588467,ROYAL MAIL,C-E71150-3410,Public Pro Div-Stationery & office supps,11-Feb-11,16.40
http://statistics.data.gov.uk/id/local-authority-district/23UB,Cheltenham Borough Council,442031,9032559224,ROYAL MAIL,C-E72500-3602,Built Env Div-Postages - frkng machine,11-Feb-11,434.02
http://statistics.data.gov.uk/id/local-authority-district/23UB,Cheltenham Borough Council,442031,9032559224,ROYAL MAIL,C-L31100-3602,TIC-Postages - frkng machine,11-Feb-11,206.54
http://statistics.data.gov.uk/id/local-authority-district/23UB,Cheltenham Borough Council,441627,0024,SALLY MORGAN ENTERPRISES LIMITED,C-0T15L1-3568,Artist Fees,04-Feb-11,"9,500.00"
http://statistics.data.gov.uk/id/local-authority-district/23UB,Cheltenham Borough Council,443117,SANDFORD LIDO,SANDFORD LIDO (TRADING) LIMITED,C-E21100-8596,Car Prks-Off St-Fee-Lido Car Park net in,23-Feb-11,"-1,060.00"
http://statistics.data.gov.uk/id/local-authority-district/23UB,Cheltenham Borough Council,443117,SANDFORD LIDO,SANDFORD LIDO (TRADING) LIMITED,C-Z13030-4902,Lido Car Park-Lido Carpark-fees paid ove,23-Feb-11,"12,475.25"
http://statistics.data.gov.uk/id/local-authority-district/23UB,Cheltenham Borough Council,442721,WS65589SSE,SANTIA WATER SERVICES LIMITED,C-H46450-1104,Legionella T&M-Council House repairs,18-Feb-11,"4,962.50"
http://statistics.data.gov.uk/id/local-authority-district/23UB,Cheltenham Borough Council,442663,317,SASEPC LIMITED,C-H44405-1410,Energy Perf Cer-EPC Fees,18-Feb-11,"1,240.00"
http://statistics.data.gov.uk/id/local-authority-district/23UB,Cheltenham Borough Council,441573,11/1402,ADRIAN SASSOON,C-L41100-3129,AG & M-Purchases for collections,04-Feb-11,"5,000.00"
http://statistics.data.gov.uk/id/local-authority-district/23UB,Cheltenham Borough Council,442677,01359295,CASH SOLUTIONS UK LIMITED,C-D12450-3502,Cash Rec / Bnkg-Cash transportation,18-Feb-11,694.81
http://statistics.data.gov.uk/id/local-authority-district/23UB,Cheltenham Borough Council,442678,01359291,CASH SOLUTIONS UK LIMITED,C-D12455-3502,CarPk Inc Colln-Cash transportation,18-Feb-11,906.20
http://statistics.data.gov.uk/id/local-authority-district/23UB,Cheltenham Borough Council,443007,14031,SECURITY DATA PRINT,C-D12440-3401,Coun Tax overhe-Printing - general,23-Feb-11,"3,954.00"
http://statistics.data.gov.uk/id/local-authority-district/23UB,Cheltenham Borough Council,442668,P32690CP/110200,J & S SEDDON PAINTING LTD,C-PM0020-R041,Town Hall-Floor Repairs,18-Feb-11,"4,051.00"
http://statistics.data.gov.uk/id/local-authority-district/23UB,Cheltenham Borough Council,441557,651031991,SEVERN TRENT WATER AUTHORITY,C-C22120-1505,Spts/Open Space-Water rates - metered,04-Feb-11,356.93
http://statistics.data.gov.uk/id/local-authority-district/23UB,Cheltenham Borough Council,441576,660093188,SEVERN TRENT WATER AUTHORITY,C-C22120-1505,Spts/Open Space-Water rates - metered,04-Feb-11,242.35
http://statistics.data.gov.uk/id/local-authority-district/23UB,Cheltenham Borough Council,441576,660093188,SEVERN TRENT WATER AUTHORITY,C-C22120-1505,Spts/Open Space-Water rates - metered,04-Feb-11,5.44
http://statistics.data.gov.uk/id/local-authority-district/23UB,Cheltenham Borough Council,441576,660093188,SEVERN TRENT WATER AUTHORITY,C-C22120-1505,Spts/Open Space-Water rates - metered,04-Feb-11,41.00
http://statistics.data.gov.uk/id/local-authority-district/23UB,Cheltenham Borough Council,441576,660093188,SEVERN TRENT WATER AUTHORITY,C-C22120-1505,Spts/Open Space-Water rates - metered,04-Feb-11,11.57
http://statistics.data.gov.uk/id/local-authority-district/23UB,Cheltenham Borough Council,441576,660093188,SEVERN TRENT WATER AUTHORITY,C-C22120-1505,Spts/Open Space-Water rates - metered,04-Feb-11,66.88
http://statistics.data.gov.uk/id/local-authority-district/23UB,Cheltenham Borough Council,441557,651031991,SEVERN TRENT WATER AUTHORITY,C-C22120-1505,Spts/Open Space-Water rates - metered,04-Feb-11,377.53
http://statistics.data.gov.uk/id/local-authority-district/23UB,Cheltenham Borough Council,441557,651031991,SEVERN TRENT WATER AUTHORITY,C-C22120-1505,Spts/Open Space-Water rates - metered,04-Feb-11,16.73
http://statistics.data.gov.uk/id/local-authority-district/23UB,Cheltenham Borough Council,441557,651031991,SEVERN TRENT WATER AUTHORITY,C-C22120-1505,Spts/Open Space-Water rates - metered,04-Feb-11,17.70
http://statistics.data.gov.uk/id/local-authority-district/23UB,Cheltenham Borough Council,441557,651031991,SEVERN TRENT WATER AUTHORITY,C-C22120-1505,Spts/Open Space-Water rates - metered,04-Feb-11,-72.30
http://statistics.data.gov.uk/id/local-authority-district/23UB,Cheltenham Borough Council,441455,617025850/856004,SEVERN TRENT WATER AUTHORITY,C-D30200-1505,Misc Props & Ld-Water rates - metered,04-Feb-11,23.74
http://statistics.data.gov.uk/id/local-authority-district/23UB,Cheltenham Borough Council,441456,298058535/231011,SEVERN TRENT WATER AUTHORITY,C-D30200-1505,Misc Props & Ld-Water rates - metered,04-Feb-11,53.42
http://statistics.data.gov.uk/id/local-authority-district/23UB,Cheltenham Borough Council,442577,421074431,SEVERN TRENT WATER AUTHORITY,C-C22190-1505,Allotments-Water rates - metered,18-Feb-11,279.84
http://statistics.data.gov.uk/id/local-authority-district/23UB,Cheltenham Borough Council,442583,295039769,SEVERN TRENT WATER AUTHORITY,C-C22190-1505,Allotments-Water rates - metered,18-Feb-11,11.98
http://statistics.data.gov.uk/id/local-authority-district/23UB,Cheltenham Borough Council,442583,295039769,SEVERN TRENT WATER AUTHORITY,C-C22190-1505,Allotments-Water rates - metered,18-Feb-11,333.08
http://statistics.data.gov.uk/id/local-authority-district/23UB,Cheltenham Borough Council,442577,421074431,SEVERN TRENT WATER AUTHORITY,C-C22190-1505,Allotments-Water rates - metered,18-Feb-11,17.03
http://statistics.data.gov.uk/id/local-authority-district/23UB,Cheltenham Borough Council,442661,925081256,SEVERN TRENT WATER AUTHORITY,C-D13100-1505,Muni Off Blgs-Water rates - metered,18-Feb-11,670.41
http://statistics.data.gov.uk/id/local-authority-district/23UB,Cheltenham Borough Council,442705,778074499,SEVERN TRENT WATER AUTHORITY,C-D14100-1505,Depot Building-Water rates - metered,18-Feb-11,"1,651.02"
http://statistics.data.gov.uk/id/local-authority-district/23UB,Cheltenham Borough Council,442551,8310149276 8FEB,SEVERN TRENT WATER AUTHORITY,C-L41100-1505,AG & M-Water rates - metered,18-Feb-11,74.16
http://statistics.data.gov.uk/id/local-authority-district/23UB,Cheltenham Borough Council,442553,8310149294 8FEB,SEVERN TRENT WATER AUTHORITY,C-L41100-1505,AG & M-Water rates - metered,18-Feb-11,123.45
http://statistics.data.gov.uk/id/local-authority-district/23UB,Cheltenham Borough Council,442554,8310810069 8FEB,SEVERN TRENT WATER AUTHORITY,C-L41100-1505,AG & M-Water rates - metered,18-Feb-11,32.32
http://statistics.data.gov.uk/id/local-authority-district/23UB,Cheltenham Borough Council,442552,8310149285 8FEB,SEVERN TRENT WATER AUTHORITY,C-L41100-1505,AG & M-Water rates - metered,18-Feb-11,32.32
http://statistics.data.gov.uk/id/local-authority-district/23UB,Cheltenham Borough Council,442946,793052679,SEVERN TRENT WATER AUTHORITY,C-C22110-1505,Parks & Gardens-Water rates - metered,23-Feb-11,5.46
http://statistics.data.gov.uk/id/local-authority-district/23UB,Cheltenham Borough Council,442947,339049222,SEVERN TRENT WATER AUTHORITY,C-C22110-1505,Parks & Gardens-Water rates - metered,23-Feb-11,218.41
http://statistics.data.gov.uk/id/local-authority-district/23UB,Cheltenham Borough Council,442948,262054992,SEVERN TRENT WATER AUTHORITY,C-C22110-1505,Parks & Gardens-Water rates - metered,23-Feb-11,159.71
http://statistics.data.gov.uk/id/local-authority-district/23UB,Cheltenham Borough Council,442948,262054992,SEVERN TRENT WATER AUTHORITY,C-C22110-1505,Parks & Gardens-Water rates - metered,23-Feb-11,97.90
http://statistics.data.gov.uk/id/local-authority-district/23UB,Cheltenham Borough Council,442948,262054992,SEVERN TRENT WATER AUTHORITY,C-C22110-1505,Parks & Gardens-Water rates - metered,23-Feb-11,5.35
http://statistics.data.gov.uk/id/local-authority-district/23UB,Cheltenham Borough Council,442950,858040810,SEVERN TRENT WATER AUTHORITY,C-C22110-1505,Parks & Gardens-Water rates - metered,23-Feb-11,10.96
http://statistics.data.gov.uk/id/local-authority-district/23UB,Cheltenham Borough Council,442951,271243346,SEVERN TRENT WATER AUTHORITY,C-C22110-1505,Parks & Gardens-Water rates - metered,23-Feb-11,19.35
http://statistics.data.gov.uk/id/local-authority-district/23UB,Cheltenham Borough Council,442951,271243346,SEVERN TRENT WATER AUTHORITY,C-C22110-1505,Parks & Gardens-Water rates - metered,23-Feb-11,9.51
http://statistics.data.gov.uk/id/local-authority-district/23UB,Cheltenham Borough Council,442951,271243346,SEVERN TRENT WATER AUTHORITY,C-C22110-1505,Parks & Gardens-Water rates - metered,23-Feb-11,0.83
http://statistics.data.gov.uk/id/local-authority-district/23UB,Cheltenham Borough Council,442951,271243346,SEVERN TRENT WATER AUTHORITY,C-C22110-1505,Parks & Gardens-Water rates - metered,23-Feb-11,19.93
http://statistics.data.gov.uk/id/local-authority-district/23UB,Cheltenham Borough Council,442951,271243346,SEVERN TRENT WATER AUTHORITY,C-C22110-1505,Parks & Gardens-Water rates - metered,23-Feb-11,1.36
http://statistics.data.gov.uk/id/local-authority-district/23UB,Cheltenham Borough Council,442950,858040810,SEVERN TRENT WATER AUTHORITY,C-C22110-1505,Parks & Gardens-Water rates - metered,23-Feb-11,2.73
http://statistics.data.gov.uk/id/local-authority-district/23UB,Cheltenham Borough Council,442948,262054992,SEVERN TRENT WATER AUTHORITY,C-C22110-1505,Parks & Gardens-Water rates - metered,23-Feb-11,227.50
http://statistics.data.gov.uk/id/local-authority-district/23UB,Cheltenham Borough Council,442948,262054992,SEVERN TRENT WATER AUTHORITY,C-C22110-1505,Parks & Gardens-Water rates - metered,23-Feb-11,11.22
http://statistics.data.gov.uk/id/local-authority-district/23UB,Cheltenham Borough Council,442947,339049222,SEVERN TRENT WATER AUTHORITY,C-C22110-1505,Parks & Gardens-Water rates - metered,23-Feb-11,15.71
http://statistics.data.gov.uk/id/local-authority-district/23UB,Cheltenham Borough Council,442946,793052679,SEVERN TRENT WATER AUTHORITY,C-C22110-1505,Parks & Gardens-Water rates - metered,23-Feb-11,22.97
http://statistics.data.gov.uk/id/local-authority-district/23UB,Cheltenham Borough Council,442952,632062390,SEVERN TRENT WATER AUTHORITY,C-C22120-1505,Spts/Open Space-Water rates - metered,23-Feb-11,6.78
http://statistics.data.gov.uk/id/local-authority-district/23UB,Cheltenham Borough Council,442952,632062390,SEVERN TRENT WATER AUTHORITY,C-C22120-1505,Spts/Open Space-Water rates - metered,23-Feb-11,78.87
http://statistics.data.gov.uk/id/local-authority-district/23UB,Cheltenham Borough Council,442952,632062390,SEVERN TRENT WATER AUTHORITY,C-C22120-1505,Spts/Open Space-Water rates - metered,23-Feb-11,-117.52
http://statistics.data.gov.uk/id/local-authority-district/23UB,Cheltenham Borough Council,442952,632062390,SEVERN TRENT WATER AUTHORITY,C-C22120-1505,Spts/Open Space-Water rates - metered,23-Feb-11,20.36
http://statistics.data.gov.uk/id/local-authority-district/23UB,Cheltenham Borough Council,442952,632062390,SEVERN TRENT WATER AUTHORITY,C-C22120-1505,Spts/Open Space-Water rates - metered,23-Feb-11,1.75
http://statistics.data.gov.uk/id/local-authority-district/23UB,Cheltenham Borough Council,442949,156150495,SEVERN TRENT WATER AUTHORITY,C-C22140-1505,Nursery-Water rates - metered,23-Feb-11,"1,016.99"
http://statistics.data.gov.uk/id/local-authority-district/23UB,Cheltenham Borough Council,442949,156150495,SEVERN TRENT WATER AUTHORITY,C-C22140-1505,Nursery-Water rates - metered,23-Feb-11,13.64
http://statistics.data.gov.uk/id/local-authority-district/23UB,Cheltenham Borough Council,442949,156150495,SEVERN TRENT WATER AUTHORITY,C-C22140-1505,Nursery-Water rates - metered,23-Feb-11,-5.85
http://statistics.data.gov.uk/id/local-authority-district/23UB,Cheltenham Borough Council,442949,156150495,SEVERN TRENT WATER AUTHORITY,C-C22140-1505,Nursery-Water rates - metered,23-Feb-11,15.70
http://statistics.data.gov.uk/id/local-authority-district/23UB,Cheltenham Borough Council,443022,826064794,SEVERN TRENT WATER AUTHORITY,C-C23140-1505,Public Convnces-Water rates - metered,23-Feb-11,1.36
http://statistics.data.gov.uk/id/local-authority-district/23UB,Cheltenham Borough Council,443022,826064794,SEVERN TRENT WATER AUTHORITY,C-C23140-1505,Public Convnces-Water rates - metered,23-Feb-11,18.11
http://statistics.data.gov.uk/id/local-authority-district/23UB,Cheltenham Borough Council,443022,826064794,SEVERN TRENT WATER AUTHORITY,C-C23140-1505,Public Convnces-Water rates - metered,23-Feb-11,8.72
http://statistics.data.gov.uk/id/local-authority-district/23UB,Cheltenham Borough Council,443022,826064794,SEVERN TRENT WATER AUTHORITY,C-C23140-1505,Public Convnces-Water rates - metered,23-Feb-11,74.71
http://statistics.data.gov.uk/id/local-authority-district/23UB,Cheltenham Borough Council,443022,826064794,SEVERN TRENT WATER AUTHORITY,C-C23140-1505,Public Convnces-Water rates - metered,23-Feb-11,0.83
http://statistics.data.gov.uk/id/local-authority-district/23UB,Cheltenham Borough Council,442869,385 037 729 7,SEVERN TRENT WATER AUTHORITY,C-E63100-1507,Cemetery & Crem-Sewerage & env. services,23-Feb-11,99.01
http://statistics.data.gov.uk/id/local-authority-district/23UB,Cheltenham Borough Council,442870,942059371,SEVERN TRENT WATER AUTHORITY,C-L11500-1505,Rec Facilities-Water rates - metered,23-Feb-11,740.23
http://statistics.data.gov.uk/id/local-authority-district/23UB,Cheltenham Borough Council,442871,8310133915,SEVERN TRENT WATER AUTHORITY,C-L21200-1505,Pump Room-Water rates - metered,23-Feb-11,896.87
http://statistics.data.gov.uk/id/local-authority-district/23UB,Cheltenham Borough Council,443151,749017834,SEVERN TRENT WATER AUTHORITY,C-C22110-1505,Parks & Gardens-Water rates - metered,25-Feb-11,73.71
http://statistics.data.gov.uk/id/local-authority-district/23UB,Cheltenham Borough Council,443152,732080915,SEVERN TRENT WATER AUTHORITY,C-C22110-1505,Parks & Gardens-Water rates - metered,25-Feb-11,17.74
http://statistics.data.gov.uk/id/local-authority-district/23UB,Cheltenham Borough Council,443153,732080924,SEVERN TRENT WATER AUTHORITY,C-C22110-1505,Parks & Gardens-Water rates - metered,25-Feb-11,1.36
http://statistics.data.gov.uk/id/local-authority-district/23UB,Cheltenham Borough Council,443154,732080948,SEVERN TRENT WATER AUTHORITY,C-C22110-1505,Parks & Gardens-Water rates - metered,25-Feb-11,17.33
http://statistics.data.gov.uk/id/local-authority-district/23UB,Cheltenham Borough Council,443153,732080924,SEVERN TRENT WATER AUTHORITY,C-C22110-1505,Parks & Gardens-Water rates - metered,25-Feb-11,12.87
http://statistics.data.gov.uk/id/local-authority-district/23UB,Cheltenham Borough Council,443152,732080915,SEVERN TRENT WATER AUTHORITY,C-C22110-1505,Parks & Gardens-Water rates - metered,25-Feb-11,9.18
http://statistics.data.gov.uk/id/local-authority-district/23UB,Cheltenham Borough Council,443151,749017834,SEVERN TRENT WATER AUTHORITY,C-C22110-1505,Parks & Gardens-Water rates - metered,25-Feb-11,17.33
http://statistics.data.gov.uk/id/local-authority-district/23UB,Cheltenham Borough Council,443145,732080896,SEVERN TRENT WATER AUTHORITY,C-C23140-1505,Public Convnces-Water rates - metered,25-Feb-11,69.62
http://statistics.data.gov.uk/id/local-authority-district/23UB,Cheltenham Borough Council,443145,732080896,SEVERN TRENT WATER AUTHORITY,C-C23140-1505,Public Convnces-Water rates - metered,25-Feb-11,4.75
http://statistics.data.gov.uk/id/local-authority-district/23UB,Cheltenham Borough Council,443145,732080896,SEVERN TRENT WATER AUTHORITY,C-C23140-1505,Public Convnces-Water rates - metered,25-Feb-11,2.26
http://statistics.data.gov.uk/id/local-authority-district/23UB,Cheltenham Borough Council,443145,732080896,SEVERN TRENT WATER AUTHORITY,C-C23140-1505,Public Convnces-Water rates - metered,25-Feb-11,42.67
